Workbook

Sheet Read me
A1: HOW TO USE THIS DOCUMENT
A2: Welcome to the model used to determine the police levy rate for the 2024 Off-site Levies Bylaw. Note: This model is in DRAFT form for discussion purposes, using the latest information and assumptions available.
A4: Last Updated: | B4: July 2023
A5: Police Levy Tabs 1 - 9
A6: Tab number | B6: Title | C6: Description
A7: Tab 1 | B7: Assumptions | C7: This tab entails the assumptions and steps to create the financial model. It also provides some details to clarify questions around the assumptions.
A8: Tab 2 | B8: Rate Summary | C8: This tab provides a high level summary of the steps that are taken to determine the police levy rate calculation, and provides a look at the proposed levy rate.
A9: Tab 3 | B9: Unlevied Land | C9: This tab describes the remaining unlevied land that is included in the model.
A10: Tab 4 | B10: Infrastructure | C10: This tab provides details on police projects that need to be built over the model period to support the growth of communities in Greenfield Area within Calgary city limits.
A11: Tab 5 | B11: Benefit Allocation | C11: This tab provides the benefit rate allocation that considers the land that will benefit from infrastructure and then ties back to the future residents/jobs in that land.
A12: Tab 6 | B12: Financial Model | C12: This tab provides the financial modelling and a detailed calculation of the proposed levy rate.
A13: Tab 7 | B13: Bylaw Continuity | C13: This tab shows a breakdown of spending from funds collected under the 2016 bylaw, funds to be collected under the 2024 bylaw, and funds from other sources, until funds from the 2016 bylaw have been depleted.
A14: Tab 8 | B14: Population Forecast | C14: This tab shows forecasted greenfield full buildout population distribution.
A15: Tab 9 | B15: Existing Capacity | C15: This tab shows total capacity of existing and funded facilities in the Greenfield Area.

Sheet Tab 1 - Assumptions
A1: Police - Assumptions
A2: Summary | B2: Frequently Asked Questions
A3: The City will use this financial model to calculate a police off-site levy rate per hectare that incorporates investment income, capital cost escalations, and the timing of expenditures and developer contributions through the model period. The levy rate calculated ensures that the off-site levy balance at the end of the model period is zero (i.e., revenues have matched expenditures). It also incorporates, if necessary, any interest costs incurred from the use of alternative funding sources required to deliver infrastructure in a timely manner.
A6: Assumptions
A7: Escalation rate | B7: The escalation factor of 3.58% is a five-year smoothed average, determined using Non-Residential Building Construction Price Index (CPI) for Calgary.
A8: Discount rate | B8: The discount rate of 4.29% is based on the asset mix of investments held in The City's capital deposits, and the Long term Capital Market assumptions that The City uses in projecting returns from investment portfolios.
A9: Gross developable land | B9: Gross developable lands are calculated starting with the gross land area and deducting non-developable lands.
A10: Unlevied land | B10: Unlevied land includes all gross developable lands outside the off-site levy Established Area boundary that do not have executed development agreements. This was 14,211.1 hectares at the end of 2022, and is forecast to be 13,921.1 hectares at the end of 2023.
A11: Land absorption | B11: • All remaining unlevied hectares will sign development agreements within the forecast period (ending 2055). • The land absorption from 2023 to 2027 is based on the fall 2022 forecast by Corporate Economics. • Remaining unlevied hectares in current and future Area Structure Plans are assumed to follow a decreasing trend over the forecast period, on the expectation of higher densities supporting the same number of people.
A12: Benefit allocation | B12: Benefit allocation considers the land that will benefit from future infrastructure and relates to the forecast residents and jobs in that land.
A13: Payment schedule | B13: This financial model incorporates the current levy payment schedule, where 100% of police levies are paid in year three after the development agreement is signed.
A14: Investment income on future value of cash flows | B14: Investment income is earned on the off-site levy beginning account balance, plus collections and minus spending through the year. Investment income on collections and spending is multiplied by a cashflow timing factor of 0.5 to reflect the fact that the timing of collection and spending varies throughout the year. If the balance of the off-site levy goes negative then interest is charged on the balance of the shortfall.
A15: Expenditures | B15: Expenditures include all currently planned infrastructure for the next 32 years. This list may change as further information becomes available.

Sheet Tab 2 - Rate Summary
A1: Police - Rate Summary
A2: Proposed 2024 Levy Rate | F2: Figure 1. Off-site levy rate calculation
B4: The levy rate calculation is being adjusted from the simple formula of Costs x Benefit / Land to the model described in Figure 1 to the right, and in the text below. This financial model uses the following inputs: • Total unlevied land, and annual land absorption. • The off-site levy payment schedule. • Total capital costs of new infrastructure being levied for, with the benefit allocations to determine total unlevied costs. • Annual expenditures. • An escalation factor to calculate the future value of project costs. • A discount factor to calculate the discounted value of project costs, future revenue from developer contributions, and annual investment income or interest expense. The levy rate is then calculated using Excel's Goal Seek function to find the levy rate that balances all expenditures and revenues over the course of the model to result in an off-site levy balance of $0.
B24: Step 1 | C24: Step 2 | D24: Step 3 | E24: Step 4 | F24: Step 5 | G24: Step 6 | H24: Step 7 | I24: Step 8
B25: Total capital costs | C25: Leviable capital cost | D25: Future value | E25: Discounted value | F25: Unlevied land absorption | G25: Developer contributions | H25: Investment income | I25: Levy rate
B26: Identify the total capital costs for projects that benefit unlevied lands. Details can be found in Tab 4. | C26: Leviable capital cost: • Apply benefit rates to the capital costs of each project to determine the developer share of costs. | D26: Calculate the future value of capital costs over the model period. Details for this step can be found in Tab 6. | E26: Calculate the discounted value of the capital costs over the model period. Details for this step can be found in Tab 6. | F26: Details on unlevied lands can be found in Tab 3. Remaining unlevied lands are assumed to be fully absorbed within the model period, in the slowly decreasing trend shown on Tab 6. | G26: The levy rate is multiplied by the hectares that are forecast to sign development agreements each year to calculate the yearly contributions from the developers. | H26: The annual investment income is calculated by multiplying the balance of spending and contributions each year by the investment rate of return. | I26: Use Excel's Goal Seek function to calculate the police off-site levy rate which ensures that developer contributions plus investment income are equal to the future value of capital cost/cash outflows by end of the model period.
B27: A | C27: B | D27: C | E27: D | F27: E | G27: F | H27: G | I27: H
B28: =SUM('Tab 6 - Financial Model'!D15:D22) -> 297297000 | C28: =SUM('Tab 6 - Financial Model'!G15:G21) -> 130810680 | D28: ='Tab 6 - Financial Model'!I23 -> 143725050.7 | E28: ='Tab 6 - Financial Model'!I24 -> 57025102.11 | F28: ='Tab 6 - Financial Model'!E36 -> 9069 | G28: ='Tab 6 - Financial Model'!I34 -> 133459365.5 | H28: ='Tab 6 - Financial Model'!I40 -> 10265685.49 | I28: ='Tab 6 - Financial Model'!F3 -> 7438.16192
B29: Dollars | C29: Dollars | D29: Dollars | E29: Dollars | F29: Hectares | G29: Dollars | H29: Dollars | I29: Dollars

Sheet Tab 3 - Unlevied Land
A1: Police - Unlevied Land
A2: This tab provides background on different benefiting areas: the Established Area, unlevied land, and land that has already been levied. | Q2: Map 1. Off-site levy Established Area boundary and unlevied lands as of the end of 2022
A5: Map 1 to the right illustrates The City's Established Area, and Greenfield Area. The Established Area boundary was identified in the 2016 Off-site Levy Bylaw and contains lands that are fully developed, or have executed development agreement to allow future development. The purpose of the boundary is to determine benefiting areas in support of levy rate calculations (established or greenfield) for different parts of the city. Land shown in green includes both greenfield lands that have already been levied, unlevied, and non-developable land. Non-developable land is excluded from the determination of the number of hectares that have been levied or unlevied. This includes, for example: • The Transportation Utility Corridor (TUC), or road right-of-way for provincial expressways. • Environmental Reserve (slopes with a grade greater than 15%, natural water bodies, areas impacted by a 1:100 year flood). • Landfills. • Cemeteries.

Sheet Tab 4 - Infrastructure
B1: Police - Infrastructure
B3: This tab shows the basis of the calculation and assumptions used in assessing infrastructure allocation.
B5: Per facility capacity | C5: The service level for the greenfield is comparable with the service level in the Established Area (one facility is needed to service future 149,000 population needs).
B6: Capacity allocation | C6: Future greenfield population will be 100% benefitting with existing and future recreation facilities in the green area
B7: Construction year | C7: Determined based on when the new facility will be required as related to the pace of population growth
B9: Future need of facility and cost analysis
B11: Facility type | C11: Total greenfield ASP population (full buildout) See Tab 8 | D11: Existing/funded facility capacity in greenfield (people) See Tab 9 | E11: Additional facility capacity needed at full buildout (people) | F11: Per facility capacity (people) | G11: Number of facilities needed | H11: Per facility cost ($) | I11: Total cost ($)
B12: Police District Office | C12: ='Tab 8 - Population Forecast'!P13 -> 946835.3261 | D12: ='Tab 9 - Existing Capacity'!B3 -> 372500 | E12: =C12-D12 -> 574335.3261 | F12: 149000 | G12: =E12/F12 -> 3.854599504 | H12: =C29 -> 38610000 | I12: =G12*H12 -> 148826086.8
B14: Project name | C14: Construction completion date
B15: Police District Office- 1 | C15: 2029
B16: Police District Office- 2 | C16: 2040
B17: Police District Office- 3 | C17: 2049
B18: Police District Office- 4 | C18: 2058
B20: Police infrastructure cost estimates, 2023
B21: Component | C21: Cost | D21: Size | E21: Units | F21: Cost per unit
B22: Construction | C22: 26100000 | D22: 45000 | E22: sq. ft. | F22: =C22/D22 -> 580
B23: Consulting | C23: 2000000
B24: Site Development | C24: 2000000 | D24: 5 | E24: acres | F24: =C24/D24 -> 400000
B25: Contingency (10%) | C25: 3010000
B26: Land | C26: 5500000 | D26: 5 | E26: acres | F26: 1100000
B27: Public Art | C27: =1%*SUM(C22:C26) -> 386100
B29: Total levy eligible cost | C29: =SUM(C22:C26) -> 38610000
B30: Total cost | C30: =C29+C27 -> 38996100

Sheet Tab 5 - Benefit Allocation
A1: Police - Benefit Allocation
A3: This tab provides details on the benefit methodology. It shows the basis of the calculation and assumptions used in assessing benefit allocation.
A5: Benefit measurement | B5: Police benefit is measured using the share of population in benefiting areas.
A6: Benefiting areas | B6: Greenfield only: projects that support Area Structure Plans (ASPs) outside the Established Area boundary. The service level for the Greenfield Area is comparable with the service level in the Established Area. 100% of benefit is assigned to the greenfield ASP lands, and is split based on the forecast population in lands that have already signed development agreements and paid off-site levies (levied lands), and lands that have not yet signed development agreements and paid off-site levies (unlevied lands).
A7: Data source | B7: Source: Calgary Next 20: Population, Employment and Housing Projections, 2021, by Applications Management Consulting Ltd. A buildout forecast of population based on current growth trends.
A8: Source data details and assumptions | B8: • The forecast period ends in 2058. • Population forecast is assessed by Transportation Zones (TZs). Transportation Zones provide a useful and reasonable geographic division for forecasting. • Population densities are assumed to be even throughout TZs (e.g., where part of a TZ has paid levies, and part has not).
A9: Benefit allocation calculation | B9: Benefit = (Sum of forecast population in all unlevied lands)/(Sum of forecast population in all greenfield lands).
A15: Benefit share calculation
A17: Facility type | B17: Total greenfield ASP population (full buildout) See Tab 8 | C17: Total levied population See Tab 8 | D17: ASP unlevied population | E17: Benefit share of ASP unlevied population | F17: Costs to be levied for
A18: Police District Office | B18: ='Tab 8 - Population Forecast'!P13 -> 946835.3261 | C18: ='Tab 8 - Population Forecast'!P11 -> 529843.8882 | D18: ='Tab 8 - Population Forecast'!P12 -> 416991.4379 | E18: =ROUND(D18/B18,2) -> 0.44 | F18: =E18*'Tab 4 - Infrastructure'!C29 -> 16988400

Sheet Tab 6 - Financial Model
B1: Police OSL Financial Rate Model
B3: Police Levy Rate | F3: 7438.16192 | G3: End Value (CELL AU42): | I3: =AU42 -> 0
B4: How to calculate the levy rate: Once all variables have been set, the levy rate can be recalculated by running Excel's Goal Seek function (Data --> What-If Analysis --> Goal Seek) to calculate the levy rate in cell F3 by setting cell AU42 to 0 by changing the levy rate in cell F3. The model applies the value in cell F3 to the land absorption in row 29, to ensure that contributions from Development Agreements (in row 34) plus earned investment income offset total spending and ensure that the ending balance is zero (cell AU42), i.e., all revenues and spending have balanced. Variables impacting this calculation include: annual expenditures, land absorption rate, payment schedule (cells I36 to I39), and the escalation and discount rates (cells E25 and E26).
B10: Section 1: Expenditures
C12: Project name | D12: Capital cost | E12: Benefit type | F12: Benefit % | G12: Unlevied cost | H12: Previously levied/City share of cost | I12: Year projected project built | L12: 0 | M12: 1 | N12: 2 | O12: 3 | P12: 4 | Q12: 5 | R12: 6 | S12: 7 | T12: 8 | U12: 9 | V12: 10 | W12: 11 | X12: 12 | Y12: 13 | Z12: 14 | AA12: 15 | AB12: 16 | AC12: 17 | AD12: 18 | AE12: 19 | AF12: 20 | AG12: 21 | AH12: 22 | AI12: 23 | AJ12: 24 | AK12: 25 | AL12: 26 | AM12: 27 | AN12: 28 | AO12: 29 | AP12: 30 | AQ12: 31 | AR12: 32 | AS12: 33 | AT12: 34 | AU12: 35
L13: 2023 | M13: 2024 | N13: 2025 | O13: 2026 | P13: 2027 | Q13: 2028 | R13: 2029 | S13: 2030 | T13: 2031 | U13: 2032 | V13: 2033 | W13: 2034 | X13: 2035 | Y13: 2036 | Z13: 2037 | AA13: 2038 | AB13: 2039 | AC13: 2040 | AD13: 2041 | AE13: 2042 | AF13: 2043 | AG13: 2044 | AH13: 2045 | AI13: 2046 | AJ13: 2047 | AK13: 2048 | AL13: 2049 | AM13: 2050 | AN13: 2051 | AO13: 2052 | AP13: 2053 | AQ13: 2054 | AR13: 2055 | AS13: 2056 | AT13: 2057 | AU13: 2058
C15: ='Tab 4 - Infrastructure'!B15 -> Police District Office- 1 | D15: 38610000 | E15: Greenfield | F15: ='Tab 5 - Benefit Allocation'!$E$18 -> 0.44 | G15: =D15*F15 -> 16988400 | H15: =D15-G15 -> 21621600 | I15: =('Tab 4 - Infrastructure'!C15-'Tab 6 - Financial Model'!$M$13)+1 -> 6 | M15: =IF($I15=M$12,$G15,0)*(1+$E$25)^M$12 -> 0 | N15: 0 | O15: 0 | P15: 0 | Q15: 0 | R15: 20980117.6 | S15: 0 | T15: 0 | U15: 0 | V15: 0 | W15: =IF($I15=W$12,$G15,0)*(1+$E$25)^W$12 -> 0 | X15: 0 | Y15: 0 | Z15: 0 | AA15: 0 | AB15: 0 | AC15: 0 | AD15: 0 | AE15: 0 | AF15: 0 | AG15: =IF($I15=AG$12,$G15,0)*(1+$E$25)^AG$12 -> 0 | AH15: 0 | AI15: 0 | AJ15: 0 | AK15: 0 | AL15: 0 | AM15: 0 | AN15: 0 | AO15: 0 | AP15: 0 | AQ15: 0 | AR15: 0 | AS15: 0 | AT15: 0 | AU15: 0
C16: ='Tab 4 - Infrastructure'!B16 -> Police District Office- 2 | D16: 38610000 | E16: Greenfield | F16: ='Tab 5 - Benefit Allocation'!$E$18 -> 0.44 | G16: =D16*F16 -> 16988400 | H16: 21621600 | I16: =('Tab 4 - Infrastructure'!C16-'Tab 6 - Financial Model'!$M$13)+1 -> 17 | M16: 0 | N16: 0 | O16: 0 | P16: 0 | Q16: 0 | R16: 0 | S16: 0 | T16: 0 | U16: 0 | V16: 0 | W16: 0 | X16: 0 | Y16: 0 | Z16: 0 | AA16: 0 | AB16: 0 | AC16: 30891777.04 | AD16: 0 | AE16: 0 | AF16: 0 | AG16: 0 | AH16: 0 | AI16: 0 | AJ16: 0 | AK16: 0 | AL16: 0 | AM16: 0 | AN16: 0 | AO16: 0 | AP16: 0 | AQ16: 0 | AR16: 0 | AS16: 0 | AT16: 0 | AU16: 0
C17: ='Tab 4 - Infrastructure'!B17 -> Police District Office- 3 | D17: 38610000 | E17: Greenfield | F17: ='Tab 5 - Benefit Allocation'!$E$18 -> 0.44 | G17: 16988400 | H17: 21621600 | I17: =('Tab 4 - Infrastructure'!C17-'Tab 6 - Financial Model'!$M$13)+1 -> 26 | M17: 0 | N17: 0 | O17: 0 | P17: 0 | Q17: 0 | R17: 0 | S17: 0 | T17: 0 | U17: 0 | V17: 0 | W17: 0 | X17: 0 | Y17: 0 | Z17: 0 | AA17: 0 | AB17: 0 | AC17: 0 | AD17: 0 | AE17: 0 | AF17: 0 | AG17: 0 | AH17: 0 | AI17: 0 | AJ17: 0 | AK17: 0 | AL17: 42396114.06 | AM17: 0 | AN17: 0 | AO17: 0 | AP17: 0 | AQ17: 0 | AR17: 0 | AS17: 0 | AT17: 0 | AU17: 0
C18: ='Tab 4 - Infrastructure'!B18 -> Police District Office- 4 | D18: =38610000*0.85 -> 32818500 | E18: Greenfield | F18: ='Tab 5 - Benefit Allocation'!$E$18 -> 0.44 | G18: 14440140 | H18: 18378360 | I18: =('Tab 4 - Infrastructure'!C18-'Tab 6 - Financial Model'!$M$13)+1 -> 35 | M18: 0 | N18: 0 | O18: 0 | P18: 0 | Q18: 0 | R18: 0 | S18: 0 | T18: 0 | U18: 0 | V18: 0 | W18: 0 | X18: 0 | Y18: 0 | Z18: 0 | AA18: 0 | AB18: 0 | AC18: 0 | AD18: 0 | AE18: 0 | AF18: 0 | AG18: 0 | AH18: 0 | AI18: 0 | AJ18: 0 | AK18: 0 | AL18: 0 | AM18: 0 | AN18: 0 | AO18: 0 | AP18: 0 | AQ18: 0 | AR18: 0 | AS18: 0 | AT18: 0 | AU18: 49457041.98
M19: 0 | N19: 0 | O19: 0 | P19: 0 | Q19: 0 | R19: 0 | S19: 0 | T19: 0 | U19: 0 | V19: 0 | W19: 0 | X19: 0 | Y19: 0 | Z19: 0 | AA19: 0 | AB19: 0 | AC19: 0 | AD19: 0 | AE19: 0 | AF19: 0 | AG19: 0 | AH19: 0 | AI19: 0 | AJ19: 0 | AK19: 0 | AL19: 0 | AM19: 0 | AN19: 0 | AO19: 0 | AP19: 0 | AQ19: 0 | AR19: 0 | AS19: 0 | AT19: 0 | AU19: 0
C20: Total | D20: =SUM(D15:D18) -> 148648500 | G20: =SUM(G15:G18) -> 65405340 | H20: =SUM(H15:H18) -> 83243160 | M20: 0 | N20: 0 | O20: 0 | P20: 0 | Q20: 0 | R20: 0 | S20: 0 | T20: 0 | U20: 0 | V20: 0 | W20: 0 | X20: 0 | Y20: 0 | Z20: 0 | AA20: 0 | AB20: 0 | AC20: 0 | AD20: 0 | AE20: 0 | AF20: 0 | AG20: 0 | AH20: 0 | AI20: 0 | AJ20: 0 | AK20: 0 | AL20: 0 | AM20: 0 | AN20: 0 | AO20: 0 | AP20: 0 | AQ20: 0 | AR20: 0 | AS20: 0 | AT20: 0 | AU20: 0
M21: 0 | N21: 0 | O21: 0 | P21: 0 | Q21: 0 | R21: 0 | S21: 0 | T21: 0 | U21: 0 | V21: 0 | W21: 0 | X21: 0 | Y21: 0 | Z21: 0 | AA21: 0 | AB21: 0 | AC21: 0 | AD21: 0 | AE21: 0 | AF21: 0 | AG21: 0 | AH21: 0 | AI21: 0 | AJ21: 0 | AK21: 0 | AL21: 0 | AM21: 0 | AN21: 0 | AO21: 0 | AP21: 0 | AQ21: 0 | AR21: 0 | AS21: 0 | AT21: 0 | AU21: 0
H23: Future value of unlevied cost | I23: =SUM(M23:AU23) -> 143725050.7 | M23: =SUM(M15:M21) -> 0 | N23: 0 | O23: 0 | P23: 0 | Q23: 0 | R23: 20980117.6 | S23: 0 | T23: 0 | U23: 0 | V23: 0 | W23: 0 | X23: 0 | Y23: 0 | Z23: 0 | AA23: 0 | AB23: 0 | AC23: 30891777.04 | AD23: 0 | AE23: 0 | AF23: 0 | AG23: 0 | AH23: 0 | AI23: 0 | AJ23: 0 | AK23: 0 | AL23: 42396114.06 | AM23: 0 | AN23: 0 | AO23: 0 | AP23: 0 | AQ23: 0 | AR23: 0 | AS23: 0 | AT23: 0 | AU23: 49457041.98
C24: Rates used to calculate future value and present value of unlevied cost: | H24: Discounted value of unlevied cost | I24: =SUM(M24:AU24) -> 57025102.11 | M24: =(SUM(M15:M21))/((1+$E$26)^M12) -> 0 | N24: 0 | O24: 0 | P24: 0 | Q24: 0 | R24: 16306168.04 | S24: 0 | T24: 0 | U24: 0 | V24: 0 | W24: 0 | X24: 0 | Y24: 0 | Z24: 0 | AA24: 0 | AB24: 0 | AC24: 15125771.83 | AD24: 0 | AE24: 0 | AF24: 0 | AG24: 0 | AH24: 0 | AI24: 0 | AJ24: 0 | AK24: 0 | AL24: 14223834.74 | AM24: 0 | AN24: 0 | AO24: 0 | AP24: 0 | AQ24: 0 | AR24: 0 | AS24: 0 | AT24: 0 | AU24: 11369327.5
C25: Table: Escalation and Discount Rates | D25: Escalation Rate | E25: 0.0358
C26: Source: City Treasury, March 2023 | D26: Discount Rate | E26: 0.0429
B28: Section 2: Land Absorption and Yearly Cash Flows
H29: Hectares that sign development agreements (DAs) | L29: 290 | M29: 309 | N29: 327 | O29: 321 | P29: 321 | Q29: 318.480898 | R29: 315.9617959 | S29: 313.4426939 | T29: 310.9235918 | U29: 308.4044898 | V29: 305.8853878 | W29: 303.3662857 | X29: 300.8471837 | Y29: 298.3280816 | Z29: 295.8089796 | AA29: 293.2898776 | AB29: 290.7707755 | AC29: 288.2516735 | AD29: 285.7325714 | AE29: 283.2134694 | AF29: 280.6943673 | AG29: 278.1752653 | AH29: 275.6561633 | AI29: 273.1370612 | AJ29: 270.6179592 | AK29: 268.0988571 | AL29: 265.5797551 | AM29: 263.0606531 | AN29: 225.741551 | AO29: 223.222449 | AP29: 220.7033469 | AQ29: 218.1842449 | AR29: 215.6651429
H30: Cumulative hectares | M30: =M29 -> 309 | N30: =M30+N29 -> 636 | O30: =N30+O29 -> 957 | P30: =O30+P29 -> 1278 | Q30: 1596.480898 | R30: 1912.442694 | S30: 2225.885388 | T30: 2536.80898 | U30: 2845.213469 | V30: 3151.098857 | W30: 3454.465143 | X30: 3755.312327 | Y30: 4053.640408 | Z30: 4349.449388 | AA30: 4642.739265 | AB30: 4933.510041 | AC30: 5221.761714 | AD30: 5507.494286 | AE30: 5790.707755 | AF30: 6071.402122 | AG30: 6349.577388 | AH30: 6625.233551 | AI30: 6898.370612 | AJ30: 7168.988571 | AK30: 7437.087429 | AL30: 7702.667184 | AM30: 7965.727837 | AN30: 8191.469388 | AO30: 8414.691837 | AP30: 8635.395184 | AQ30: 8853.579429 | AR30: 9069.244571 | AS30: 9069.244571 | AT30: 9069.244571 | AU30: 9069.244571
D33: Year | E33: Unlevied hectares | H33: Yearly cash-flow analysis ($):
C34: Unlevied hectares at Jan 1, 2023 | D34: Subtotal | E34: =9069+290 -> 9359 | H34: Contributions from signed DAs | I34: =SUM(K34:AU34) -> 133459365.5 | M34: =($F$3*M29)*(1+$E$26)^L12 -> 2298392.033 | N34: 2536623.715 | O34: 2596904.599 | P34: 2708311.806 | Q34: 2802332.652 | R34: 2899436.082 | S34: 2999713.545 | T34: 3103258.664 | U34: 3210167.25 | V34: 3320537.325 | W34: 3434469.129 | X34: 3552065.132 | Y34: 3673430.04 | Z34: 3798670.801 | AA34: 3927896.602 | AB34: 4061218.864 | AC34: 4198751.237 | AD34: 4340609.58 | AE34: 4486911.945 | AF34: 4637778.551 | AG34: 4793331.755 | AH34: 4953696.009 | AI34: 5118997.821 | AJ34: 5289365.696 | AK34: 5464930.08 | AL34: 5645823.287 | AM34: 5832179.42 | AN34: 5219503.032 | AO34: 5382675.336 | AP34: 5550241.798 | AQ34: 5722279.133 | AR34: 5898862.551 | AS34: 0 | AT34: 0 | AU34: 0
C35: Forecast hectares in executed DAs | D35: 2023 | E35: 290 | H35: Beginning account balance, $ | M35: =L42 -> 0 | N35: =M42 -> 0 | O35: 0 | P35: 0 | Q35: 2347692.542 | R35: 5039442.846 | S35: -13521897.98 | T35: -11335582.3 | U35: -8959436.097 | V35: -6382166.92 | W35: -3591904.48 | X35: -576173.6201 | Y35: 2678133.869 | Z35: 6184788.663 | AA35: 9958254.589 | AB35: 14013720.64 | AC35: 18367134.37 | AD35: -8519168.937 | AE35: -4872491.3 | AF35: -933189.168 | AG35: 3315591.468 | AH35: 7891545.998 | AI35: 12813249.53 | AJ35: 18100196.83 | AK35: 23772844 | AL35: 29852651.79 | AM35: -6943379.823 | AN35: -1838428.228 | AO35: 3664856.032 | AP35: 9589004.553 | AQ35: 15957652.52 | AR35: 21973697.18 | AS35: 28414502.51 | AT35: 35302779.16 | AU35: 42662290.4
C36: Denominator: Unlevied hectares at Jan 1, 2024 | D36: Subtotal | E36: =E34-E35 -> 9069 | G36: Levy payment schedule after a DA is signed. | H36: Year 0 | I36: 0 | M36: =M34*$I$36 -> 0 | N36: 0 | O36: 0 | P36: 0 | Q36: 0 | R36: 0 | S36: 0 | T36: 0 | U36: 0 | V36: 0 | W36: 0 | X36: 0 | Y36: 0 | Z36: 0 | AA36: 0 | AB36: 0 | AC36: 0 | AD36: 0 | AE36: 0 | AF36: 0 | AG36: 0 | AH36: 0 | AI36: 0 | AJ36: 0 | AK36: 0 | AL36: 0 | AM36: 0 | AN36: 0 | AO36: 0 | AP36: 0 | AQ36: 0 | AR36: 0 | AS36: 0 | AT36: 0 | AU36: 0
C37: Forecast hectares in executed DAs | D37: 2024 | E37: 309 | H37: Year 1 | I37: 0 | N37: =M34*$I$37 -> 0 | O37: 0 | P37: 0 | Q37: 0 | R37: 0 | S37: 0 | T37: 0 | U37: 0 | V37: 0 | W37: 0 | X37: 0 | Y37: 0 | Z37: 0 | AA37: 0 | AB37: 0 | AC37: 0 | AD37: 0 | AE37: 0 | AF37: 0 | AG37: 0 | AH37: 0 | AI37: 0 | AJ37: 0 | AK37: 0 | AL37: 0 | AM37: 0 | AN37: 0 | AO37: 0 | AP37: 0 | AQ37: 0 | AR37: 0 | AS37: 0 | AT37: 0 | AU37: 0
C38: Forecast hectares in executed DAs | D38: 2025 | E38: 327 | H38: Year 2 | I38: 0 | O38: =M34*$I$38 -> 0 | P38: 0 | Q38: 0 | R38: 0 | S38: 0 | T38: 0 | U38: 0 | V38: 0 | W38: 0 | X38: 0 | Y38: 0 | Z38: 0 | AA38: 0 | AB38: 0 | AC38: 0 | AD38: 0 | AE38: 0 | AF38: 0 | AG38: 0 | AH38: 0 | AI38: 0 | AJ38: 0 | AK38: 0 | AL38: 0 | AM38: 0 | AN38: 0 | AO38: 0 | AP38: 0 | AQ38: 0 | AR38: 0 | AS38: 0 | AT38: 0 | AU38: 0
C39: Forecast hectares in executed DAs | D39: 2026 & 2027 | E39: 321 | H39: Year 3 | I39: 1 | P39: =M34*$I$39 -> 2298392.033 | Q39: 2536623.715 | R39: 2596904.599 | S39: 2708311.806 | T39: 2802332.652 | U39: 2899436.082 | V39: 2999713.545 | W39: 3103258.664 | X39: 3210167.25 | Y39: 3320537.325 | Z39: 3434469.129 | AA39: 3552065.132 | AB39: 3673430.04 | AC39: 3798670.801 | AD39: 3927896.602 | AE39: 4061218.864 | AF39: 4198751.237 | AG39: 4340609.58 | AH39: 4486911.945 | AI39: 4637778.551 | AJ39: 4793331.755 | AK39: 4953696.009 | AL39: 5118997.821 | AM39: 5289365.696 | AN39: 5464930.08 | AO39: 5645823.287 | AP39: 5832179.42 | AQ39: 5219503.032 | AR39: 5382675.336 | AS39: 5550241.798 | AT39: 5722279.133 | AU39: 5898862.551
C40: Hectares in executed DAs from 2023 to 2027 are per Corporate Economics Fall 2022 forecast. The remaining 7,791 hectares of unlevied land are assumed to be absorbed in a slowly decreasing trend, with approximately 2.54 ha fewer per year. This starts from 318.5 hectares in 2028 and finishes with 216 hectares in 2055. | D40: 2028 - 2055 | E40: Declining | H40: Investment income (interest expense), $ | I40: =SUM(P40:AU40) -> 10265685.49 | P40: =(P35+(SUM(P36:P39)*$E$50))*$E$26-(P23*$E$50*$E$26) -> 49300.50911 | Q40: 155126.5887 | R40: -178127.8208 | S40: -521996.1349 | T40: -426186.4454 | U40: -322166.9046 | V40: -209451.1053 | W40: -87527.80385 | X40: 44140.23922 | Y40: 186117.4686 | Z40: 338996.7965 | AA40: 503400.9189 | AB40: 679983.6898 | AC40: 206802.9356 | AD40: -281218.9653 | AE40: -121916.7321 | AF40: 50029.39873 | AG40: 235344.9495 | AH40: 434791.5845 | AI40: 649168.7546 | AJ40: 879315.4102 | AK40: 1126111.787 | AL40: 481084.6187 | AM40: -184414.1002 | AN40: 38354.17926 | AO40: 278325.2333 | AP40: 536468.5439 | AQ40: 796541.633 | AR40: 1058129.995 | AS40: 1338034.844 | AT40: 1637232.113 | AU40: 895889.3095
H41: Future value of cash inflows, $ | I41: =SUM(I34:I40) -> 143725052
H42: Ending account Balance, $ | M42: =M35+M36+M37+M38+M39+M40-M23 -> 0 | N42: 0 | O42: 0 | P42: =P35+P36+P37+P38+P39+P40-P23 -> 2347692.542 | Q42: =Q35+Q36+Q37+Q38+Q39+Q40-Q23 -> 5039442.846 | R42: -13521897.98 | S42: -11335582.3 | T42: -8959436.097 | U42: -6382166.92 | V42: -3591904.48 | W42: -576173.6201 | X42: 2678133.869 | Y42: 6184788.663 | Z42: 9958254.589 | AA42: 14013720.64 | AB42: 18367134.37 | AC42: -8519168.937 | AD42: -4872491.3 | AE42: -933189.168 | AF42: 3315591.468 | AG42: 7891545.998 | AH42: 12813249.53 | AI42: 18100196.83 | AJ42: 23772844 | AK42: 29852651.79 | AL42: -6943379.823 | AM42: -1838428.228 | AN42: 3664856.032 | AO42: 9589004.553 | AP42: 15957652.52 | AQ42: 21973697.18 | AR42: 28414502.51 | AS42: 35302779.16 | AT42: 42662290.4 | AU42: =ROUND((AU35+AU36+AU37+AU38+AU39+AU40-AU23),0) -> 0
C47: Note: Cash flow timing is for inflows, 1=beginning of year; 0.5 is straight line; 0.0 is end of year. This is used to calculate investment income on expenditures within a given year.
C50: Cashflow timing factor | E50: 0.5
A52: End of WP

Sheet Tab 7 - Bylaw Continuity
A1: Police OSL Continuity
A3: This sheet is for information purposes only. It shows the continuity of expenditures, developer contributions, investment income, and fund balances for both the 2016 and 2024 Off-site Levies Bylaws. Any final investment income earned in the final year will be applied to expenditures in that year.
A6: Light green references the 2016 bylaw
A7: Light orange references the 2024 bylaw
A9: 2024 Levy Rate | D9: Year # | H9: 0 | I9: 1 | J9: 2 | K9: 3 | L9: 4 | M9: 5 | N9: 6 | O9: 7 | P9: 8 | Q9: 9 | R9: 10 | S9: 11 | T9: 12 | U9: 13 | V9: 14 | W9: 15 | X9: 16 | Y9: 17 | Z9: 18 | AA9: 19 | AB9: 20 | AC9: 21 | AD9: 22 | AE9: 23 | AF9: 24 | AG9: 25 | AH9: 26 | AI9: 27 | AJ9: 28 | AK9: 29 | AL9: 30 | AM9: 31 | AN9: 32 | AO9: 33 | AP9: 34 | AQ9: 35
A10: ='Tab 6 - Financial Model'!F3 -> 7438.16192 | D10: Year | E10: 2020 | F10: 2021 | G10: 2022 | H10: 2023 | I10: 2024 | J10: 2025 | K10: 2026 | L10: 2027 | M10: 2028 | N10: 2029 | O10: 2030 | P10: 2031 | Q10: 2032 | R10: 2033 | S10: 2034 | T10: 2035 | U10: 2036 | V10: 2037 | W10: 2038 | X10: 2039 | Y10: 2040 | Z10: 2041 | AA10: 2042 | AB10: 2043 | AC10: 2044 | AD10: 2045 | AE10: 2046 | AF10: 2047 | AG10: 2048 | AH10: 2049 | AI10: 2050 | AJ10: 2051 | AK10: 2052 | AL10: 2053 | AM10: 2054 | AN10: 2055 | AO10: 2056 | AP10: 2057 | AQ10: 2058
A12: Expenditures ($)
A13: Supports projects in progress. | B13: Committed OSL expenditures (2016 Bylaw) | L13: 32500000
A15: 1 | B15: ='Tab 6 - Financial Model'!C15 -> Police District Office- 1 | D15: =SUMIF('Tab 6 - Financial Model'!$C$15:$C$18,'Tab 7 - Bylaw Continuity'!B15,'Tab 6 - Financial Model'!$I$15:$I$18) -> 6 | E15: =IF(AND($D15=E$9,$B15='Tab 6 - Financial Model'!$C15),('Tab 6 - Financial Model'!$D15*(1+'Tab 6 - Financial Model'!$E$25)^'Tab 7 - Bylaw Continuity'!E$9),0) -> 0 | F15: =IF(AND($D15=F$9,$B15='Tab 6 - Financial Model'!$C15),('Tab 6 - Financial Model'!$D15*(1+'Tab 6 - Financial Model'!$E$25)^'Tab 7 - Bylaw Continuity'!F$9),0) -> 0 | G15: =IF(AND($D15=G$9,$B15='Tab 6 - Financial Model'!$C15),('Tab 6 - Financial Model'!$D15*(1+'Tab 6 - Financial Model'!$E$25)^'Tab 7 - Bylaw Continuity'!G$9),0) -> 0 | H15: =IF(AND($D15=H$9,$B15='Tab 6 - Financial Model'!$C15),('Tab 6 - Financial Model'!$D15*(1+'Tab 6 - Financial Model'!$E$25)^'Tab 7 - Bylaw Continuity'!H$9),0) -> 0 | I15: =IF(AND($D15=I$9,$B15='Tab 6 - Financial Model'!$C15),('Tab 6 - Financial Model'!$D15*(1+'Tab 6 - Financial Model'!$E$25)^'Tab 7 - Bylaw Continuity'!I$9),0) -> 0 | J15: =IF(AND($D15=J$9,$B15='Tab 6 - Financial Model'!$C15),('Tab 6 - Financial Model'!$D15*(1+'Tab 6 - Financial Model'!$E$25)^'Tab 7 - Bylaw Continuity'!J$9),0) -> 0 | K15: =IF(AND($D15=K$9,$B15='Tab 6 - Financial Model'!$C15),('Tab 6 - Financial Model'!$D15*(1+'Tab 6 - Financial Model'!$E$25)^'Tab 7 - Bylaw Continuity'!K$9),0) -> 0 | L15: =IF(AND($D15=L$9,$B15='Tab 6 - Financial Model'!$C15),('Tab 6 - Financial Model'!$D15*(1+'Tab 6 - Financial Model'!$E$25)^'Tab 7 - Bylaw Continuity'!L$9),0) -> 0 | M15: =IF(AND($D15=M$9,$B15='Tab 6 - Financial Model'!$C15),('Tab 6 - Financial Model'!$D15*(1+'Tab 6 - Financial Model'!$E$25)^'Tab 7 - Bylaw Continuity'!M$9),0) -> 0 | N15: =IF(AND($D15=N$9,$B15='Tab 6 - Financial Model'!$C15),('Tab 6 - Financial Model'!$D15*(1+'Tab 6 - Financial Model'!$E$25)^'Tab 7 - Bylaw Continuity'!N$9),0) -> 47682085.45 | O15: =IF(AND($D15=O$9,$B15='Tab 6 - Financial Model'!$C15),('Tab 6 - Financial Model'!$D15*(1+'Tab 6 - Financial Model'!$E$25)^'Tab 7 - Bylaw Continuity'!O$9),0) -> 0 | P15: =IF(AND($D15=P$9,$B15='Tab 6 - Financial Model'!$C15),('Tab 6 - Financial Model'!$D15*(1+'Tab 6 - Financial Model'!$E$25)^'Tab 7 - Bylaw Continuity'!P$9),0) -> 0 | Q15: =IF(AND($D15=Q$9,$B15='Tab 6 - Financial Model'!$C15),('Tab 6 - Financial Model'!$D15*(1+'Tab 6 - Financial Model'!$E$25)^'Tab 7 - Bylaw Continuity'!Q$9),0) -> 0 | R15: =IF(AND($D15=R$9,$B15='Tab 6 - Financial Model'!$C15),('Tab 6 - Financial Model'!$D15*(1+'Tab 6 - Financial Model'!$E$25)^'Tab 7 - Bylaw Continuity'!R$9),0) -> 0 | S15: =IF(AND($D15=S$9,$B15='Tab 6 - Financial Model'!$C15),('Tab 6 - Financial Model'!$D15*(1+'Tab 6 - Financial Model'!$E$25)^'Tab 7 - Bylaw Continuity'!S$9),0) -> 0 | T15: =IF(AND($D15=T$9,$B15='Tab 6 - Financial Model'!$C15),('Tab 6 - Financial Model'!$D15*(1+'Tab 6 - Financial Model'!$E$25)^'Tab 7 - Bylaw Continuity'!T$9),0) -> 0 | U15: =IF(AND($D15=U$9,$B15='Tab 6 - Financial Model'!$C15),('Tab 6 - Financial Model'!$D15*(1+'Tab 6 - Financial Model'!$E$25)^'Tab 7 - Bylaw Continuity'!U$9),0) -> 0 | V15: =IF(AND($D15=V$9,$B15='Tab 6 - Financial Model'!$C15),('Tab 6 - Financial Model'!$D15*(1+'Tab 6 - Financial Model'!$E$25)^'Tab 7 - Bylaw Continuity'!V$9),0) -> 0 | W15: =IF(AND($D15=W$9,$B15='Tab 6 - Financial Model'!$C15),('Tab 6 - Financial Model'!$D15*(1+'Tab 6 - Financial Model'!$E$25)^'Tab 7 - Bylaw Continuity'!W$9),0) -> 0 | X15: =IF(AND($D15=X$9,$B15='Tab 6 - Financial Model'!$C15),('Tab 6 - Financial Model'!$D15*(1+'Tab 6 - Financial Model'!$E$25)^'Tab 7 - Bylaw Continuity'!X$9),0) -> 0 | Y15: =IF(AND($D15=Y$9,$B15='Tab 6 - Financial Model'!$C15),('Tab 6 - Financial Model'!$D15*(1+'Tab 6 - Financial Model'!$E$25)^'Tab 7 - Bylaw Continuity'!Y$9),0) -> 0 | Z15: =IF(AND($D15=Z$9,$B15='Tab 6 - Financial Model'!$C15),('Tab 6 - Financial Model'!$D15*(1+'Tab 6 - Financial Model'!$E$25)^'Tab 7 - Bylaw Continuity'!Z$9),0) -> 0 | AA15: =IF(AND($D15=AA$9,$B15='Tab 6 - Financial Model'!$C15),('Tab 6 - Financial Model'!$D15*(1+'Tab 6 - Financial Model'!$E$25)^'Tab 7 - Bylaw Continuity'!AA$9),0) -> 0 | AB15: =IF(AND($D15=AB$9,$B15='Tab 6 - Financial Model'!$C15),('Tab 6 - Financial Model'!$D15*(1+'Tab 6 - Financial Model'!$E$25)^'Tab 7 - Bylaw Continuity'!AB$9),0) -> 0 | AC15: =IF(AND($D15=AC$9,$B15='Tab 6 - Financial Model'!$C15),('Tab 6 - Financial Model'!$D15*(1+'Tab 6 - Financial Model'!$E$25)^'Tab 7 - Bylaw Continuity'!AC$9),0) -> 0 | AD15: =IF(AND($D15=AD$9,$B15='Tab 6 - Financial Model'!$C15),('Tab 6 - Financial Model'!$D15*(1+'Tab 6 - Financial Model'!$E$25)^'Tab 7 - Bylaw Continuity'!AD$9),0) -> 0 | AE15: =IF(AND($D15=AE$9,$B15='Tab 6 - Financial Model'!$C15),('Tab 6 - Financial Model'!$D15*(1+'Tab 6 - Financial Model'!$E$25)^'Tab 7 - Bylaw Continuity'!AE$9),0) -> 0 | AF15: =IF(AND($D15=AF$9,$B15='Tab 6 - Financial Model'!$C15),('Tab 6 - Financial Model'!$D15*(1+'Tab 6 - Financial Model'!$E$25)^'Tab 7 - Bylaw Continuity'!AF$9),0) -> 0 | AG15: =IF(AND($D15=AG$9,$B15='Tab 6 - Financial Model'!$C15),('Tab 6 - Financial Model'!$D15*(1+'Tab 6 - Financial Model'!$E$25)^'Tab 7 - Bylaw Continuity'!AG$9),0) -> 0 | AH15: =IF(AND($D15=AH$9,$B15='Tab 6 - Financial Model'!$C15),('Tab 6 - Financial Model'!$D15*(1+'Tab 6 - Financial Model'!$E$25)^'Tab 7 - Bylaw Continuity'!AH$9),0) -> 0 | AI15: =IF(AND($D15=AI$9,$B15='Tab 6 - Financial Model'!$C15),('Tab 6 - Financial Model'!$D15*(1+'Tab 6 - Financial Model'!$E$25)^'Tab 7 - Bylaw Continuity'!AI$9),0) -> 0 | AJ15: =IF(AND($D15=AJ$9,$B15='Tab 6 - Financial Model'!$C15),('Tab 6 - Financial Model'!$D15*(1+'Tab 6 - Financial Model'!$E$25)^'Tab 7 - Bylaw Continuity'!AJ$9),0) -> 0 | AK15: =IF(AND($D15=AK$9,$B15='Tab 6 - Financial Model'!$C15),('Tab 6 - Financial Model'!$D15*(1+'Tab 6 - Financial Model'!$E$25)^'Tab 7 - Bylaw Continuity'!AK$9),0) -> 0 | AL15: =IF(AND($D15=AL$9,$B15='Tab 6 - Financial Model'!$C15),('Tab 6 - Financial Model'!$D15*(1+'Tab 6 - Financial Model'!$E$25)^'Tab 7 - Bylaw Continuity'!AL$9),0) -> 0 | AM15: =IF(AND($D15=AM$9,$B15='Tab 6 - Financial Model'!$C15),('Tab 6 - Financial Model'!$D15*(1+'Tab 6 - Financial Model'!$E$25)^'Tab 7 - Bylaw Continuity'!AM$9),0) -> 0 | AN15: =IF(AND($D15=AN$9,$B15='Tab 6 - Financial Model'!$C15),('Tab 6 - Financial Model'!$D15*(1+'Tab 6 - Financial Model'!$E$25)^'Tab 7 - Bylaw Continuity'!AN$9),0) -> 0 | AO15: =IF(AND($D15=AO$9,$B15='Tab 6 - Financial Model'!$C15),('Tab 6 - Financial Model'!$D15*(1+'Tab 6 - Financial Model'!$E$25)^'Tab 7 - Bylaw Continuity'!AO$9),0) -> 0 | AP15: =IF(AND($D15=AP$9,$B15='Tab 6 - Financial Model'!$C15),('Tab 6 - Financial Model'!$D15*(1+'Tab 6 - Financial Model'!$E$25)^'Tab 7 - Bylaw Continuity'!AP$9),0) -> 0 | AQ15: =IF(AND($D15=AQ$9,$B15='Tab 6 - Financial Model'!$C15),('Tab 6 - Financial Model'!$D15*(1+'Tab 6 - Financial Model'!$E$25)^'Tab 7 - Bylaw Continuity'!AQ$9),0) -> 0
B16: Expenditures from 2024 Bylaw | D16: =SUMIF('Tab 6 - Financial Model'!$C$15:$C$18,'Tab 7 - Bylaw Continuity'!B15,'Tab 6 - Financial Model'!$F$15:$F$18) -> 0.44 | E16: =E15*$D16 -> 0 | F16: =F15*$D16 -> 0 | G16: 0 | H16: 0 | I16: 0 | J16: 0 | K16: 0 | L16: 0 | M16: 0 | N16: 20980117.6 | O16: 0 | P16: 0 | Q16: 0 | R16: 0 | S16: 0 | T16: 0 | U16: 0 | V16: 0 | W16: 0 | X16: 0 | Y16: 0 | Z16: 0 | AA16: 0 | AB16: 0 | AC16: 0 | AD16: 0 | AE16: 0 | AF16: 0 | AG16: 0 | AH16: 0 | AI16: 0 | AJ16: 0 | AK16: 0 | AL16: 0 | AM16: 0 | AN16: 0 | AO16: 0 | AP16: 0 | AQ16: 0
B17: Remainder: needed from other sources | E17: =E15-E16 -> 0 | F17: =F15-F16 -> 0 | G17: 0 | H17: 0 | I17: 0 | J17: 0 | K17: 0 | L17: 0 | M17: 0 | N17: 26701967.85 | O17: 0 | P17: 0 | Q17: 0 | R17: 0 | S17: 0 | T17: 0 | U17: 0 | V17: 0 | W17: 0 | X17: 0 | Y17: 0 | Z17: 0 | AA17: 0 | AB17: 0 | AC17: 0 | AD17: 0 | AE17: 0 | AF17: 0 | AG17: 0 | AH17: 0 | AI17: 0 | AJ17: 0 | AK17: 0 | AL17: 0 | AM17: 0 | AN17: 0 | AO17: 0 | AP17: 0 | AQ17: 0
A18: 2 | B18: ='Tab 6 - Financial Model'!C16 -> Police District Office- 2 | D18: =SUMIF('Tab 6 - Financial Model'!$C$15:$C$18,'Tab 7 - Bylaw Continuity'!B18,'Tab 6 - Financial Model'!$I$15:$I$18) -> 17 | E18: =IF(AND($D18=E$9,$B18='Tab 6 - Financial Model'!$C16),('Tab 6 - Financial Model'!$D16*(1+'Tab 6 - Financial Model'!$E$25)^'Tab 7 - Bylaw Continuity'!E$9),0) -> 0 | F18: =IF(AND($D18=F$9,$B18='Tab 6 - Financial Model'!$C16),('Tab 6 - Financial Model'!$D16*(1+'Tab 6 - Financial Model'!$E$25)^'Tab 7 - Bylaw Continuity'!F$9),0) -> 0 | G18: =IF(AND($D18=G$9,$B18='Tab 6 - Financial Model'!$C16),('Tab 6 - Financial Model'!$D16*(1+'Tab 6 - Financial Model'!$E$25)^'Tab 7 - Bylaw Continuity'!G$9),0) -> 0 | H18: =IF(AND($D18=H$9,$B18='Tab 6 - Financial Model'!$C16),('Tab 6 - Financial Model'!$D16*(1+'Tab 6 - Financial Model'!$E$25)^'Tab 7 - Bylaw Continuity'!H$9),0) -> 0 | I18: =IF(AND($D18=I$9,$B18='Tab 6 - Financial Model'!$C16),('Tab 6 - Financial Model'!$D16*(1+'Tab 6 - Financial Model'!$E$25)^'Tab 7 - Bylaw Continuity'!I$9),0) -> 0 | J18: =IF(AND($D18=J$9,$B18='Tab 6 - Financial Model'!$C16),('Tab 6 - Financial Model'!$D16*(1+'Tab 6 - Financial Model'!$E$25)^'Tab 7 - Bylaw Continuity'!J$9),0) -> 0 | K18: =IF(AND($D18=K$9,$B18='Tab 6 - Financial Model'!$C16),('Tab 6 - Financial Model'!$D16*(1+'Tab 6 - Financial Model'!$E$25)^'Tab 7 - Bylaw Continuity'!K$9),0) -> 0 | L18: =IF(AND($D18=L$9,$B18='Tab 6 - Financial Model'!$C16),('Tab 6 - Financial Model'!$D16*(1+'Tab 6 - Financial Model'!$E$25)^'Tab 7 - Bylaw Continuity'!L$9),0) -> 0 | M18: =IF(AND($D18=M$9,$B18='Tab 6 - Financial Model'!$C16),('Tab 6 - Financial Model'!$D16*(1+'Tab 6 - Financial Model'!$E$25)^'Tab 7 - Bylaw Continuity'!M$9),0) -> 0 | N18: =IF(AND($D18=N$9,$B18='Tab 6 - Financial Model'!$C16),('Tab 6 - Financial Model'!$D16*(1+'Tab 6 - Financial Model'!$E$25)^'Tab 7 - Bylaw Continuity'!N$9),0) -> 0 | O18: =IF(AND($D18=O$9,$B18='Tab 6 - Financial Model'!$C16),('Tab 6 - Financial Model'!$D16*(1+'Tab 6 - Financial Model'!$E$25)^'Tab 7 - Bylaw Continuity'!O$9),0) -> 0 | P18: =IF(AND($D18=P$9,$B18='Tab 6 - Financial Model'!$C16),('Tab 6 - Financial Model'!$D16*(1+'Tab 6 - Financial Model'!$E$25)^'Tab 7 - Bylaw Continuity'!P$9),0) -> 0 | Q18: =IF(AND($D18=Q$9,$B18='Tab 6 - Financial Model'!$C16),('Tab 6 - Financial Model'!$D16*(1+'Tab 6 - Financial Model'!$E$25)^'Tab 7 - Bylaw Continuity'!Q$9),0) -> 0 | R18: =IF(AND($D18=R$9,$B18='Tab 6 - Financial Model'!$C16),('Tab 6 - Financial Model'!$D16*(1+'Tab 6 - Financial Model'!$E$25)^'Tab 7 - Bylaw Continuity'!R$9),0) -> 0 | S18: =IF(AND($D18=S$9,$B18='Tab 6 - Financial Model'!$C16),('Tab 6 - Financial Model'!$D16*(1+'Tab 6 - Financial Model'!$E$25)^'Tab 7 - Bylaw Continuity'!S$9),0) -> 0 | T18: =IF(AND($D18=T$9,$B18='Tab 6 - Financial Model'!$C16),('Tab 6 - Financial Model'!$D16*(1+'Tab 6 - Financial Model'!$E$25)^'Tab 7 - Bylaw Continuity'!T$9),0) -> 0 | U18: =IF(AND($D18=U$9,$B18='Tab 6 - Financial Model'!$C16),('Tab 6 - Financial Model'!$D16*(1+'Tab 6 - Financial Model'!$E$25)^'Tab 7 - Bylaw Continuity'!U$9),0) -> 0 | V18: =IF(AND($D18=V$9,$B18='Tab 6 - Financial Model'!$C16),('Tab 6 - Financial Model'!$D16*(1+'Tab 6 - Financial Model'!$E$25)^'Tab 7 - Bylaw Continuity'!V$9),0) -> 0 | W18: =IF(AND($D18=W$9,$B18='Tab 6 - Financial Model'!$C16),('Tab 6 - Financial Model'!$D16*(1+'Tab 6 - Financial Model'!$E$25)^'Tab 7 - Bylaw Continuity'!W$9),0) -> 0 | X18: =IF(AND($D18=X$9,$B18='Tab 6 - Financial Model'!$C16),('Tab 6 - Financial Model'!$D16*(1+'Tab 6 - Financial Model'!$E$25)^'Tab 7 - Bylaw Continuity'!X$9),0) -> 0 | Y18: =IF(AND($D18=Y$9,$B18='Tab 6 - Financial Model'!$C16),('Tab 6 - Financial Model'!$D16*(1+'Tab 6 - Financial Model'!$E$25)^'Tab 7 - Bylaw Continuity'!Y$9),0) -> 70208584.19 | Z18: =IF(AND($D18=Z$9,$B18='Tab 6 - Financial Model'!$C16),('Tab 6 - Financial Model'!$D16*(1+'Tab 6 - Financial Model'!$E$25)^'Tab 7 - Bylaw Continuity'!Z$9),0) -> 0 | AA18: =IF(AND($D18=AA$9,$B18='Tab 6 - Financial Model'!$C16),('Tab 6 - Financial Model'!$D16*(1+'Tab 6 - Financial Model'!$E$25)^'Tab 7 - Bylaw Continuity'!AA$9),0) -> 0 | AB18: =IF(AND($D18=AB$9,$B18='Tab 6 - Financial Model'!$C16),('Tab 6 - Financial Model'!$D16*(1+'Tab 6 - Financial Model'!$E$25)^'Tab 7 - Bylaw Continuity'!AB$9),0) -> 0 | AC18: =IF(AND($D18=AC$9,$B18='Tab 6 - Financial Model'!$C16),('Tab 6 - Financial Model'!$D16*(1+'Tab 6 - Financial Model'!$E$25)^'Tab 7 - Bylaw Continuity'!AC$9),0) -> 0 | AD18: =IF(AND($D18=AD$9,$B18='Tab 6 - Financial Model'!$C16),('Tab 6 - Financial Model'!$D16*(1+'Tab 6 - Financial Model'!$E$25)^'Tab 7 - Bylaw Continuity'!AD$9),0) -> 0 | AE18: =IF(AND($D18=AE$9,$B18='Tab 6 - Financial Model'!$C16),('Tab 6 - Financial Model'!$D16*(1+'Tab 6 - Financial Model'!$E$25)^'Tab 7 - Bylaw Continuity'!AE$9),0) -> 0 | AF18: =IF(AND($D18=AF$9,$B18='Tab 6 - Financial Model'!$C16),('Tab 6 - Financial Model'!$D16*(1+'Tab 6 - Financial Model'!$E$25)^'Tab 7 - Bylaw Continuity'!AF$9),0) -> 0 | AG18: =IF(AND($D18=AG$9,$B18='Tab 6 - Financial Model'!$C16),('Tab 6 - Financial Model'!$D16*(1+'Tab 6 - Financial Model'!$E$25)^'Tab 7 - Bylaw Continuity'!AG$9),0) -> 0 | AH18: =IF(AND($D18=AH$9,$B18='Tab 6 - Financial Model'!$C16),('Tab 6 - Financial Model'!$D16*(1+'Tab 6 - Financial Model'!$E$25)^'Tab 7 - Bylaw Continuity'!AH$9),0) -> 0 | AI18: =IF(AND($D18=AI$9,$B18='Tab 6 - Financial Model'!$C16),('Tab 6 - Financial Model'!$D16*(1+'Tab 6 - Financial Model'!$E$25)^'Tab 7 - Bylaw Continuity'!AI$9),0) -> 0 | AJ18: =IF(AND($D18=AJ$9,$B18='Tab 6 - Financial Model'!$C16),('Tab 6 - Financial Model'!$D16*(1+'Tab 6 - Financial Model'!$E$25)^'Tab 7 - Bylaw Continuity'!AJ$9),0) -> 0 | AK18: =IF(AND($D18=AK$9,$B18='Tab 6 - Financial Model'!$C16),('Tab 6 - Financial Model'!$D16*(1+'Tab 6 - Financial Model'!$E$25)^'Tab 7 - Bylaw Continuity'!AK$9),0) -> 0 | AL18: =IF(AND($D18=AL$9,$B18='Tab 6 - Financial Model'!$C16),('Tab 6 - Financial Model'!$D16*(1+'Tab 6 - Financial Model'!$E$25)^'Tab 7 - Bylaw Continuity'!AL$9),0) -> 0 | AM18: =IF(AND($D18=AM$9,$B18='Tab 6 - Financial Model'!$C16),('Tab 6 - Financial Model'!$D16*(1+'Tab 6 - Financial Model'!$E$25)^'Tab 7 - Bylaw Continuity'!AM$9),0) -> 0 | AN18: =IF(AND($D18=AN$9,$B18='Tab 6 - Financial Model'!$C16),('Tab 6 - Financial Model'!$D16*(1+'Tab 6 - Financial Model'!$E$25)^'Tab 7 - Bylaw Continuity'!AN$9),0) -> 0 | AO18: =IF(AND($D18=AO$9,$B18='Tab 6 - Financial Model'!$C16),('Tab 6 - Financial Model'!$D16*(1+'Tab 6 - Financial Model'!$E$25)^'Tab 7 - Bylaw Continuity'!AO$9),0) -> 0 | AP18: =IF(AND($D18=AP$9,$B18='Tab 6 - Financial Model'!$C16),('Tab 6 - Financial Model'!$D16*(1+'Tab 6 - Financial Model'!$E$25)^'Tab 7 - Bylaw Continuity'!AP$9),0) -> 0 | AQ18: =IF(AND($D18=AQ$9,$B18='Tab 6 - Financial Model'!$C16),('Tab 6 - Financial Model'!$D16*(1+'Tab 6 - Financial Model'!$E$25)^'Tab 7 - Bylaw Continuity'!AQ$9),0) -> 0
B19: Expenditures from 2024 Bylaw | D19: =SUMIF('Tab 6 - Financial Model'!$C$15:$C$18,'Tab 7 - Bylaw Continuity'!B18,'Tab 6 - Financial Model'!$F$15:$F$18) -> 0.44 | E19: =E18*$D19 -> 0 | F19: =F18*$D19 -> 0 | G19: 0 | H19: 0 | I19: 0 | J19: 0 | K19: 0 | L19: 0 | M19: 0 | N19: 0 | O19: 0 | P19: 0 | Q19: 0 | R19: 0 | S19: 0 | T19: 0 | U19: 0 | V19: 0 | W19: 0 | X19: 0 | Y19: 30891777.04 | Z19: 0 | AA19: 0 | AB19: 0 | AC19: 0 | AD19: 0 | AE19: 0 | AF19: 0 | AG19: 0 | AH19: 0 | AI19: 0 | AJ19: 0 | AK19: 0 | AL19: 0 | AM19: 0 | AN19: 0 | AO19: 0 | AP19: 0 | AQ19: 0
B20: Remainder: needed from other sources | E20: =E18-E19 -> 0 | F20: =F18-F19 -> 0 | G20: 0 | H20: 0 | I20: 0 | J20: 0 | K20: 0 | L20: 0 | M20: 0 | N20: 0 | O20: 0 | P20: 0 | Q20: 0 | R20: 0 | S20: 0 | T20: 0 | U20: 0 | V20: 0 | W20: 0 | X20: 0 | Y20: 39316807.14 | Z20: 0 | AA20: 0 | AB20: 0 | AC20: 0 | AD20: 0 | AE20: 0 | AF20: 0 | AG20: 0 | AH20: 0 | AI20: 0 | AJ20: 0 | AK20: 0 | AL20: 0 | AM20: 0 | AN20: 0 | AO20: 0 | AP20: 0 | AQ20: 0
A21: 3 | B21: ='Tab 6 - Financial Model'!C17 -> Police District Office- 3 | D21: =SUMIF('Tab 6 - Financial Model'!$C$15:$C$18,'Tab 7 - Bylaw Continuity'!B21,'Tab 6 - Financial Model'!$I$15:$I$18) -> 26 | E21: =IF(AND($D21=E$9,$B21='Tab 6 - Financial Model'!$C17),('Tab 6 - Financial Model'!$D17*(1+'Tab 6 - Financial Model'!$E$25)^'Tab 7 - Bylaw Continuity'!E$9),0) -> 0 | F21: =IF(AND($D21=F$9,$B21='Tab 6 - Financial Model'!$C17),('Tab 6 - Financial Model'!$D17*(1+'Tab 6 - Financial Model'!$E$25)^'Tab 7 - Bylaw Continuity'!F$9),0) -> 0 | G21: =IF(AND($D21=G$9,$B21='Tab 6 - Financial Model'!$C17),('Tab 6 - Financial Model'!$D17*(1+'Tab 6 - Financial Model'!$E$25)^'Tab 7 - Bylaw Continuity'!G$9),0) -> 0 | H21: =IF(AND($D21=H$9,$B21='Tab 6 - Financial Model'!$C17),('Tab 6 - Financial Model'!$D17*(1+'Tab 6 - Financial Model'!$E$25)^'Tab 7 - Bylaw Continuity'!H$9),0) -> 0 | I21: =IF(AND($D21=I$9,$B21='Tab 6 - Financial Model'!$C17),('Tab 6 - Financial Model'!$D17*(1+'Tab 6 - Financial Model'!$E$25)^'Tab 7 - Bylaw Continuity'!I$9),0) -> 0 | J21: =IF(AND($D21=J$9,$B21='Tab 6 - Financial Model'!$C17),('Tab 6 - Financial Model'!$D17*(1+'Tab 6 - Financial Model'!$E$25)^'Tab 7 - Bylaw Continuity'!J$9),0) -> 0 | K21: =IF(AND($D21=K$9,$B21='Tab 6 - Financial Model'!$C17),('Tab 6 - Financial Model'!$D17*(1+'Tab 6 - Financial Model'!$E$25)^'Tab 7 - Bylaw Continuity'!K$9),0) -> 0 | L21: =IF(AND($D21=L$9,$B21='Tab 6 - Financial Model'!$C17),('Tab 6 - Financial Model'!$D17*(1+'Tab 6 - Financial Model'!$E$25)^'Tab 7 - Bylaw Continuity'!L$9),0) -> 0 | M21: =IF(AND($D21=M$9,$B21='Tab 6 - Financial Model'!$C17),('Tab 6 - Financial Model'!$D17*(1+'Tab 6 - Financial Model'!$E$25)^'Tab 7 - Bylaw Continuity'!M$9),0) -> 0 | N21: =IF(AND($D21=N$9,$B21='Tab 6 - Financial Model'!$C17),('Tab 6 - Financial Model'!$D17*(1+'Tab 6 - Financial Model'!$E$25)^'Tab 7 - Bylaw Continuity'!N$9),0) -> 0 | O21: =IF(AND($D21=O$9,$B21='Tab 6 - Financial Model'!$C17),('Tab 6 - Financial Model'!$D17*(1+'Tab 6 - Financial Model'!$E$25)^'Tab 7 - Bylaw Continuity'!O$9),0) -> 0 | P21: =IF(AND($D21=P$9,$B21='Tab 6 - Financial Model'!$C17),('Tab 6 - Financial Model'!$D17*(1+'Tab 6 - Financial Model'!$E$25)^'Tab 7 - Bylaw Continuity'!P$9),0) -> 0 | Q21: =IF(AND($D21=Q$9,$B21='Tab 6 - Financial Model'!$C17),('Tab 6 - Financial Model'!$D17*(1+'Tab 6 - Financial Model'!$E$25)^'Tab 7 - Bylaw Continuity'!Q$9),0) -> 0 | R21: =IF(AND($D21=R$9,$B21='Tab 6 - Financial Model'!$C17),('Tab 6 - Financial Model'!$D17*(1+'Tab 6 - Financial Model'!$E$25)^'Tab 7 - Bylaw Continuity'!R$9),0) -> 0 | S21: =IF(AND($D21=S$9,$B21='Tab 6 - Financial Model'!$C17),('Tab 6 - Financial Model'!$D17*(1+'Tab 6 - Financial Model'!$E$25)^'Tab 7 - Bylaw Continuity'!S$9),0) -> 0 | T21: =IF(AND($D21=T$9,$B21='Tab 6 - Financial Model'!$C17),('Tab 6 - Financial Model'!$D17*(1+'Tab 6 - Financial Model'!$E$25)^'Tab 7 - Bylaw Continuity'!T$9),0) -> 0 | U21: =IF(AND($D21=U$9,$B21='Tab 6 - Financial Model'!$C17),('Tab 6 - Financial Model'!$D17*(1+'Tab 6 - Financial Model'!$E$25)^'Tab 7 - Bylaw Continuity'!U$9),0) -> 0 | V21: =IF(AND($D21=V$9,$B21='Tab 6 - Financial Model'!$C17),('Tab 6 - Financial Model'!$D17*(1+'Tab 6 - Financial Model'!$E$25)^'Tab 7 - Bylaw Continuity'!V$9),0) -> 0 | W21: =IF(AND($D21=W$9,$B21='Tab 6 - Financial Model'!$C17),('Tab 6 - Financial Model'!$D17*(1+'Tab 6 - Financial Model'!$E$25)^'Tab 7 - Bylaw Continuity'!W$9),0) -> 0 | X21: =IF(AND($D21=X$9,$B21='Tab 6 - Financial Model'!$C17),('Tab 6 - Financial Model'!$D17*(1+'Tab 6 - Financial Model'!$E$25)^'Tab 7 - Bylaw Continuity'!X$9),0) -> 0 | Y21: =IF(AND($D21=Y$9,$B21='Tab 6 - Financial Model'!$C17),('Tab 6 - Financial Model'!$D17*(1+'Tab 6 - Financial Model'!$E$25)^'Tab 7 - Bylaw Continuity'!Y$9),0) -> 0 | Z21: =IF(AND($D21=Z$9,$B21='Tab 6 - Financial Model'!$C17),('Tab 6 - Financial Model'!$D17*(1+'Tab 6 - Financial Model'!$E$25)^'Tab 7 - Bylaw Continuity'!Z$9),0) -> 0 | AA21: =IF(AND($D21=AA$9,$B21='Tab 6 - Financial Model'!$C17),('Tab 6 - Financial Model'!$D17*(1+'Tab 6 - Financial Model'!$E$25)^'Tab 7 - Bylaw Continuity'!AA$9),0) -> 0 | AB21: =IF(AND($D21=AB$9,$B21='Tab 6 - Financial Model'!$C17),('Tab 6 - Financial Model'!$D17*(1+'Tab 6 - Financial Model'!$E$25)^'Tab 7 - Bylaw Continuity'!AB$9),0) -> 0 | AC21: =IF(AND($D21=AC$9,$B21='Tab 6 - Financial Model'!$C17),('Tab 6 - Financial Model'!$D17*(1+'Tab 6 - Financial Model'!$E$25)^'Tab 7 - Bylaw Continuity'!AC$9),0) -> 0 | AD21: =IF(AND($D21=AD$9,$B21='Tab 6 - Financial Model'!$C17),('Tab 6 - Financial Model'!$D17*(1+'Tab 6 - Financial Model'!$E$25)^'Tab 7 - Bylaw Continuity'!AD$9),0) -> 0 | AE21: =IF(AND($D21=AE$9,$B21='Tab 6 - Financial Model'!$C17),('Tab 6 - Financial Model'!$D17*(1+'Tab 6 - Financial Model'!$E$25)^'Tab 7 - Bylaw Continuity'!AE$9),0) -> 0 | AF21: =IF(AND($D21=AF$9,$B21='Tab 6 - Financial Model'!$C17),('Tab 6 - Financial Model'!$D17*(1+'Tab 6 - Financial Model'!$E$25)^'Tab 7 - Bylaw Continuity'!AF$9),0) -> 0 | AG21: =IF(AND($D21=AG$9,$B21='Tab 6 - Financial Model'!$C17),('Tab 6 - Financial Model'!$D17*(1+'Tab 6 - Financial Model'!$E$25)^'Tab 7 - Bylaw Continuity'!AG$9),0) -> 0 | AH21: =IF(AND($D21=AH$9,$B21='Tab 6 - Financial Model'!$C17),('Tab 6 - Financial Model'!$D17*(1+'Tab 6 - Financial Model'!$E$25)^'Tab 7 - Bylaw Continuity'!AH$9),0) -> 96354804.67 | AI21: =IF(AND($D21=AI$9,$B21='Tab 6 - Financial Model'!$C17),('Tab 6 - Financial Model'!$D17*(1+'Tab 6 - Financial Model'!$E$25)^'Tab 7 - Bylaw Continuity'!AI$9),0) -> 0 | AJ21: =IF(AND($D21=AJ$9,$B21='Tab 6 - Financial Model'!$C17),('Tab 6 - Financial Model'!$D17*(1+'Tab 6 - Financial Model'!$E$25)^'Tab 7 - Bylaw Continuity'!AJ$9),0) -> 0 | AK21: =IF(AND($D21=AK$9,$B21='Tab 6 - Financial Model'!$C17),('Tab 6 - Financial Model'!$D17*(1+'Tab 6 - Financial Model'!$E$25)^'Tab 7 - Bylaw Continuity'!AK$9),0) -> 0 | AL21: =IF(AND($D21=AL$9,$B21='Tab 6 - Financial Model'!$C17),('Tab 6 - Financial Model'!$D17*(1+'Tab 6 - Financial Model'!$E$25)^'Tab 7 - Bylaw Continuity'!AL$9),0) -> 0 | AM21: =IF(AND($D21=AM$9,$B21='Tab 6 - Financial Model'!$C17),('Tab 6 - Financial Model'!$D17*(1+'Tab 6 - Financial Model'!$E$25)^'Tab 7 - Bylaw Continuity'!AM$9),0) -> 0 | AN21: =IF(AND($D21=AN$9,$B21='Tab 6 - Financial Model'!$C17),('Tab 6 - Financial Model'!$D17*(1+'Tab 6 - Financial Model'!$E$25)^'Tab 7 - Bylaw Continuity'!AN$9),0) -> 0 | AO21: =IF(AND($D21=AO$9,$B21='Tab 6 - Financial Model'!$C17),('Tab 6 - Financial Model'!$D17*(1+'Tab 6 - Financial Model'!$E$25)^'Tab 7 - Bylaw Continuity'!AO$9),0) -> 0 | AP21: =IF(AND($D21=AP$9,$B21='Tab 6 - Financial Model'!$C17),('Tab 6 - Financial Model'!$D17*(1+'Tab 6 - Financial Model'!$E$25)^'Tab 7 - Bylaw Continuity'!AP$9),0) -> 0 | AQ21: =IF(AND($D21=AQ$9,$B21='Tab 6 - Financial Model'!$C17),('Tab 6 - Financial Model'!$D17*(1+'Tab 6 - Financial Model'!$E$25)^'Tab 7 - Bylaw Continuity'!AQ$9),0) -> 0
B22: Expenditures from 2024 Bylaw | D22: =SUMIF('Tab 6 - Financial Model'!$C$15:$C$18,'Tab 7 - Bylaw Continuity'!B21,'Tab 6 - Financial Model'!$F$15:$F$18) -> 0.44 | E22: =E21*$D22 -> 0 | F22: =F21*$D22 -> 0 | G22: 0 | H22: 0 | I22: 0 | J22: 0 | K22: 0 | L22: 0 | M22: 0 | N22: 0 | O22: 0 | P22: 0 | Q22: 0 | R22: 0 | S22: 0 | T22: 0 | U22: 0 | V22: 0 | W22: 0 | X22: 0 | Y22: 0 | Z22: 0 | AA22: 0 | AB22: 0 | AC22: 0 | AD22: 0 | AE22: 0 | AF22: 0 | AG22: 0 | AH22: 42396114.06 | AI22: 0 | AJ22: 0 | AK22: 0 | AL22: 0 | AM22: 0 | AN22: 0 | AO22: 0 | AP22: 0 | AQ22: 0
B23: Remainder: needed from other sources | E23: =E21-E22 -> 0 | F23: =F21-F22 -> 0 | G23: 0 | H23: 0 | I23: 0 | J23: 0 | K23: 0 | L23: 0 | M23: 0 | N23: 0 | O23: 0 | P23: 0 | Q23: 0 | R23: 0 | S23: 0 | T23: 0 | U23: 0 | V23: 0 | W23: 0 | X23: 0 | Y23: 0 | Z23: 0 | AA23: 0 | AB23: 0 | AC23: 0 | AD23: 0 | AE23: 0 | AF23: 0 | AG23: 0 | AH23: 53958690.62 | AI23: 0 | AJ23: 0 | AK23: 0 | AL23: 0 | AM23: 0 | AN23: 0 | AO23: 0 | AP23: 0 | AQ23: 0
A24: 4 | B24: ='Tab 6 - Financial Model'!C18 -> Police District Office- 4 | D24: =SUMIF('Tab 6 - Financial Model'!$C$15:$C$18,'Tab 7 - Bylaw Continuity'!B24,'Tab 6 - Financial Model'!$I$15:$I$18) -> 35 | E24: =IF(AND($D24=E$9,$B24='Tab 6 - Financial Model'!$C18),('Tab 6 - Financial Model'!$D18*(1+'Tab 6 - Financial Model'!$E$25)^'Tab 7 - Bylaw Continuity'!E$9),0) -> 0 | F24: =IF(AND($D24=F$9,$B24='Tab 6 - Financial Model'!$C18),('Tab 6 - Financial Model'!$D18*(1+'Tab 6 - Financial Model'!$E$25)^'Tab 7 - Bylaw Continuity'!F$9),0) -> 0 | G24: =IF(AND($D24=G$9,$B24='Tab 6 - Financial Model'!$C18),('Tab 6 - Financial Model'!$D18*(1+'Tab 6 - Financial Model'!$E$25)^'Tab 7 - Bylaw Continuity'!G$9),0) -> 0 | H24: =IF(AND($D24=H$9,$B24='Tab 6 - Financial Model'!$C18),('Tab 6 - Financial Model'!$D18*(1+'Tab 6 - Financial Model'!$E$25)^'Tab 7 - Bylaw Continuity'!H$9),0) -> 0 | I24: =IF(AND($D24=I$9,$B24='Tab 6 - Financial Model'!$C18),('Tab 6 - Financial Model'!$D18*(1+'Tab 6 - Financial Model'!$E$25)^'Tab 7 - Bylaw Continuity'!I$9),0) -> 0 | J24: =IF(AND($D24=J$9,$B24='Tab 6 - Financial Model'!$C18),('Tab 6 - Financial Model'!$D18*(1+'Tab 6 - Financial Model'!$E$25)^'Tab 7 - Bylaw Continuity'!J$9),0) -> 0 | K24: =IF(AND($D24=K$9,$B24='Tab 6 - Financial Model'!$C18),('Tab 6 - Financial Model'!$D18*(1+'Tab 6 - Financial Model'!$E$25)^'Tab 7 - Bylaw Continuity'!K$9),0) -> 0 | L24: =IF(AND($D24=L$9,$B24='Tab 6 - Financial Model'!$C18),('Tab 6 - Financial Model'!$D18*(1+'Tab 6 - Financial Model'!$E$25)^'Tab 7 - Bylaw Continuity'!L$9),0) -> 0 | M24: =IF(AND($D24=M$9,$B24='Tab 6 - Financial Model'!$C18),('Tab 6 - Financial Model'!$D18*(1+'Tab 6 - Financial Model'!$E$25)^'Tab 7 - Bylaw Continuity'!M$9),0) -> 0 | N24: =IF(AND($D24=N$9,$B24='Tab 6 - Financial Model'!$C18),('Tab 6 - Financial Model'!$D18*(1+'Tab 6 - Financial Model'!$E$25)^'Tab 7 - Bylaw Continuity'!N$9),0) -> 0 | O24: =IF(AND($D24=O$9,$B24='Tab 6 - Financial Model'!$C18),('Tab 6 - Financial Model'!$D18*(1+'Tab 6 - Financial Model'!$E$25)^'Tab 7 - Bylaw Continuity'!O$9),0) -> 0 | P24: =IF(AND($D24=P$9,$B24='Tab 6 - Financial Model'!$C18),('Tab 6 - Financial Model'!$D18*(1+'Tab 6 - Financial Model'!$E$25)^'Tab 7 - Bylaw Continuity'!P$9),0) -> 0 | Q24: =IF(AND($D24=Q$9,$B24='Tab 6 - Financial Model'!$C18),('Tab 6 - Financial Model'!$D18*(1+'Tab 6 - Financial Model'!$E$25)^'Tab 7 - Bylaw Continuity'!Q$9),0) -> 0 | R24: =IF(AND($D24=R$9,$B24='Tab 6 - Financial Model'!$C18),('Tab 6 - Financial Model'!$D18*(1+'Tab 6 - Financial Model'!$E$25)^'Tab 7 - Bylaw Continuity'!R$9),0) -> 0 | S24: =IF(AND($D24=S$9,$B24='Tab 6 - Financial Model'!$C18),('Tab 6 - Financial Model'!$D18*(1+'Tab 6 - Financial Model'!$E$25)^'Tab 7 - Bylaw Continuity'!S$9),0) -> 0 | T24: =IF(AND($D24=T$9,$B24='Tab 6 - Financial Model'!$C18),('Tab 6 - Financial Model'!$D18*(1+'Tab 6 - Financial Model'!$E$25)^'Tab 7 - Bylaw Continuity'!T$9),0) -> 0 | U24: =IF(AND($D24=U$9,$B24='Tab 6 - Financial Model'!$C18),('Tab 6 - Financial Model'!$D18*(1+'Tab 6 - Financial Model'!$E$25)^'Tab 7 - Bylaw Continuity'!U$9),0) -> 0 | V24: =IF(AND($D24=V$9,$B24='Tab 6 - Financial Model'!$C18),('Tab 6 - Financial Model'!$D18*(1+'Tab 6 - Financial Model'!$E$25)^'Tab 7 - Bylaw Continuity'!V$9),0) -> 0 | W24: =IF(AND($D24=W$9,$B24='Tab 6 - Financial Model'!$C18),('Tab 6 - Financial Model'!$D18*(1+'Tab 6 - Financial Model'!$E$25)^'Tab 7 - Bylaw Continuity'!W$9),0) -> 0 | X24: =IF(AND($D24=X$9,$B24='Tab 6 - Financial Model'!$C18),('Tab 6 - Financial Model'!$D18*(1+'Tab 6 - Financial Model'!$E$25)^'Tab 7 - Bylaw Continuity'!X$9),0) -> 0 | Y24: =IF(AND($D24=Y$9,$B24='Tab 6 - Financial Model'!$C18),('Tab 6 - Financial Model'!$D18*(1+'Tab 6 - Financial Model'!$E$25)^'Tab 7 - Bylaw Continuity'!Y$9),0) -> 0 | Z24: =IF(AND($D24=Z$9,$B24='Tab 6 - Financial Model'!$C18),('Tab 6 - Financial Model'!$D18*(1+'Tab 6 - Financial Model'!$E$25)^'Tab 7 - Bylaw Continuity'!Z$9),0) -> 0 | AA24: =IF(AND($D24=AA$9,$B24='Tab 6 - Financial Model'!$C18),('Tab 6 - Financial Model'!$D18*(1+'Tab 6 - Financial Model'!$E$25)^'Tab 7 - Bylaw Continuity'!AA$9),0) -> 0 | AB24: =IF(AND($D24=AB$9,$B24='Tab 6 - Financial Model'!$C18),('Tab 6 - Financial Model'!$D18*(1+'Tab 6 - Financial Model'!$E$25)^'Tab 7 - Bylaw Continuity'!AB$9),0) -> 0 | AC24: =IF(AND($D24=AC$9,$B24='Tab 6 - Financial Model'!$C18),('Tab 6 - Financial Model'!$D18*(1+'Tab 6 - Financial Model'!$E$25)^'Tab 7 - Bylaw Continuity'!AC$9),0) -> 0 | AD24: =IF(AND($D24=AD$9,$B24='Tab 6 - Financial Model'!$C18),('Tab 6 - Financial Model'!$D18*(1+'Tab 6 - Financial Model'!$E$25)^'Tab 7 - Bylaw Continuity'!AD$9),0) -> 0 | AE24: =IF(AND($D24=AE$9,$B24='Tab 6 - Financial Model'!$C18),('Tab 6 - Financial Model'!$D18*(1+'Tab 6 - Financial Model'!$E$25)^'Tab 7 - Bylaw Continuity'!AE$9),0) -> 0 | AF24: =IF(AND($D24=AF$9,$B24='Tab 6 - Financial Model'!$C18),('Tab 6 - Financial Model'!$D18*(1+'Tab 6 - Financial Model'!$E$25)^'Tab 7 - Bylaw Continuity'!AF$9),0) -> 0 | AG24: =IF(AND($D24=AG$9,$B24='Tab 6 - Financial Model'!$C18),('Tab 6 - Financial Model'!$D18*(1+'Tab 6 - Financial Model'!$E$25)^'Tab 7 - Bylaw Continuity'!AG$9),0) -> 0 | AH24: =IF(AND($D24=AH$9,$B24='Tab 6 - Financial Model'!$C18),('Tab 6 - Financial Model'!$D18*(1+'Tab 6 - Financial Model'!$E$25)^'Tab 7 - Bylaw Continuity'!AH$9),0) -> 0 | AI24: =IF(AND($D24=AI$9,$B24='Tab 6 - Financial Model'!$C18),('Tab 6 - Financial Model'!$D18*(1+'Tab 6 - Financial Model'!$E$25)^'Tab 7 - Bylaw Continuity'!AI$9),0) -> 0 | AJ24: =IF(AND($D24=AJ$9,$B24='Tab 6 - Financial Model'!$C18),('Tab 6 - Financial Model'!$D18*(1+'Tab 6 - Financial Model'!$E$25)^'Tab 7 - Bylaw Continuity'!AJ$9),0) -> 0 | AK24: =IF(AND($D24=AK$9,$B24='Tab 6 - Financial Model'!$C18),('Tab 6 - Financial Model'!$D18*(1+'Tab 6 - Financial Model'!$E$25)^'Tab 7 - Bylaw Continuity'!AK$9),0) -> 0 | AL24: =IF(AND($D24=AL$9,$B24='Tab 6 - Financial Model'!$C18),('Tab 6 - Financial Model'!$D18*(1+'Tab 6 - Financial Model'!$E$25)^'Tab 7 - Bylaw Continuity'!AL$9),0) -> 0 | AM24: =IF(AND($D24=AM$9,$B24='Tab 6 - Financial Model'!$C18),('Tab 6 - Financial Model'!$D18*(1+'Tab 6 - Financial Model'!$E$25)^'Tab 7 - Bylaw Continuity'!AM$9),0) -> 0 | AN24: =IF(AND($D24=AN$9,$B24='Tab 6 - Financial Model'!$C18),('Tab 6 - Financial Model'!$D18*(1+'Tab 6 - Financial Model'!$E$25)^'Tab 7 - Bylaw Continuity'!AN$9),0) -> 0 | AO24: =IF(AND($D24=AO$9,$B24='Tab 6 - Financial Model'!$C18),('Tab 6 - Financial Model'!$D18*(1+'Tab 6 - Financial Model'!$E$25)^'Tab 7 - Bylaw Continuity'!AO$9),0) -> 0 | AP24: =IF(AND($D24=AP$9,$B24='Tab 6 - Financial Model'!$C18),('Tab 6 - Financial Model'!$D18*(1+'Tab 6 - Financial Model'!$E$25)^'Tab 7 - Bylaw Continuity'!AP$9),0) -> 0 | AQ24: =IF(AND($D24=AQ$9,$B24='Tab 6 - Financial Model'!$C18),('Tab 6 - Financial Model'!$D18*(1+'Tab 6 - Financial Model'!$E$25)^'Tab 7 - Bylaw Continuity'!AQ$9),0) -> 112402368.1
B25: Expenditures from 2024 Bylaw | D25: =SUMIF('Tab 6 - Financial Model'!$C$15:$C$18,'Tab 7 - Bylaw Continuity'!B24,'Tab 6 - Financial Model'!$F$15:$F$18) -> 0.44 | E25: =E24*$D25 -> 0 | F25: =F24*$D25 -> 0 | G25: 0 | H25: 0 | I25: 0 | J25: 0 | K25: 0 | L25: 0 | M25: 0 | N25: 0 | O25: 0 | P25: 0 | Q25: 0 | R25: 0 | S25: 0 | T25: 0 | U25: 0 | V25: 0 | W25: 0 | X25: 0 | Y25: 0 | Z25: 0 | AA25: 0 | AB25: 0 | AC25: 0 | AD25: 0 | AE25: 0 | AF25: 0 | AG25: 0 | AH25: 0 | AI25: 0 | AJ25: 0 | AK25: 0 | AL25: 0 | AM25: 0 | AN25: 0 | AO25: 0 | AP25: 0 | AQ25: 49457041.98
B26: Remainder: needed from other sources | E26: =E24-E25 -> 0 | F26: =F24-F25 -> 0 | G26: 0 | H26: 0 | I26: 0 | J26: 0 | K26: 0 | L26: 0 | M26: 0 | N26: 0 | O26: 0 | P26: 0 | Q26: 0 | R26: 0 | S26: 0 | T26: 0 | U26: 0 | V26: 0 | W26: 0 | X26: 0 | Y26: 0 | Z26: 0 | AA26: 0 | AB26: 0 | AC26: 0 | AD26: 0 | AE26: 0 | AF26: 0 | AG26: 0 | AH26: 0 | AI26: 0 | AJ26: 0 | AK26: 0 | AL26: 0 | AM26: 0 | AN26: 0 | AO26: 0 | AP26: 0 | AQ26: 62945326.16
B48: TOTAL:
B49: Expenditures from 2024 Bylaw | E49: =E16+E19+E22+E25 -> 0 | F49: =F16+F19+F22+F25 -> 0 | G49: 0 | H49: 0 | I49: 0 | J49: 0 | K49: 0 | L49: 0 | M49: 0 | N49: 20980117.6 | O49: 0 | P49: 0 | Q49: 0 | R49: 0 | S49: 0 | T49: 0 | U49: 0 | V49: 0 | W49: 0 | X49: 0 | Y49: 30891777.04 | Z49: 0 | AA49: 0 | AB49: 0 | AC49: 0 | AD49: 0 | AE49: 0 | AF49: 0 | AG49: 0 | AH49: 42396114.06 | AI49: 0 | AJ49: 0 | AK49: 0 | AL49: 0 | AM49: 0 | AN49: 0 | AO49: 0 | AP49: 0 | AQ49: 49457041.98
B50: Remainder: needed from other sources | E50: =E17+E20+E23+E26 -> 0 | F50: =F17+F20+F23+F26 -> 0 | G50: 0 | H50: 0 | I50: 0 | J50: 0 | K50: 0 | L50: 0 | M50: =M17+M20+M23+M26 -> 0 | N50: 26701967.85 | O50: 0 | P50: 0 | Q50: 0 | R50: 0 | S50: 0 | T50: 0 | U50: 0 | V50: 0 | W50: 0 | X50: 0 | Y50: 39316807.14 | Z50: 0 | AA50: 0 | AB50: 0 | AC50: 0 | AD50: 0 | AE50: 0 | AF50: 0 | AG50: 0 | AH50: 53958690.62 | AI50: 0 | AJ50: 0 | AK50: 0 | AL50: 0 | AM50: 0 | AN50: 0 | AO50: 0 | AP50: 0 | AQ50: 62945326.16
B51: Expenditures from 2M2016 Bylaw Balance | E51: =IF(E61=0,0,IF(D72>E50,E50,D72)) -> 0 | F51: =IF(F61=0,0,IF(E72>F50,F50,E72)) -> 0 | G51: =IF(G61=0,0,IF(F72>G50,G50,F72)) -> 0 | H51: =IF(H61=0,0,IF(G72>H50,H50,G72)) -> 0 | I51: =IF(I61=0,0,IF(H72>I50,I50,H72)) -> 0 | J51: =IF(J61=0,0,IF(I72>J50,J50,I72)) -> 0 | K51: =IF(K61=0,0,IF(J72>K50,K50,J72)) -> 0 | L51: =IF(L61=0,0,IF(K72>L50,L50,K72)) -> 0 | M51: =IF(M61=0,0,IF(L72>M50,M50,L72)) -> 0 | N51: 26701967.85 | O51: 0 | P51: 0 | Q51: 0 | R51: 0 | S51: 0 | T51: 0 | U51: 0 | V51: 0 | W51: 0 | X51: 0 | Y51: =IF(Y61=0,0,IF(X72>Y50,Y50,X72+Y69)) -> 18360968.28 | Z51: =IF(Z61=0,0,IF(Y72>Z50,Z50,Y72)) -> 0 | AA51: 0 | AB51: 0 | AC51: 0 | AD51: 0 | AE51: 0 | AF51: 0 | AG51: 0 | AH51: 0 | AI51: 0 | AJ51: 0 | AK51: 0 | AL51: 0 | AM51: 0 | AN51: 0 | AO51: 0 | AP51: 0 | AQ51: 0
B52: Expenditures from Non-OSL City Funding Sources | E52: =(E49+E50)-E49-E51 -> 0 | F52: 0 | G52: 0 | H52: 0 | I52: 0 | J52: 0 | K52: 0 | L52: 0 | M52: 0 | N52: =(N49+N50)-N49-N51 -> 0 | O52: 0 | P52: 0 | Q52: 0 | R52: =(R49+R50)-R49-R51 -> 0 | S52: 0 | T52: 0 | U52: 0 | V52: 0 | W52: 0 | X52: 0 | Y52: 20955838.86 | Z52: 0 | AA52: 0 | AB52: 0 | AC52: 0 | AD52: 0 | AE52: 0 | AF52: 0 | AG52: 0 | AH52: 53958690.62 | AI52: 0 | AJ52: 0 | AK52: 0 | AL52: 0 | AM52: 0 | AN52: 0 | AO52: 0 | AP52: 0 | AQ52: 62945326.16
A54: Land absorption (hectares) and DA contributions ($)
A55: Land absorption forecast and developer contributions under each bylaw. The contribution values feed into the payment schedule below. | D55: Land Absorption (ha) | E55: 262 | F55: 367 | G55: 506 | H55: ='Tab 6 - Financial Model'!L29 -> 290 | I55: ='Tab 6 - Financial Model'!M29 -> 309 | J55: ='Tab 6 - Financial Model'!N29 -> 327 | K55: ='Tab 6 - Financial Model'!O29 -> 321 | L55: ='Tab 6 - Financial Model'!P29 -> 321 | M55: ='Tab 6 - Financial Model'!Q29 -> 318.480898 | N55: ='Tab 6 - Financial Model'!R29 -> 315.9617959 | O55: ='Tab 6 - Financial Model'!S29 -> 313.4426939 | P55: ='Tab 6 - Financial Model'!T29 -> 310.9235918 | Q55: ='Tab 6 - Financial Model'!U29 -> 308.4044898 | R55: ='Tab 6 - Financial Model'!V29 -> 305.8853878 | S55: ='Tab 6 - Financial Model'!W29 -> 303.3662857 | T55: ='Tab 6 - Financial Model'!X29 -> 300.8471837 | U55: ='Tab 6 - Financial Model'!Y29 -> 298.3280816 | V55: ='Tab 6 - Financial Model'!Z29 -> 295.8089796 | W55: ='Tab 6 - Financial Model'!AA29 -> 293.2898776 | X55: ='Tab 6 - Financial Model'!AB29 -> 290.7707755 | Y55: ='Tab 6 - Financial Model'!AC29 -> 288.2516735 | Z55: ='Tab 6 - Financial Model'!AD29 -> 285.7325714 | AA55: ='Tab 6 - Financial Model'!AE29 -> 283.2134694 | AB55: ='Tab 6 - Financial Model'!AF29 -> 280.6943673 | AC55: ='Tab 6 - Financial Model'!AG29 -> 278.1752653 | AD55: ='Tab 6 - Financial Model'!AH29 -> 275.6561633 | AE55: ='Tab 6 - Financial Model'!AI29 -> 273.1370612 | AF55: ='Tab 6 - Financial Model'!AJ29 -> 270.6179592 | AG55: ='Tab 6 - Financial Model'!AK29 -> 268.0988571 | AH55: ='Tab 6 - Financial Model'!AL29 -> 265.5797551 | AI55: ='Tab 6 - Financial Model'!AM29 -> 263.0606531 | AJ55: ='Tab 6 - Financial Model'!AN29 -> 225.741551 | AK55: ='Tab 6 - Financial Model'!AO29 -> 223.222449 | AL55: ='Tab 6 - Financial Model'!AP29 -> 220.7033469 | AM55: ='Tab 6 - Financial Model'!AQ29 -> 218.1842449 | AN55: ='Tab 6 - Financial Model'!AR29 -> 215.6651429 | AO55: ='Tab 6 - Financial Model'!AS29 -> 0 | AP55: ='Tab 6 - Financial Model'!AT29 -> 0 | AQ55: ='Tab 6 - Financial Model'!AU29 -> 0
D56: Levy Rates under the 2016 bylaw | E56: 7801 | F56: 7848 | G56: 8025 | H56: 8749
D57: Contributions from signed DAs - 2016 Levy | E57: =E55*E56 -> 2043862 | F57: =F55*F56 -> 2880216 | G57: 4060650 | H57: 2537210
D58: Contributions from signed DAs - 2024 Levy | E58: 0 | F58: 0 | G58: 0 | H58: 0 | I58: ='Tab 6 - Financial Model'!M34 -> 2298392.033 | J58: ='Tab 6 - Financial Model'!N34 -> 2536623.715 | K58: ='Tab 6 - Financial Model'!O34 -> 2596904.599 | L58: ='Tab 6 - Financial Model'!P34 -> 2708311.806 | M58: ='Tab 6 - Financial Model'!Q34 -> 2802332.652 | N58: ='Tab 6 - Financial Model'!R34 -> 2899436.082 | O58: ='Tab 6 - Financial Model'!S34 -> 2999713.545 | P58: ='Tab 6 - Financial Model'!T34 -> 3103258.664 | Q58: ='Tab 6 - Financial Model'!U34 -> 3210167.25 | R58: ='Tab 6 - Financial Model'!V34 -> 3320537.325 | S58: ='Tab 6 - Financial Model'!W34 -> 3434469.129 | T58: ='Tab 6 - Financial Model'!X34 -> 3552065.132 | U58: ='Tab 6 - Financial Model'!Y34 -> 3673430.04 | V58: ='Tab 6 - Financial Model'!Z34 -> 3798670.801 | W58: ='Tab 6 - Financial Model'!AA34 -> 3927896.602 | X58: ='Tab 6 - Financial Model'!AB34 -> 4061218.864 | Y58: ='Tab 6 - Financial Model'!AC34 -> 4198751.237 | Z58: ='Tab 6 - Financial Model'!AD34 -> 4340609.58 | AA58: ='Tab 6 - Financial Model'!AE34 -> 4486911.945 | AB58: ='Tab 6 - Financial Model'!AF34 -> 4637778.551 | AC58: ='Tab 6 - Financial Model'!AG34 -> 4793331.755 | AD58: ='Tab 6 - Financial Model'!AH34 -> 4953696.009 | AE58: ='Tab 6 - Financial Model'!AI34 -> 5118997.821 | AF58: ='Tab 6 - Financial Model'!AJ34 -> 5289365.696 | AG58: ='Tab 6 - Financial Model'!AK34 -> 5464930.08 | AH58: ='Tab 6 - Financial Model'!AL34 -> 5645823.287 | AI58: ='Tab 6 - Financial Model'!AM34 -> 5832179.42 | AJ58: ='Tab 6 - Financial Model'!AN34 -> 5219503.032 | AK58: ='Tab 6 - Financial Model'!AO34 -> 5382675.336 | AL58: ='Tab 6 - Financial Model'!AP34 -> 5550241.798 | AM58: ='Tab 6 - Financial Model'!AQ34 -> 5722279.133 | AN58: ='Tab 6 - Financial Model'!AR34 -> 5898862.551 | AO58: ='Tab 6 - Financial Model'!AS34 -> 0 | AP58: ='Tab 6 - Financial Model'!AT34 -> 0 | AQ58: ='Tab 6 - Financial Model'!AU34 -> 0
A60: Yearly cash flows ($)
A61: The opening balance takes the closing balance from the prior year. | D61: Opening Balance - 2016 Bylaw | H61: =G72 -> 45482019 | I61: =H72 -> 49520900.45 | J61: =I72 -> 54587343.72 | K61: 61076891.71 | L61: 66288723.51 | M61: =L72 -> 35935384.75 | N61: 37477012.76 | O61: 11810051.54 | P61: 12316702.75 | Q61: 12845089.3 | R61: 13396143.63 | S61: 13970838.19 | T61: 14570187.15 | U61: 15195248.18 | V61: 15847124.33 | W61: 16526965.96 | X61: 17235972.8 | Y61: 17975396.04 | Z61: =Y72 -> 0 | AA61: 0 | AB61: 0 | AC61: 0 | AD61: 0 | AE61: 0 | AF61: 0 | AG61: 0 | AH61: 0 | AI61: 0 | AJ61: 0 | AK61: 0 | AL61: 0 | AM61: 0 | AN61: 0 | AO61: 0 | AP61: =AO72 -> 0 | AQ61: 0
D62: Opening Balance - 2024 Bylaw | H62: 0 | I62: =H73 -> 0 | J62: 0 | K62: 0 | L62: =K73 -> 0 | M62: 2347692.542 | N62: 5039442.846 | O62: -13521897.98 | P62: -11335582.3 | Q62: -8959436.097 | R62: -6382166.92 | S62: -3591904.48 | T62: -576173.6201 | U62: 2678133.869 | V62: 6184788.663 | W62: 9958254.589 | X62: 14013720.64 | Y62: 18367134.37 | Z62: -8519168.937 | AA62: -4872491.3 | AB62: -933189.168 | AC62: 3315591.468 | AD62: 7891545.998 | AE62: 12813249.53 | AF62: 18100196.83 | AG62: 23772844 | AH62: 29852651.79 | AI62: -6943379.823 | AJ62: -1838428.228 | AK62: 3664856.032 | AL62: 9589004.553 | AM62: 15957652.52 | AN62: 21973697.18 | AO62: 28414502.51 | AP62: 35302779.16 | AQ62: 42662290.4
A64: Payment schedule from signed DAs. Payments from DAs signed under the 2016 bylaw are shown in green, from the 2024 bylaw in orange. | B64: Year 0 | D64: 0 | H64: =$D64*H56*H55 -> 0 | I64: =$D64*A10*I55 -> 0 | J64: =$D64*J58*J55 -> 0 | K64: =$D64*K56*K55 -> 0 | L64: 0 | M64: 0 | N64: 0 | O64: 0 | P64: 0 | Q64: 0 | R64: 0 | S64: 0 | T64: 0 | U64: 0 | V64: 0 | W64: 0 | X64: 0 | Y64: 0 | Z64: 0 | AA64: 0 | AB64: 0 | AC64: 0 | AD64: 0 | AE64: 0 | AF64: 0 | AG64: 0 | AH64: 0 | AI64: 0 | AJ64: 0 | AK64: 0 | AL64: 0 | AM64: 0 | AN64: 0 | AO64: 0 | AP64: 0 | AQ64: 0
B65: Year 1 | D65: 0 | H65: =$D65*G56*G55 -> 0 | I65: =$D65*H56*H55 -> 0 | J65: =$D65*A10*I55 -> 0 | K65: =$D65*J58*J55 -> 0 | L65: =$D65*K56*K55 -> 0 | M65: 0 | N65: 0 | O65: 0 | P65: 0 | Q65: 0 | R65: 0 | S65: 0 | T65: 0 | U65: 0 | V65: 0 | W65: 0 | X65: 0 | Y65: 0 | Z65: 0 | AA65: 0 | AB65: 0 | AC65: 0 | AD65: 0 | AE65: 0 | AF65: 0 | AG65: 0 | AH65: 0 | AI65: 0 | AJ65: 0 | AK65: 0 | AL65: 0 | AM65: 0 | AN65: 0 | AO65: 0 | AP65: 0 | AQ65: 0
B66: Year 2 | D66: 0 | H66: =$D66*F57 -> 0 | I66: =$D66*G57 -> 0 | J66: =$D66*H57 -> 0 | K66: =$D66*I58 -> 0 | L66: 0 | M66: 0 | N66: 0 | O66: 0 | P66: 0 | Q66: 0 | R66: 0 | S66: 0 | T66: 0 | U66: 0 | V66: 0 | W66: 0 | X66: 0 | Y66: 0 | Z66: 0 | AA66: 0 | AB66: 0 | AC66: 0 | AD66: 0 | AE66: 0 | AF66: 0 | AG66: 0 | AH66: 0 | AI66: 0 | AJ66: 0 | AK66: 0 | AL66: 0 | AM66: 0 | AN66: 0 | AO66: 0 | AP66: 0 | AQ66: 0
B67: Year 3 | D67: 1 | H67: =$D67*E57 -> 2043862 | I67: =$D67*F57 -> 2880216 | J67: =$D67*G57 -> 4060650 | K67: =$D67*H57 -> 2537210 | L67: =$D67*I58 -> 2298392.033 | M67: 2536623.715 | N67: 2596904.599 | O67: 2708311.806 | P67: 2802332.652 | Q67: 2899436.082 | R67: 2999713.545 | S67: 3103258.664 | T67: 3210167.25 | U67: 3320537.325 | V67: 3434469.129 | W67: 3552065.132 | X67: 3673430.04 | Y67: 3798670.801 | Z67: 3927896.602 | AA67: 4061218.864 | AB67: 4198751.237 | AC67: 4340609.58 | AD67: 4486911.945 | AE67: 4637778.551 | AF67: 4793331.755 | AG67: 4953696.009 | AH67: 5118997.821 | AI67: 5289365.696 | AJ67: 5464930.08 | AK67: 5645823.287 | AL67: 5832179.42 | AM67: 5219503.032 | AN67: 5382675.336 | AO67: 5550241.798 | AP67: 5722279.133 | AQ67: 5898862.551
A69: Investment income: shown for each bylaw separately. | D69: Investment Income - 2016 Bylaw | H69: =((H61+(SUM(H64:H67)*0.5))-((H51+H13)*0.5))*'Tab 6 - Financial Model'!E26 -> 1995019.455 | I69: =((I61+(SUM(I65:I67)*0.5))-((I51+I13)*0.5))*'Tab 6 - Financial Model'!E26 -> 2186227.263 | J69: =((J61+(SUM(J66:J67)*0.5))-((J51+J13)*0.5))*'Tab 6 - Financial Model'!E26 -> 2428897.988 | K69: =((K61+(SUM(K67)*0.5))-((K51+K13)*0.5))*'Tab 6 - Financial Model'!E26 -> 2674621.809 | L69: =(L61-((L51+L13)*0.5))*'Tab 6 - Financial Model'!$E$26 -> 2146661.239 | M69: =(M61-((M51+M13)*0.5))*'Tab 6 - Financial Model'!$E$26 -> 1541628.006 | N69: =(N61-((N51+N13)*0.5))*'Tab 6 - Financial Model'!$E$26 -> 1035006.637 | O69: =(O61-((O51+O13)*0.5))*'Tab 6 - Financial Model'!$E$26 -> 506651.2112 | P69: =(P61-((P51+P13)*0.5))*'Tab 6 - Financial Model'!$E$26 -> 528386.5481 | Q69: =(Q61-((Q51+Q13)*0.5))*'Tab 6 - Financial Model'!$E$26 -> 551054.331 | R69: =(R61-((R51+R13)*0.5))*'Tab 6 - Financial Model'!$E$26 -> 574694.5618 | S69: =(S61-((S51+S13)*0.5))*'Tab 6 - Financial Model'!$E$26 -> 599348.9586 | T69: =(T61-((T51+T13)*0.5))*'Tab 6 - Financial Model'!$E$26 -> 625061.0289 | U69: =(U61-((U51+U13)*0.5))*'Tab 6 - Financial Model'!$E$26 -> 651876.147 | V69: =(V61-((V51+V13)*0.5))*'Tab 6 - Financial Model'!$E$26 -> 679841.6337 | W69: =(W61-((W51+W13)*0.5))*'Tab 6 - Financial Model'!$E$26 -> 709006.8398 | X69: =(X61-((X51+X13)*0.5))*'Tab 6 - Financial Model'!$E$26 -> 739423.2332 | Y69: =(Y61-(Y61*0.5))*'Tab 6 - Financial Model'!$E$26 -> 385572.245 | Z69: =(Z61-((Z51+Z13)*0.5))*'Tab 6 - Financial Model'!$E$26 -> 0 | AA69: =(AA61-((AA51+AA13)*0.5))*'Tab 6 - Financial Model'!$E$26 -> 0 | AB69: =(AB61-((AB51+AB13)*0.5))*'Tab 6 - Financial Model'!$E$26 -> 0 | AC69: =(AC61-((AC51+AC13)*0.5))*'Tab 6 - Financial Model'!$E$26 -> 0 | AD69: =(AD61-((AD51+AD13)*0.5))*'Tab 6 - Financial Model'!$E$26 -> 0 | AE69: =(AE61-((AE51+AE13)*0.5))*'Tab 6 - Financial Model'!$E$26 -> 0 | AF69: =(AF61-((AF51+AF13)*0.5))*'Tab 6 - Financial Model'!$E$26 -> 0 | AG69: =(AG61-((AG51+AG13)*0.5))*'Tab 6 - Financial Model'!$E$26 -> 0 | AH69: =(AH61-((AH51+AH13)*0.5))*'Tab 6 - Financial Model'!$E$26 -> 0 | AI69: =(AI61-((AI51+AI13)*0.5))*'Tab 6 - Financial Model'!$E$26 -> 0 | AJ69: =(AJ61-((AJ51+AJ13)*0.5))*'Tab 6 - Financial Model'!$E$26 -> 0 | AK69: =(AK61-((AK51+AK13)*0.5))*'Tab 6 - Financial Model'!$E$26 -> 0 | AL69: =(AL61-((AL51+AL13)*0.5))*'Tab 6 - Financial Model'!$E$26 -> 0 | AM69: =(AM61-((AM51+AM13)*0.5))*'Tab 6 - Financial Model'!$E$26 -> 0 | AN69: =(AN61-((AN51+AN13)*0.5))*'Tab 6 - Financial Model'!$E$26 -> 0 | AO69: =(AO61-((AO51+AO13)*0.5))*'Tab 6 - Financial Model'!$E$26 -> 0 | AP69: =(AP61-((AP51+AP13)*0.5))*'Tab 6 - Financial Model'!$E$26 -> 0 | AQ69: =(AQ61-((AQ51+AQ13)*0.5))*'Tab 6 - Financial Model'!$E$26 -> 0
D70: Investment Income - 2024 Bylaw | H70: =(H62-(H49*0.5))*'Tab 6 - Financial Model'!E26 -> 0 | I70: =((I62+(SUM(I64)*0.5))-(I49*0.5))*'Tab 6 - Financial Model'!E26 -> 0 | J70: =((J62+(SUM(J64:J65)*0.5))-(J49*0.5))*'Tab 6 - Financial Model'!E26 -> 0 | K70: =((K62+(SUM(K64:K66)*0.5))-(K49*0.5))*'Tab 6 - Financial Model'!E26 -> 0 | L70: =((L62+(SUM(L64:L67)*0.5))-(L49*0.5))*'Tab 6 - Financial Model'!$E$26 -> 49300.50911 | M70: =((M62+(SUM(M64:M67)*0.5))-(M49*0.5))*'Tab 6 - Financial Model'!$E$26 -> 155126.5887 | N70: =((N62+(SUM(N64:N67)*0.5))-(N49*0.5))*'Tab 6 - Financial Model'!$E$26 -> -178127.8208 | O70: =((O62+(SUM(O64:O67)*0.5))-(O49*0.5))*'Tab 6 - Financial Model'!$E$26 -> -521996.1349 | P70: =((P62+(SUM(P64:P67)*0.5))-(P49*0.5))*'Tab 6 - Financial Model'!$E$26 -> -426186.4454 | Q70: =((Q62+(SUM(Q64:Q67)*0.5))-(Q49*0.5))*'Tab 6 - Financial Model'!$E$26 -> -322166.9046 | R70: =((R62+(SUM(R64:R67)*0.5))-(R49*0.5))*'Tab 6 - Financial Model'!$E$26 -> -209451.1053 | S70: =((S62+(SUM(S64:S67)*0.5))-(S49*0.5))*'Tab 6 - Financial Model'!$E$26 -> -87527.80385 | T70: =((T62+(SUM(T64:T67)*0.5))-(T49*0.5))*'Tab 6 - Financial Model'!$E$26 -> 44140.23922 | U70: =((U62+(SUM(U64:U67)*0.5))-(U49*0.5))*'Tab 6 - Financial Model'!$E$26 -> 186117.4686 | V70: =((V62+(SUM(V64:V67)*0.5))-(V49*0.5))*'Tab 6 - Financial Model'!$E$26 -> 338996.7965 | W70: =((W62+(SUM(W64:W67)*0.5))-(W49*0.5))*'Tab 6 - Financial Model'!$E$26 -> 503400.9189 | X70: =((X62+(SUM(X64:X67)*0.5))-(X49*0.5))*'Tab 6 - Financial Model'!$E$26 -> 679983.6898 | Y70: =((Y62+(SUM(Y64:Y67)*0.5))-(Y49*0.5))*'Tab 6 - Financial Model'!$E$26 -> 206802.9356 | Z70: =((Z62+(SUM(Z64:Z67)*0.5))-(Z49*0.5))*'Tab 6 - Financial Model'!$E$26 -> -281218.9653 | AA70: =((AA62+(SUM(AA64:AA67)*0.5))-(AA49*0.5))*'Tab 6 - Financial Model'!$E$26 -> -121916.7321 | AB70: =((AB62+(SUM(AB64:AB67)*0.5))-(AB49*0.5))*'Tab 6 - Financial Model'!$E$26 -> 50029.39873 | AC70: =((AC62+(SUM(AC64:AC67)*0.5))-(AC49*0.5))*'Tab 6 - Financial Model'!$E$26 -> 235344.9495 | AD70: =((AD62+(SUM(AD64:AD67)*0.5))-(AD49*0.5))*'Tab 6 - Financial Model'!$E$26 -> 434791.5845 | AE70: =((AE62+(SUM(AE64:AE67)*0.5))-(AE49*0.5))*'Tab 6 - Financial Model'!$E$26 -> 649168.7546 | AF70: =((AF62+(SUM(AF64:AF67)*0.5))-(AF49*0.5))*'Tab 6 - Financial Model'!$E$26 -> 879315.4102 | AG70: =((AG62+(SUM(AG64:AG67)*0.5))-(AG49*0.5))*'Tab 6 - Financial Model'!$E$26 -> 1126111.787 | AH70: =((AH62+(SUM(AH64:AH67)*0.5))-(AH49*0.5))*'Tab 6 - Financial Model'!$E$26 -> 481084.6187 | AI70: =((AI62+(SUM(AI64:AI67)*0.5))-(AI49*0.5))*'Tab 6 - Financial Model'!$E$26 -> -184414.1002 | AJ70: =((AJ62+(SUM(AJ64:AJ67)*0.5))-(AJ49*0.5))*'Tab 6 - Financial Model'!$E$26 -> 38354.17926 | AK70: =((AK62+(SUM(AK64:AK67)*0.5))-(AK49*0.5))*'Tab 6 - Financial Model'!$E$26 -> 278325.2333 | AL70: =((AL62+(SUM(AL64:AL67)*0.5))-(AL49*0.5))*'Tab 6 - Financial Model'!$E$26 -> 536468.5439 | AM70: =((AM62+(SUM(AM64:AM67)*0.5))-(AM49*0.5))*'Tab 6 - Financial Model'!$E$26 -> 796541.633 | AN70: =((AN62+(SUM(AN64:AN67)*0.5))-(AN49*0.5))*'Tab 6 - Financial Model'!$E$26 -> 1058129.995 | AO70: =((AO62+(SUM(AO64:AO67)*0.5))-(AO49*0.5))*'Tab 6 - Financial Model'!$E$26 -> 1338034.844 | AP70: =((AP62+(SUM(AP64:AP67)*0.5))-(AP49*0.5))*'Tab 6 - Financial Model'!$E$26 -> 1637232.113 | AQ70: =((AQ62+(SUM(AQ64:AQ67)*0.5))-(AQ49*0.5))*'Tab 6 - Financial Model'!$E$26 -> 895889.3095
A72: Closing balances = Starting balance + contributions + investment income - expenditures | D72: Closing Balance - 2016 Bylaw | G72: 45482019 | H72: =H61+SUM(H64:H69)-H51-H13 -> 49520900.45 | I72: =I61+SUM(I65:I69)-I51-I13 -> 54587343.72 | J72: =J61+SUM(J66:J69)-J51-J13 -> 61076891.71 | K72: =K61+SUM(K67:K69)-K51-K13 -> 66288723.51 | L72: =IF(L61-L51-L13>0,L61+L69-L51-L13,0) -> 35935384.75 | M72: =IF(M61-M51-M13>0,M61+M69-M51-M13,0) -> 37477012.76 | N72: =IF(N61-N51-N13>0,N61+N69-N51-N13,0) -> 11810051.54 | O72: 12316702.75 | P72: 12845089.3 | Q72: 13396143.63 | R72: 13970838.19 | S72: 14570187.15 | T72: 15195248.18 | U72: 15847124.33 | V72: 16526965.96 | W72: 17235972.8 | X72: 17975396.04 | Y72: 0 | Z72: 0 | AA72: 0 | AB72: 0 | AC72: 0 | AD72: 0 | AE72: 0 | AF72: 0 | AG72: 0 | AH72: 0 | AI72: 0 | AJ72: 0 | AK72: 0 | AL72: 0 | AM72: 0 | AN72: 0 | AO72: 0 | AP72: 0 | AQ72: 0
D73: Closing Balance - 2024 Bylaw | H73: =SUM(H62:H66,H70)-H49 -> 0 | I73: 0 | J73: 0 | K73: =SUM(K62:K66,K70)-K49 -> 0 | L73: =SUM(L62:L67,L70)-L49 -> 2347692.542 | M73: =SUM(M62:M67,M70)-M49 -> 5039442.846 | N73: =SUM(N62:N67,N70)-N49 -> -13521897.98 | O73: -11335582.3 | P73: -8959436.097 | Q73: -6382166.92 | R73: -3591904.48 | S73: -576173.6201 | T73: 2678133.869 | U73: 6184788.663 | V73: 9958254.589 | W73: 14013720.64 | X73: 18367134.37 | Y73: -8519168.937 | Z73: -4872491.3 | AA73: -933189.168 | AB73: 3315591.468 | AC73: 7891545.998 | AD73: 12813249.53 | AE73: 18100196.83 | AF73: 23772844 | AG73: 29852651.79 | AH73: -6943379.823 | AI73: -1838428.228 | AJ73: 3664856.032 | AK73: 9589004.553 | AL73: 15957652.52 | AM73: 21973697.18 | AN73: 28414502.51 | AO73: 35302779.16 | AP73: 42662290.4 | AQ73: =SUM(AQ62:AQ67,AQ70)-AQ49 -> 0.2822145596

Sheet Tab 8 - Population Forecast
A1: Police - Benefit Share Details
A3: TZ1919 | B3: Location | C3: Levied land (ha) | D3: Unlevied land (ha) | E3: Total land (ha) | F3: Benefit share (levied land) | G3: Benefit share (unlevied land) | H3: Total share | I3: Total population | J3: Plan type | K3: Levied | L3: Unlevied | O3: Row Labels | P3: Sum of Levied | Q3: Sum of Leviable
A4: 501 | B4: Outside_levy_boundary | C4: 57.06360117 | D4: 0.0004578829704 | E4: 57.06405905 | F4: 0.999991976 | G4: 8.024016833e-06 | H4: 1 | I4: =VLOOKUP($A4,[1]allTZs!$B$1:$Y$1402,17,FALSE) -> 2577.812483 | J4: =VLOOKUP($A4,[1]allTZs!$B$1:$Y$1402,23,FALSE) -> Buildout | K4: =$I4*F4 -> 2577.791798 | L4: =$I4*G4 -> 0.02068441075 | O4: Area Structure Plan | P4: 448287.9088 | Q4: 416991.4379
A5: 502 | B5: Outside_levy_boundary | C5: 46.06340088 | D5: 0 | E5: 46.06340088 | F5: 1 | G5: 0 | H5: 1 | I5: =VLOOKUP($A5,[1]allTZs!$B$1:$Y$1402,17,FALSE) -> 2188.862634 | J5: =VLOOKUP($A5,[1]allTZs!$B$1:$Y$1402,23,FALSE) -> Buildout | K5: =$I5*F5 -> 2188.862634 | L5: 0 | O5: Buildout | P5: 37643.39697 | Q5: 17.97638396
A6: 503 | B6: Outside_levy_boundary | C6: 26.24962769 | D6: 0 | E6: 26.24962769 | F6: 1 | G6: 0 | H6: 1 | I6: =VLOOKUP($A6,[1]allTZs!$B$1:$Y$1402,17,FALSE) -> 799.1768723 | J6: =VLOOKUP($A6,[1]allTZs!$B$1:$Y$1402,23,FALSE) -> Buildout | K6: 799.1768723 | L6: 0 | O6: Community Plan | P6: 43894.60603 | Q6: 0.09956090391
A7: 504 | B7: Outside_levy_boundary | C7: 63.28111757 | D7: 0 | E7: 63.28111757 | F7: 1 | G7: 0 | H7: 1 | I7: =VLOOKUP($A7,[1]allTZs!$B$1:$Y$1402,17,FALSE) -> 2690.096043 | J7: =VLOOKUP($A7,[1]allTZs!$B$1:$Y$1402,23,FALSE) -> Buildout | K7: 2690.096043 | L7: 0 | O7: Unplanned | P7: 601.5575661 | Q7: 271005.6736
A8: 505 | B8: Outside_levy_boundary | C8: 13.28885467 | D8: 0 | E8: 13.28885467 | F8: 1 | G8: 0 | H8: 1 | I8: =VLOOKUP($A8,[1]allTZs!$B$1:$Y$1402,17,FALSE) -> 294.7166403 | J8: =VLOOKUP($A8,[1]allTZs!$B$1:$Y$1402,23,FALSE) -> Buildout | K8: 294.7166403 | L8: 0 | O8: Grand Total | P8: 530427.4694 | Q8: 688015.1875
A9: 506 | B9: Outside_levy_boundary | C9: 38.27889907 | D9: 0 | E9: 38.27889907 | F9: 1 | G9: 0 | H9: 1 | I9: =VLOOKUP($A9,[1]allTZs!$B$1:$Y$1402,17,FALSE) -> 1469.280767 | J9: =VLOOKUP($A9,[1]allTZs!$B$1:$Y$1402,23,FALSE) -> Buildout | K9: 1469.280767 | L9: 0
A10: 507 | B10: Outside_levy_boundary | C10: 69.92959046 | D10: 0 | E10: 69.92959046 | F10: 1 | G10: 0 | H10: 1 | I10: =VLOOKUP($A10,[1]allTZs!$B$1:$Y$1402,17,FALSE) -> 2106.040805 | J10: =VLOOKUP($A10,[1]allTZs!$B$1:$Y$1402,23,FALSE) -> Buildout | K10: 2106.040805 | L10: 0 | O10: Greenfield ASP population
A11: 508 | B11: Outside_levy_boundary | C11: 24.93995179 | D11: 0 | E11: 24.93995179 | F11: 1 | G11: 0 | H11: 1 | I11: =VLOOKUP($A11,[1]allTZs!$B$1:$Y$1402,17,FALSE) -> 1004.618034 | J11: =VLOOKUP($A11,[1]allTZs!$B$1:$Y$1402,23,FALSE) -> Buildout | K11: 1004.618034 | L11: 0 | O11: Planned (levied) | P11: =P4+P5+P6+Q5 -> 529843.8882
A12: 509 | B12: Outside_levy_boundary | C12: 39.90070929 | D12: 0 | E12: 39.90070929 | F12: 1 | G12: 0 | H12: 1 | I12: =VLOOKUP($A12,[1]allTZs!$B$1:$Y$1402,17,FALSE) -> 1334.829744 | J12: =VLOOKUP($A12,[1]allTZs!$B$1:$Y$1402,23,FALSE) -> Buildout | K12: 1334.829744 | L12: 0 | O12: Planned (unlevied) | P12: =Q4 -> 416991.4379
A13: 512 | B13: Outside_levy_boundary | C13: 31.37703863 | D13: 0 | E13: 31.37703863 | F13: 1 | G13: 0 | H13: 1 | I13: =VLOOKUP($A13,[1]allTZs!$B$1:$Y$1402,17,FALSE) -> 1338.468024 | J13: =VLOOKUP($A13,[1]allTZs!$B$1:$Y$1402,23,FALSE) -> Buildout | K13: 1338.468024 | L13: 0 | O13: Total Planned (levied + unlevied) | P13: =P11+P12 -> 946835.3261
A14: 513 | B14: Outside_levy_boundary | C14: 41.36764428 | D14: 0 | E14: 41.36764428 | F14: 1 | G14: 0 | H14: 1 | I14: =VLOOKUP($A14,[1]allTZs!$B$1:$Y$1402,17,FALSE) -> 1657.512198 | J14: =VLOOKUP($A14,[1]allTZs!$B$1:$Y$1402,23,FALSE) -> Buildout | K14: 1657.512198 | L14: 0 | O14: Unplanned | P14: =P7+Q7 -> 271607.2312
A15: 514 | B15: Outside_levy_boundary | C15: 98.30836161 | D15: 0 | E15: 98.30836161 | F15: 1 | G15: 0 | H15: 1 | I15: =VLOOKUP($A15,[1]allTZs!$B$1:$Y$1402,17,FALSE) -> 3717.301852 | J15: =VLOOKUP($A15,[1]allTZs!$B$1:$Y$1402,23,FALSE) -> Buildout | K15: 3717.301852 | L15: 0
A16: 515 | B16: Outside_levy_boundary | C16: 24.38956659 | D16: 0 | E16: 24.38956659 | F16: 1 | G16: 0 | H16: 1 | I16: =VLOOKUP($A16,[1]allTZs!$B$1:$Y$1402,17,FALSE) -> 0 | J16: =VLOOKUP($A16,[1]allTZs!$B$1:$Y$1402,23,FALSE) -> Buildout | K16: 0 | L16: 0
A17: 516 | B17: Outside_levy_boundary | C17: 63.53949296 | D17: 0 | E17: 63.53949296 | F17: 1 | G17: 0 | H17: 1 | I17: =VLOOKUP($A17,[1]allTZs!$B$1:$Y$1402,17,FALSE) -> 2281.364939 | J17: =VLOOKUP($A17,[1]allTZs!$B$1:$Y$1402,23,FALSE) -> Buildout | K17: 2281.364939 | L17: 0
A18: 517 | B18: Outside_levy_boundary | C18: 64.59120489 | D18: 0 | E18: 64.59120489 | F18: 1 | G18: 0 | H18: 1 | I18: =VLOOKUP($A18,[1]allTZs!$B$1:$Y$1402,17,FALSE) -> 3152.607559 | J18: =VLOOKUP($A18,[1]allTZs!$B$1:$Y$1402,23,FALSE) -> Buildout | K18: 3152.607559 | L18: 0
A19: 518 | B19: Outside_levy_boundary | C19: 14.99658912 | D19: 0 | E19: 14.99658912 | F19: 1 | G19: 0 | H19: 1 | I19: =VLOOKUP($A19,[1]allTZs!$B$1:$Y$1402,17,FALSE) -> 0 | J19: =VLOOKUP($A19,[1]allTZs!$B$1:$Y$1402,23,FALSE) -> Buildout | K19: 0 | L19: 0
A20: 559 | B20: Outside_levy_boundary | C20: 20.7982231 | D20: 0 | E20: 20.7982231 | F20: 1 | G20: 0 | H20: 1 | I20: =VLOOKUP($A20,[1]allTZs!$B$1:$Y$1402,17,FALSE) -> 954.0644508 | J20: =VLOOKUP($A20,[1]allTZs!$B$1:$Y$1402,23,FALSE) -> Buildout | K20: 954.0644508 | L20: 0
A21: 560 | B21: Outside_levy_boundary | C21: 7.161039209 | D21: 0 | E21: 7.161039209 | F21: 1 | G21: 0 | H21: 1 | I21: =VLOOKUP($A21,[1]allTZs!$B$1:$Y$1402,17,FALSE) -> 235.8696661 | J21: =VLOOKUP($A21,[1]allTZs!$B$1:$Y$1402,23,FALSE) -> Buildout | K21: 235.8696661 | L21: 0
A22: 561 | B22: Outside_levy_boundary | C22: 29.43104842 | D22: 0 | E22: 29.43104842 | F22: 1 | G22: 0 | H22: 1 | I22: =VLOOKUP($A22,[1]allTZs!$B$1:$Y$1402,17,FALSE) -> 1196.076289 | J22: =VLOOKUP($A22,[1]allTZs!$B$1:$Y$1402,23,FALSE) -> Buildout | K22: 1196.076289 | L22: 0
A23: 562 | B23: Outside_levy_boundary | C23: 19.57981436 | D23: 0 | E23: 19.57981436 | F23: 1 | G23: 0 | H23: 1 | I23: =VLOOKUP($A23,[1]allTZs!$B$1:$Y$1402,17,FALSE) -> 836.8231599 | J23: =VLOOKUP($A23,[1]allTZs!$B$1:$Y$1402,23,FALSE) -> Buildout | K23: 836.8231599 | L23: 0
A24: 601 | B24: Outside_levy_boundary | C24: 75.62375666 | D24: 0.04394111383 | E24: 75.66769777 | F24: 0.9994192883 | G24: 0.0005807116528 | H24: 1 | I24: =VLOOKUP($A24,[1]allTZs!$B$1:$Y$1402,17,FALSE) -> 2648.628 | J24: =VLOOKUP($A24,[1]allTZs!$B$1:$Y$1402,23,FALSE) -> Area Structure Plan | K24: 2647.089911 | L24: 1.538089143
A25: 612 | B25: Outside_levy_boundary | C25: 0 | D25: 66.4941441 | E25: 66.4941441 | F25: 0 | G25: 1 | H25: 1 | I25: =VLOOKUP($A25,[1]allTZs!$B$1:$Y$1402,17,FALSE) -> 3748.28 | J25: =VLOOKUP($A25,[1]allTZs!$B$1:$Y$1402,23,FALSE) -> Area Structure Plan | K25: 0 | L25: 3748.28
A26: 613 | B26: Outside_levy_boundary | C26: 104.6101669 | D26: 0 | E26: 104.6101669 | F26: 1 | G26: 0 | H26: 1 | I26: =VLOOKUP($A26,[1]allTZs!$B$1:$Y$1402,17,FALSE) -> 4075.280152 | J26: =VLOOKUP($A26,[1]allTZs!$B$1:$Y$1402,23,FALSE) -> Area Structure Plan | K26: 4075.280152 | L26: 0
A27: 614 | B27: Outside_levy_boundary | C27: 13.05161504 | D27: 0 | E27: 13.05161504 | F27: 1 | G27: 0 | H27: 1 | I27: =VLOOKUP($A27,[1]allTZs!$B$1:$Y$1402,17,FALSE) -> 259.404 | J27: =VLOOKUP($A27,[1]allTZs!$B$1:$Y$1402,23,FALSE) -> Area Structure Plan | K27: 259.404 | L27: 0
A28: 615 | B28: Outside_levy_boundary | C28: 27.17898004 | D28: 41.03158521 | E28: 68.21056525 | F28: 0.3984570416 | G28: 0.6015429584 | H28: 1 | I28: =VLOOKUP($A28,[1]allTZs!$B$1:$Y$1402,17,FALSE) -> 2204.084 | J28: =VLOOKUP($A28,[1]allTZs!$B$1:$Y$1402,23,FALSE) -> Area Structure Plan | K28: 878.2327901 | L28: 1325.85121
A29: 616 | B29: Outside_levy_boundary | C29: 4.763508366 | D29: 0 | E29: 4.763508366 | F29: 1 | G29: 0 | H29: 1 | I29: =VLOOKUP($A29,[1]allTZs!$B$1:$Y$1402,17,FALSE) -> 0 | J29: =VLOOKUP($A29,[1]allTZs!$B$1:$Y$1402,23,FALSE) -> Area Structure Plan | K29: 0 | L29: 0
A30: 617 | B30: Outside_levy_boundary | C30: 0 | D30: 0 | E30: 0 | F30: 0 | G30: 0 | H30: 0 | I30: =VLOOKUP($A30,[1]allTZs!$B$1:$Y$1402,17,FALSE) -> 0 | J30: =VLOOKUP($A30,[1]allTZs!$B$1:$Y$1402,23,FALSE) -> Buildout | K30: 0 | L30: 0
A31: 618 | B31: Outside_levy_boundary | C31: 52.24703402 | D31: 0 | E31: 52.24703402 | F31: 1 | G31: 0 | H31: 1 | I31: =VLOOKUP($A31,[1]allTZs!$B$1:$Y$1402,17,FALSE) -> 2557 | J31: =VLOOKUP($A31,[1]allTZs!$B$1:$Y$1402,23,FALSE) -> Area Structure Plan | K31: 2557 | L31: 0
A32: 619 | B32: Outside_levy_boundary | C32: 63.95120794 | D32: 2.689729141 | E32: 66.64093708 | F32: 0.9596384856 | G32: 0.0403615144 | H32: 1 | I32: =VLOOKUP($A32,[1]allTZs!$B$1:$Y$1402,17,FALSE) -> 1649.67 | J32: =VLOOKUP($A32,[1]allTZs!$B$1:$Y$1402,23,FALSE) -> Area Structure Plan | K32: 1583.086821 | L32: 66.58317946
A33: 620 | B33: Outside_levy_boundary | C33: 63.14741227 | D33: 4.25723195 | E33: 67.40464422 | F33: 0.9368406732 | G33: 0.06315932677 | H33: 1 | I33: =VLOOKUP($A33,[1]allTZs!$B$1:$Y$1402,17,FALSE) -> 2472.425 | J33: =VLOOKUP($A33,[1]allTZs!$B$1:$Y$1402,23,FALSE) -> Area Structure Plan | K33: 2316.268302 | L33: 156.1566985
A34: 621 | B34: Outside_levy_boundary | C34: 53.89465316 | D34: 0 | E34: 53.89465316 | F34: 1 | G34: 0 | H34: 1 | I34: =VLOOKUP($A34,[1]allTZs!$B$1:$Y$1402,17,FALSE) -> 1975 | J34: =VLOOKUP($A34,[1]allTZs!$B$1:$Y$1402,23,FALSE) -> Area Structure Plan | K34: 1975 | L34: 0
A35: 622 | B35: Outside_levy_boundary | C35: 3.164235422 | D35: 0 | E35: 3.164235422 | F35: 1 | G35: 0 | H35: 1 | I35: =VLOOKUP($A35,[1]allTZs!$B$1:$Y$1402,17,FALSE) -> 21 | J35: =VLOOKUP($A35,[1]allTZs!$B$1:$Y$1402,23,FALSE) -> Buildout | K35: 21 | L35: 0
A36: 623 | B36: Outside_levy_boundary | C36: 53.61113198 | D36: 0.03008440078 | E36: 53.64121638 | F36: 0.9994391551 | G36: 0.0005608448653 | H36: 1 | I36: =VLOOKUP($A36,[1]allTZs!$B$1:$Y$1402,17,FALSE) -> 2687 | J36: =VLOOKUP($A36,[1]allTZs!$B$1:$Y$1402,23,FALSE) -> Area Structure Plan | K36: 2685.49301 | L36: 1.506990153
A37: 624 | B37: Outside_levy_boundary | C37: 63.05606942 | D37: 0 | E37: 63.05606942 | F37: 1 | G37: 0 | H37: 1 | I37: =VLOOKUP($A37,[1]allTZs!$B$1:$Y$1402,17,FALSE) -> 1914.086485 | J37: =VLOOKUP($A37,[1]allTZs!$B$1:$Y$1402,23,FALSE) -> Area Structure Plan | K37: 1914.086485 | L37: 0
A38: 625 | B38: Outside_levy_boundary | C38: 105.525152 | D38: 9.002179724 | E38: 114.5273318 | F38: 0.921397106 | G38: 0.07860289405 | H38: 1 | I38: =VLOOKUP($A38,[1]allTZs!$B$1:$Y$1402,17,FALSE) -> 5115.933 | J38: =VLOOKUP($A38,[1]allTZs!$B$1:$Y$1402,23,FALSE) -> Area Structure Plan | K38: 4713.80586 | L38: 402.1271396
A39: 626 | B39: Outside_levy_boundary | C39: 93.56426003 | D39: 27.55998902 | E39: 121.124249 | F39: 0.7724651403 | G39: 0.2275348597 | H39: 1 | I39: =VLOOKUP($A39,[1]allTZs!$B$1:$Y$1402,17,FALSE) -> 8038.814 | J39: =VLOOKUP($A39,[1]allTZs!$B$1:$Y$1402,23,FALSE) -> Area Structure Plan | K39: 6209.703584 | L39: 1829.110416
A40: 627 | B40: Outside_levy_boundary | C40: 94.50359757 | D40: 7.443988509 | E40: 101.9475861 | F40: 0.9269821994 | G40: 0.07301780057 | H40: 1 | I40: =VLOOKUP($A40,[1]allTZs!$B$1:$Y$1402,17,FALSE) -> 3924.382 | J40: =VLOOKUP($A40,[1]allTZs!$B$1:$Y$1402,23,FALSE) -> Area Structure Plan | K40: 3637.832258 | L40: 286.5497423
A41: 628 | B41: Outside_levy_boundary | C41: 11.65041088 | D41: 0 | E41: 11.65041088 | F41: 1 | G41: 0 | H41: 1 | I41: =VLOOKUP($A41,[1]allTZs!$B$1:$Y$1402,17,FALSE) -> 15 | J41: =VLOOKUP($A41,[1]allTZs!$B$1:$Y$1402,23,FALSE) -> Area Structure Plan | K41: 15 | L41: 0
A42: 629 | B42: Outside_levy_boundary | C42: 0.02029448735 | D42: 77.22783948 | E42: 77.24813397 | F42: 0.0002627181566 | G42: 0.9997372818 | H42: 1 | I42: =VLOOKUP($A42,[1]allTZs!$B$1:$Y$1402,17,FALSE) -> 4268.70224 | J42: =VLOOKUP($A42,[1]allTZs!$B$1:$Y$1402,23,FALSE) -> Area Structure Plan | K42: 1.121465583 | L42: 4267.580775
A43: 630 | B43: Outside_levy_boundary | C43: 0 | D43: 0 | E43: 0 | F43: 0 | G43: 0 | H43: 0 | I43: =VLOOKUP($A43,[1]allTZs!$B$1:$Y$1402,17,FALSE) -> 0 | J43: =VLOOKUP($A43,[1]allTZs!$B$1:$Y$1402,23,FALSE) -> Area Structure Plan | K43: 0 | L43: 0
A44: 631 | B44: Outside_levy_boundary | C44: 62.67662744 | D44: 0 | E44: 62.67662744 | F44: 1 | G44: 0 | H44: 1 | I44: =VLOOKUP($A44,[1]allTZs!$B$1:$Y$1402,17,FALSE) -> 2840 | J44: =VLOOKUP($A44,[1]allTZs!$B$1:$Y$1402,23,FALSE) -> Area Structure Plan | K44: 2840 | L44: 0
A45: 632 | B45: Outside_levy_boundary | C45: 72.1372536 | D45: 9.597863796 | E45: 81.7351174 | F45: 0.8825735608 | G45: 0.1174264392 | H45: 1 | I45: =VLOOKUP($A45,[1]allTZs!$B$1:$Y$1402,17,FALSE) -> 3348 | J45: =VLOOKUP($A45,[1]allTZs!$B$1:$Y$1402,23,FALSE) -> Area Structure Plan | K45: 2954.856281 | L45: 393.1437185
A46: 633 | B46: Outside_levy_boundary | C46: 84.78901505 | D46: 1.356737935e-05 | E46: 84.78902862 | F46: 0.99999984 | G46: 1.600133835e-07 | H46: 1 | I46: =VLOOKUP($A46,[1]allTZs!$B$1:$Y$1402,17,FALSE) -> 813 | J46: =VLOOKUP($A46,[1]allTZs!$B$1:$Y$1402,23,FALSE) -> Area Structure Plan | K46: 812.9998699 | L46: 0.0001300908807
A47: 634 | B47: Outside_levy_boundary | C47: 10.99915034 | D47: 0 | E47: 10.99915034 | F47: 1 | G47: 0 | H47: 1 | I47: =VLOOKUP($A47,[1]allTZs!$B$1:$Y$1402,17,FALSE) -> 280 | J47: =VLOOKUP($A47,[1]allTZs!$B$1:$Y$1402,23,FALSE) -> Area Structure Plan | K47: 280 | L47: 0
A48: 635 | B48: Outside_levy_boundary | C48: 22.47090154 | D48: 0 | E48: 22.47090154 | F48: 1 | G48: 0 | H48: 1 | I48: =VLOOKUP($A48,[1]allTZs!$B$1:$Y$1402,17,FALSE) -> 1008 | J48: =VLOOKUP($A48,[1]allTZs!$B$1:$Y$1402,23,FALSE) -> Area Structure Plan | K48: 1008 | L48: 0
A49: 636 | B49: Outside_levy_boundary | C49: 32.29629995 | D49: 0.003680501873 | E49: 32.29998045 | F49: 0.9998860525 | G49: 0.0001139474954 | H49: 1 | I49: =VLOOKUP($A49,[1]allTZs!$B$1:$Y$1402,17,FALSE) -> 1634.139 | J49: =VLOOKUP($A49,[1]allTZs!$B$1:$Y$1402,23,FALSE) -> Area Structure Plan | K49: 1633.952794 | L49: 0.1862060461
A50: 637 | B50: Outside_levy_boundary | C50: 21.40253774 | D50: 11.60185063 | E50: 33.00438837 | F50: 0.6484755149 | G50: 0.3515244851 | H50: 1 | I50: =VLOOKUP($A50,[1]allTZs!$B$1:$Y$1402,17,FALSE) -> 921.905 | J50: =VLOOKUP($A50,[1]allTZs!$B$1:$Y$1402,23,FALSE) -> Area Structure Plan | K50: 597.8328196 | L50: 324.0721804
A51: 638 | B51: Outside_levy_boundary | C51: 37.93206934 | D51: 5.604879275 | E51: 43.53694861 | F51: 0.8712615502 | G51: 0.1287384498 | H51: 1 | I51: =VLOOKUP($A51,[1]allTZs!$B$1:$Y$1402,17,FALSE) -> 1304.227 | J51: =VLOOKUP($A51,[1]allTZs!$B$1:$Y$1402,23,FALSE) -> Area Structure Plan | K51: 1136.322838 | L51: 167.9041622
A52: 639 | B52: Outside_levy_boundary | C52: 29.17648328 | D52: 21.98136799 | E52: 51.15785127 | F52: 0.5703226886 | G52: 0.4296773114 | H52: 1 | I52: =VLOOKUP($A52,[1]allTZs!$B$1:$Y$1402,17,FALSE) -> 3904.776104 | J52: =VLOOKUP($A52,[1]allTZs!$B$1:$Y$1402,23,FALSE) -> Area Structure Plan | K52: 2226.982406 | L52: 1677.793698
A53: 640 | B53: Outside_levy_boundary | C53: 42.98349247 | D53: 3.250674206 | E53: 46.23416668 | F53: 0.9296910826 | G53: 0.07030891739 | H53: 1 | I53: =VLOOKUP($A53,[1]allTZs!$B$1:$Y$1402,17,FALSE) -> 2162.554 | J53: =VLOOKUP($A53,[1]allTZs!$B$1:$Y$1402,23,FALSE) -> Area Structure Plan | K53: 2010.507169 | L53: 152.0468305
A54: 641 | B54: Outside_levy_boundary | C54: 19.62816332 | D54: 0.6265862806 | E54: 20.2547496 | F54: 0.9690647234 | G54: 0.03093527656 | H54: 1 | I54: =VLOOKUP($A54,[1]allTZs!$B$1:$Y$1402,17,FALSE) -> 276.835 | J54: =VLOOKUP($A54,[1]allTZs!$B$1:$Y$1402,23,FALSE) -> Area Structure Plan | K54: 268.2710327 | L54: 8.563967287
A55: 642 | B55: Outside_levy_boundary | C55: 32.57527413 | D55: 1.688382316 | E55: 34.26365645 | F55: 0.9507238138 | G55: 0.04927618623 | H55: 1 | I55: =VLOOKUP($A55,[1]allTZs!$B$1:$Y$1402,17,FALSE) -> 822.755 | J55: =VLOOKUP($A55,[1]allTZs!$B$1:$Y$1402,23,FALSE) -> Area Structure Plan | K55: 782.2127714 | L55: 40.5422286
A56: 643 | B56: Outside_levy_boundary | C56: 31.09511644 | D56: 0 | E56: 31.09511644 | F56: 1 | G56: 0 | H56: 1 | I56: =VLOOKUP($A56,[1]allTZs!$B$1:$Y$1402,17,FALSE) -> 1411 | J56: =VLOOKUP($A56,[1]allTZs!$B$1:$Y$1402,23,FALSE) -> Area Structure Plan | K56: 1411 | L56: 0
A57: 644 | B57: Outside_levy_boundary | C57: 33.97251064 | D57: 0 | E57: 33.97251064 | F57: 1 | G57: 0 | H57: 1 | I57: =VLOOKUP($A57,[1]allTZs!$B$1:$Y$1402,17,FALSE) -> 1451 | J57: =VLOOKUP($A57,[1]allTZs!$B$1:$Y$1402,23,FALSE) -> Area Structure Plan | K57: 1451 | L57: 0
A58: 1001 | B58: Outside_levy_boundary | C58: 0 | D58: 126.7301751 | E58: 126.7301751 | F58: 0 | G58: 1 | H58: 1 | I58: =VLOOKUP($A58,[1]allTZs!$B$1:$Y$1402,17,FALSE) -> 8178.167008 | J58: =VLOOKUP($A58,[1]allTZs!$B$1:$Y$1402,23,FALSE) -> Unplanned | K58: 0 | L58: 8178.167008
A59: 1002 | B59: Outside_levy_boundary | C59: 0 | D59: 118.0900856 | E59: 118.0900856 | F59: 0 | G59: 1 | H59: 1 | I59: =VLOOKUP($A59,[1]allTZs!$B$1:$Y$1402,17,FALSE) -> 6949.141548 | J59: =VLOOKUP($A59,[1]allTZs!$B$1:$Y$1402,23,FALSE) -> Unplanned | K59: 0 | L59: 6949.141548
A60: 1003 | B60: Outside_levy_boundary | C60: 0 | D60: 121.3264322 | E60: 121.3264322 | F60: 0 | G60: 1 | H60: 1 | I60: =VLOOKUP($A60,[1]allTZs!$B$1:$Y$1402,17,FALSE) -> 7211.038314 | J60: =VLOOKUP($A60,[1]allTZs!$B$1:$Y$1402,23,FALSE) -> Unplanned | K60: 0 | L60: 7211.038314
A61: 1004 | B61: Outside_levy_boundary | C61: 0 | D61: 114.0250793 | E61: 114.0250793 | F61: 0 | G61: 1 | H61: 1 | I61: =VLOOKUP($A61,[1]allTZs!$B$1:$Y$1402,17,FALSE) -> 7789.060566 | J61: =VLOOKUP($A61,[1]allTZs!$B$1:$Y$1402,23,FALSE) -> Unplanned | K61: 0 | L61: 7789.060566
A62: 1005 | B62: Outside_levy_boundary | C62: 0 | D62: 34.75915593 | E62: 34.75915593 | F62: 0 | G62: 1 | H62: 1 | I62: =VLOOKUP($A62,[1]allTZs!$B$1:$Y$1402,17,FALSE) -> 2490.130306 | J62: =VLOOKUP($A62,[1]allTZs!$B$1:$Y$1402,23,FALSE) -> Unplanned | K62: 0 | L62: 2490.130306
A63: 1006 | B63: Outside_levy_boundary | C63: 0 | D63: 27.80871855 | E63: 27.80871855 | F63: 0 | G63: 1 | H63: 1 | I63: =VLOOKUP($A63,[1]allTZs!$B$1:$Y$1402,17,FALSE) -> 2693.358297 | J63: =VLOOKUP($A63,[1]allTZs!$B$1:$Y$1402,23,FALSE) -> Area Structure Plan | K63: 0 | L63: 2693.358297
A64: 1007 | B64: Outside_levy_boundary | C64: 0 | D64: 31.19344652 | E64: 31.19344652 | F64: 0 | G64: 1 | H64: 1 | I64: =VLOOKUP($A64,[1]allTZs!$B$1:$Y$1402,17,FALSE) -> 2263.233721 | J64: =VLOOKUP($A64,[1]allTZs!$B$1:$Y$1402,23,FALSE) -> Area Structure Plan | K64: 0 | L64: 2263.233721
A65: 1008 | B65: Outside_levy_boundary | C65: 0 | D65: 134.4435308 | E65: 134.4435308 | F65: 0 | G65: 1 | H65: 1 | I65: =VLOOKUP($A65,[1]allTZs!$B$1:$Y$1402,17,FALSE) -> 7893.252883 | J65: =VLOOKUP($A65,[1]allTZs!$B$1:$Y$1402,23,FALSE) -> Unplanned | K65: 0 | L65: 7893.252883
A66: 1009 | B66: Outside_levy_boundary | C66: 0 | D66: 32.69150305 | E66: 32.69150305 | F66: 0 | G66: 1 | H66: 1 | I66: =VLOOKUP($A66,[1]allTZs!$B$1:$Y$1402,17,FALSE) -> 0 | J66: =VLOOKUP($A66,[1]allTZs!$B$1:$Y$1402,23,FALSE) -> Area Structure Plan | K66: 0 | L66: 0
A67: 1010 | B67: Outside_levy_boundary | C67: 0 | D67: 82.76385998 | E67: 82.76385998 | F67: 0 | G67: 1 | H67: 1 | I67: =VLOOKUP($A67,[1]allTZs!$B$1:$Y$1402,17,FALSE) -> 7062.019773 | J67: =VLOOKUP($A67,[1]allTZs!$B$1:$Y$1402,23,FALSE) -> Area Structure Plan | K67: 0 | L67: 7062.019773
A68: 1011 | B68: Outside_levy_boundary | C68: 0 | D68: 46.70427473 | E68: 46.70427473 | F68: 0 | G68: 1 | H68: 1 | I68: =VLOOKUP($A68,[1]allTZs!$B$1:$Y$1402,17,FALSE) -> 3 | J68: =VLOOKUP($A68,[1]allTZs!$B$1:$Y$1402,23,FALSE) -> Area Structure Plan | K68: 0 | L68: 3
A69: 1012 | B69: Outside_levy_boundary | C69: 0 | D69: 88.01123089 | E69: 88.01123089 | F69: 0 | G69: 1 | H69: 1 | I69: =VLOOKUP($A69,[1]allTZs!$B$1:$Y$1402,17,FALSE) -> 6897.317187 | J69: =VLOOKUP($A69,[1]allTZs!$B$1:$Y$1402,23,FALSE) -> Area Structure Plan | K69: =$I69*F69 -> 0 | L69: 6897.317187
A70: 1013 | B70: Outside_levy_boundary | C70: 0 | D70: 0 | E70: 0 | F70: 0 | G70: 0 | H70: 0 | I70: =VLOOKUP($A70,[1]allTZs!$B$1:$Y$1402,17,FALSE) -> 3 | J70: =VLOOKUP($A70,[1]allTZs!$B$1:$Y$1402,23,FALSE) -> Buildout | K70: 0 | L70: 0
A71: 1014 | B71: Outside_levy_boundary | C71: 0 | D71: 55.15964071 | E71: 55.15964071 | F71: 0 | G71: 1 | H71: 1 | I71: =VLOOKUP($A71,[1]allTZs!$B$1:$Y$1402,17,FALSE) -> 2 | J71: =VLOOKUP($A71,[1]allTZs!$B$1:$Y$1402,23,FALSE) -> Area Structure Plan | K71: 0 | L71: 2
A72: 1015 | B72: Outside_levy_boundary | C72: 0 | D72: 78.57124417 | E72: 78.57124417 | F72: 0 | G72: 1 | H72: 1 | I72: =VLOOKUP($A72,[1]allTZs!$B$1:$Y$1402,17,FALSE) -> 4 | J72: =VLOOKUP($A72,[1]allTZs!$B$1:$Y$1402,23,FALSE) -> Area Structure Plan | K72: 0 | L72: 4
A73: 1016 | B73: Outside_levy_boundary | C73: 36.78263661 | D73: 52.06059659 | E73: 88.84323321 | F73: 0.4140173121 | G73: 0.5859826879 | H73: 1 | I73: =VLOOKUP($A73,[1]allTZs!$B$1:$Y$1402,17,FALSE) -> 4848.931822 | J73: =VLOOKUP($A73,[1]allTZs!$B$1:$Y$1402,23,FALSE) -> Area Structure Plan | K73: 2007.54172 | L73: 2841.390102
A74: 1036 | B74: Outside_levy_boundary | C74: 0 | D74: 65.64742702 | E74: 65.64742702 | F74: 0 | G74: 1 | H74: 1 | I74: =VLOOKUP($A74,[1]allTZs!$B$1:$Y$1402,17,FALSE) -> 5820.130621 | J74: =VLOOKUP($A74,[1]allTZs!$B$1:$Y$1402,23,FALSE) -> Area Structure Plan | K74: 0 | L74: 5820.130621
A75: 1068 | B75: Outside_levy_boundary | C75: 0 | D75: 39.19799306 | E75: 39.19799306 | F75: 0 | G75: 1 | H75: 1 | I75: =VLOOKUP($A75,[1]allTZs!$B$1:$Y$1402,17,FALSE) -> 2676.842752 | J75: =VLOOKUP($A75,[1]allTZs!$B$1:$Y$1402,23,FALSE) -> Unplanned | K75: 0 | L75: 2676.842752
A76: 1101 | B76: Outside_levy_boundary | C76: 115.56785 | D76: 14.92609548 | E76: 130.4939454 | F76: 0.8856184827 | G76: 0.1143815173 | H76: 1 | I76: =VLOOKUP($A76,[1]allTZs!$B$1:$Y$1402,17,FALSE) -> 2189 | J76: =VLOOKUP($A76,[1]allTZs!$B$1:$Y$1402,23,FALSE) -> Area Structure Plan | K76: 1938.618859 | L76: 250.3811414
A77: 1102 | B77: Outside_levy_boundary | C77: 38.06628544 | D77: 0 | E77: 38.06628544 | F77: 1 | G77: 0 | H77: 1 | I77: =VLOOKUP($A77,[1]allTZs!$B$1:$Y$1402,17,FALSE) -> 1681 | J77: =VLOOKUP($A77,[1]allTZs!$B$1:$Y$1402,23,FALSE) -> Area Structure Plan | K77: 1681 | L77: 0
A78: 1103 | B78: Outside_levy_boundary | C78: 45.65765124 | D78: 0 | E78: 45.65765124 | F78: 1 | G78: 0 | H78: 1 | I78: =VLOOKUP($A78,[1]allTZs!$B$1:$Y$1402,17,FALSE) -> 1702 | J78: =VLOOKUP($A78,[1]allTZs!$B$1:$Y$1402,23,FALSE) -> Area Structure Plan | K78: 1702 | L78: 0
A79: 1104 | B79: Outside_levy_boundary | C79: 69.64612359 | D79: 0 | E79: 69.64612359 | F79: 1 | G79: 0 | H79: 1 | I79: =VLOOKUP($A79,[1]allTZs!$B$1:$Y$1402,17,FALSE) -> 3232 | J79: =VLOOKUP($A79,[1]allTZs!$B$1:$Y$1402,23,FALSE) -> Area Structure Plan | K79: 3232 | L79: 0
A80: 1105 | B80: Outside_levy_boundary | C80: 59.52922085 | D80: 0 | E80: 59.52922085 | F80: 1 | G80: 0 | H80: 1 | I80: =VLOOKUP($A80,[1]allTZs!$B$1:$Y$1402,17,FALSE) -> 2412 | J80: =VLOOKUP($A80,[1]allTZs!$B$1:$Y$1402,23,FALSE) -> Area Structure Plan | K80: 2412 | L80: 0
A81: 1106 | B81: Outside_levy_boundary | C81: 24.87764103 | D81: 0 | E81: 24.87764103 | F81: 1 | G81: 0 | H81: 1 | I81: =VLOOKUP($A81,[1]allTZs!$B$1:$Y$1402,17,FALSE) -> 1438 | J81: =VLOOKUP($A81,[1]allTZs!$B$1:$Y$1402,23,FALSE) -> Area Structure Plan | K81: 1438 | L81: 0
A82: 1107 | B82: Outside_levy_boundary | C82: 1.125899046 | D82: 2.311774315e-05 | E82: 1.125922164 | F82: 0.9999794677 | G82: 2.053227468e-05 | H82: 1 | I82: =VLOOKUP($A82,[1]allTZs!$B$1:$Y$1402,17,FALSE) -> 0 | J82: =VLOOKUP($A82,[1]allTZs!$B$1:$Y$1402,23,FALSE) -> Area Structure Plan | K82: 0 | L82: 0
A83: 1108 | B83: Outside_levy_boundary | C83: 113.0494206 | D83: 0 | E83: 113.0494206 | F83: 1 | G83: 0 | H83: 1 | I83: =VLOOKUP($A83,[1]allTZs!$B$1:$Y$1402,17,FALSE) -> 5237.094 | J83: =VLOOKUP($A83,[1]allTZs!$B$1:$Y$1402,23,FALSE) -> Area Structure Plan | K83: 5237.094 | L83: 0
A84: 1109 | B84: Outside_levy_boundary | C84: 46.61482271 | D84: 116.6015531 | E84: 163.2163758 | F84: 0.2856013833 | G84: 0.7143986167 | H84: 1 | I84: =VLOOKUP($A84,[1]allTZs!$B$1:$Y$1402,17,FALSE) -> 9877.479503 | J84: =VLOOKUP($A84,[1]allTZs!$B$1:$Y$1402,23,FALSE) -> Area Structure Plan | K84: 2821.02181 | L84: 7056.457693
A85: 1110 | B85: Outside_levy_boundary | C85: 2.103763741 | D85: 4.320326717 | E85: 6.424090458 | F85: 0.3274804044 | G85: 0.6725195956 | H85: 1 | I85: =VLOOKUP($A85,[1]allTZs!$B$1:$Y$1402,17,FALSE) -> 0 | J85: =VLOOKUP($A85,[1]allTZs!$B$1:$Y$1402,23,FALSE) -> Area Structure Plan | K85: 0 | L85: 0
A86: 1111 | B86: Outside_levy_boundary | C86: 96.67483161 | D86: 0 | E86: 96.67483161 | F86: 1 | G86: 0 | H86: 1 | I86: =VLOOKUP($A86,[1]allTZs!$B$1:$Y$1402,17,FALSE) -> 7726.184 | J86: =VLOOKUP($A86,[1]allTZs!$B$1:$Y$1402,23,FALSE) -> Area Structure Plan | K86: 7726.184 | L86: 0
A87: 1117 | B87: Outside_levy_boundary | C87: 32.43880252 | D87: 0 | E87: 32.43880252 | F87: 1 | G87: 0 | H87: 1 | I87: =VLOOKUP($A87,[1]allTZs!$B$1:$Y$1402,17,FALSE) -> 1337.6 | J87: =VLOOKUP($A87,[1]allTZs!$B$1:$Y$1402,23,FALSE) -> Area Structure Plan | K87: 1337.6 | L87: 0
A88: 1118 | B88: Outside_levy_boundary | C88: 72.78253239 | D88: 2.920746186 | E88: 75.70327858 | F88: 0.9614184981 | G88: 0.03858150189 | H88: 1 | I88: =VLOOKUP($A88,[1]allTZs!$B$1:$Y$1402,17,FALSE) -> 4919.93 | J88: =VLOOKUP($A88,[1]allTZs!$B$1:$Y$1402,23,FALSE) -> Area Structure Plan | K88: 4730.111711 | L88: 189.8182886
A89: 1119 | B89: Outside_levy_boundary | C89: 87.3012564 | D89: 60.11076124 | E89: 147.4120176 | F89: 0.5922261821 | G89: 0.4077738179 | H89: 1 | I89: =VLOOKUP($A89,[1]allTZs!$B$1:$Y$1402,17,FALSE) -> 6901.369293 | J89: =VLOOKUP($A89,[1]allTZs!$B$1:$Y$1402,23,FALSE) -> Area Structure Plan | K89: 4087.171588 | L89: 2814.197706
A90: 1120 | B90: Outside_levy_boundary | C90: 12.20171907 | D90: 0 | E90: 12.20171907 | F90: 1 | G90: 0 | H90: 1 | I90: =VLOOKUP($A90,[1]allTZs!$B$1:$Y$1402,17,FALSE) -> 606.1 | J90: =VLOOKUP($A90,[1]allTZs!$B$1:$Y$1402,23,FALSE) -> Area Structure Plan | K90: 606.1 | L90: 0
A91: 1121 | B91: Outside_levy_boundary | C91: 0 | D91: 51.54117512 | E91: 51.54117512 | F91: 0 | G91: 1 | H91: 1 | I91: =VLOOKUP($A91,[1]allTZs!$B$1:$Y$1402,17,FALSE) -> 3163.368752 | J91: =VLOOKUP($A91,[1]allTZs!$B$1:$Y$1402,23,FALSE) -> Unplanned | K91: 0 | L91: 3163.368752
A92: 1122 | B92: Outside_levy_boundary | C92: 0 | D92: 101.8494233 | E92: 101.8494233 | F92: 0 | G92: 1 | H92: 1 | I92: =VLOOKUP($A92,[1]allTZs!$B$1:$Y$1402,17,FALSE) -> 6552.47408 | J92: =VLOOKUP($A92,[1]allTZs!$B$1:$Y$1402,23,FALSE) -> Unplanned | K92: 0 | L92: 6552.47408
A93: 1123 | B93: Outside_levy_boundary | C93: 0 | D93: 91.41850352 | E93: 91.41850352 | F93: 0 | G93: 1 | H93: 1 | I93: =VLOOKUP($A93,[1]allTZs!$B$1:$Y$1402,17,FALSE) -> 8043.170907 | J93: =VLOOKUP($A93,[1]allTZs!$B$1:$Y$1402,23,FALSE) -> Area Structure Plan | K93: 0 | L93: 8043.170907
A94: 1124 | B94: Outside_levy_boundary | C94: 20.55353573 | D94: 47.32346742 | E94: 67.87700315 | F94: 0.3028055862 | G94: 0.6971944138 | H94: 1 | I94: =VLOOKUP($A94,[1]allTZs!$B$1:$Y$1402,17,FALSE) -> 3449.498675 | J94: =VLOOKUP($A94,[1]allTZs!$B$1:$Y$1402,23,FALSE) -> Area Structure Plan | K94: 1044.527469 | L94: 2404.971207
A95: 1201 | B95: Outside_levy_boundary | C95: 76.83423341 | D95: 11.03341288 | E95: 87.8676463 | F95: 0.8744314506 | G95: 0.1255685494 | H95: 1 | I95: =VLOOKUP($A95,[1]allTZs!$B$1:$Y$1402,17,FALSE) -> 4348.714 | J95: =VLOOKUP($A95,[1]allTZs!$B$1:$Y$1402,23,FALSE) -> Area Structure Plan | K95: 3802.652291 | L95: 546.0617087
A96: 1202 | B96: Outside_levy_boundary | C96: 0 | D96: 19.5238622 | E96: 19.5238622 | F96: 0 | G96: 1 | H96: 1 | I96: =VLOOKUP($A96,[1]allTZs!$B$1:$Y$1402,17,FALSE) -> 0 | J96: =VLOOKUP($A96,[1]allTZs!$B$1:$Y$1402,23,FALSE) -> Area Structure Plan | K96: 0 | L96: 0
A97: 1203 | B97: Outside_levy_boundary | C97: 0 | D97: 37.7662645 | E97: 37.7662645 | F97: 0 | G97: 1 | H97: 1 | I97: =VLOOKUP($A97,[1]allTZs!$B$1:$Y$1402,17,FALSE) -> 0 | J97: =VLOOKUP($A97,[1]allTZs!$B$1:$Y$1402,23,FALSE) -> Area Structure Plan | K97: 0 | L97: 0
A98: 1204 | B98: Outside_levy_boundary | C98: 0 | D98: 40.1372338 | E98: 40.1372338 | F98: 0 | G98: 1 | H98: 1 | I98: =VLOOKUP($A98,[1]allTZs!$B$1:$Y$1402,17,FALSE) -> 6978.106016 | J98: =VLOOKUP($A98,[1]allTZs!$B$1:$Y$1402,23,FALSE) -> Area Structure Plan | K98: 0 | L98: 6978.106016
A99: 1205 | B99: Outside_levy_boundary | C99: 109.194816 | D99: 0.01076392194 | E99: 109.2055799 | F99: 0.9999014343 | G99: 9.856567721e-05 | H99: 1 | I99: =VLOOKUP($A99,[1]allTZs!$B$1:$Y$1402,17,FALSE) -> 5043 | J99: =VLOOKUP($A99,[1]allTZs!$B$1:$Y$1402,23,FALSE) -> Area Structure Plan | K99: 5042.502933 | L99: 0.4970667102
A100: 1210 | B100: Outside_levy_boundary | C100: 0.09950605141 | D100: 60.0134669 | E100: 60.11297295 | F100: 0.001655317422 | G100: 0.9983446826 | H100: 1 | I100: =VLOOKUP($A100,[1]allTZs!$B$1:$Y$1402,17,FALSE) -> 3026.598085 | J100: =VLOOKUP($A100,[1]allTZs!$B$1:$Y$1402,23,FALSE) -> Area Structure Plan | K100: 5.009980539 | L100: 3021.588104
A101: 1211 | B101: Outside_levy_boundary | C101: 3.135335681 | D101: 60.41440737 | E101: 63.54974305 | F101: 0.04933671688 | G101: 0.9506632831 | H101: 1 | I101: =VLOOKUP($A101,[1]allTZs!$B$1:$Y$1402,17,FALSE) -> 4777.752352 | J101: =VLOOKUP($A101,[1]allTZs!$B$1:$Y$1402,23,FALSE) -> Area Structure Plan | K101: 235.7186151 | L101: 4542.033737
A102: 1212 | B102: Outside_levy_boundary | C102: 55.60614836 | D102: 10.62193695 | E102: 66.22808532 | F102: 0.8396158231 | G102: 0.1603841769 | H102: 1 | I102: =VLOOKUP($A102,[1]allTZs!$B$1:$Y$1402,17,FALSE) -> 3245.269527 | J102: =VLOOKUP($A102,[1]allTZs!$B$1:$Y$1402,23,FALSE) -> Area Structure Plan | K102: 2724.779645 | L102: 520.489882
A103: 1213 | B103: Outside_levy_boundary | C103: 0 | D103: 50.2104249 | E103: 50.2104249 | F103: 0 | G103: 1 | H103: 1 | I103: =VLOOKUP($A103,[1]allTZs!$B$1:$Y$1402,17,FALSE) -> 0 | J103: =VLOOKUP($A103,[1]allTZs!$B$1:$Y$1402,23,FALSE) -> Area Structure Plan | K103: 0 | L103: 0
A104: 1214 | B104: Outside_levy_boundary | C104: 0 | D104: 63.67043036 | E104: 63.67043036 | F104: 0 | G104: 1 | H104: 1 | I104: =VLOOKUP($A104,[1]allTZs!$B$1:$Y$1402,17,FALSE) -> 44 | J104: =VLOOKUP($A104,[1]allTZs!$B$1:$Y$1402,23,FALSE) -> Unplanned | K104: 0 | L104: 44
A105: 1216 | B105: Outside_levy_boundary | C105: 71.03514068 | D105: 126.4089099 | E105: 197.4440506 | F105: 0.3597735179 | G105: 0.6402264821 | H105: 1 | I105: =VLOOKUP($A105,[1]allTZs!$B$1:$Y$1402,17,FALSE) -> 12037.42429 | J105: =VLOOKUP($A105,[1]allTZs!$B$1:$Y$1402,23,FALSE) -> Area Structure Plan | K105: 4330.746484 | L105: 7706.677807
A106: 1241 | B106: Outside_levy_boundary | C106: 0 | D106: 49.0064982 | E106: 49.0064982 | F106: 0 | G106: 1 | H106: 1 | I106: =VLOOKUP($A106,[1]allTZs!$B$1:$Y$1402,17,FALSE) -> 0 | J106: =VLOOKUP($A106,[1]allTZs!$B$1:$Y$1402,23,FALSE) -> Unplanned | K106: 0 | L106: 0
A107: 1242 | B107: Outside_levy_boundary | C107: 0 | D107: 20.31718467 | E107: 20.31718467 | F107: 0 | G107: 1 | H107: 1 | I107: =VLOOKUP($A107,[1]allTZs!$B$1:$Y$1402,17,FALSE) -> 2199.308866 | J107: =VLOOKUP($A107,[1]allTZs!$B$1:$Y$1402,23,FALSE) -> Area Structure Plan | K107: 0 | L107: 2199.308866
A108: 1243 | B108: Outside_levy_boundary | C108: 0 | D108: 10.68321988 | E108: 10.68321988 | F108: 0 | G108: 1 | H108: 1 | I108: =VLOOKUP($A108,[1]allTZs!$B$1:$Y$1402,17,FALSE) -> 1148.346307 | J108: =VLOOKUP($A108,[1]allTZs!$B$1:$Y$1402,23,FALSE) -> Area Structure Plan | K108: 0 | L108: 1148.346307
A109: 1244 | B109: Outside_levy_boundary | C109: 0 | D109: 24.58096998 | E109: 24.58096998 | F109: 0 | G109: 1 | H109: 1 | I109: =VLOOKUP($A109,[1]allTZs!$B$1:$Y$1402,17,FALSE) -> 0 | J109: =VLOOKUP($A109,[1]allTZs!$B$1:$Y$1402,23,FALSE) -> Area Structure Plan | K109: 0 | L109: 0
A110: 1245 | B110: Outside_levy_boundary | C110: 9.343272493 | D110: 16.86732393 | E110: 26.21059643 | F110: 0.3564692821 | G110: 0.6435307179 | H110: 1 | I110: =VLOOKUP($A110,[1]allTZs!$B$1:$Y$1402,17,FALSE) -> 1000.496923 | J110: =VLOOKUP($A110,[1]allTZs!$B$1:$Y$1402,23,FALSE) -> Area Structure Plan | K110: 356.6464199 | L110: 643.8505031
A111: 1246 | B111: Outside_levy_boundary | C111: 1.961111701 | D111: 38.06744095 | E111: 40.02855265 | F111: 0.04899282067 | G111: 0.9510071793 | H111: 1 | I111: =VLOOKUP($A111,[1]allTZs!$B$1:$Y$1402,17,FALSE) -> 1783.412833 | J111: =VLOOKUP($A111,[1]allTZs!$B$1:$Y$1402,23,FALSE) -> Area Structure Plan | K111: 87.37442512 | L111: 1696.038408
A112: 1247 | B112: Outside_levy_boundary | C112: 0.5532021453 | D112: 17.11456059 | E112: 17.66776274 | F112: 0.03131138636 | G112: 0.9686886136 | H112: 1 | I112: =VLOOKUP($A112,[1]allTZs!$B$1:$Y$1402,17,FALSE) -> 2368.88 | J112: =VLOOKUP($A112,[1]allTZs!$B$1:$Y$1402,23,FALSE) -> Area Structure Plan | K112: 74.17291693 | L112: 2294.707083
A113: 1248 | B113: Outside_levy_boundary | C113: 0 | D113: 67.90820587 | E113: 67.90820587 | F113: 0 | G113: 1 | H113: 1 | I113: =VLOOKUP($A113,[1]allTZs!$B$1:$Y$1402,17,FALSE) -> 6 | J113: =VLOOKUP($A113,[1]allTZs!$B$1:$Y$1402,23,FALSE) -> Unplanned | K113: 0 | L113: 6
A114: 1249 | B114: Outside_levy_boundary | C114: 24.07278822 | D114: 29.14104538 | E114: 53.2138336 | F114: 0.4523783873 | G114: 0.5476216127 | H114: 1 | I114: =VLOOKUP($A114,[1]allTZs!$B$1:$Y$1402,17,FALSE) -> 2822.687651 | J114: =VLOOKUP($A114,[1]allTZs!$B$1:$Y$1402,23,FALSE) -> Area Structure Plan | K114: 1276.922888 | L114: 1545.764764
A115: 1250 | B115: Outside_levy_boundary | C115: 0 | D115: 50.11248542 | E115: 50.11248542 | F115: 0 | G115: 1 | H115: 1 | I115: =VLOOKUP($A115,[1]allTZs!$B$1:$Y$1402,17,FALSE) -> 2115.425906 | J115: =VLOOKUP($A115,[1]allTZs!$B$1:$Y$1402,23,FALSE) -> Area Structure Plan | K115: 0 | L115: 2115.425906
A116: 1251 | B116: Outside_levy_boundary | C116: 0.01686647909 | D116: 52.89701933 | E116: 52.9138858 | F116: 0.0003187533638 | G116: 0.9996812466 | H116: 1 | I116: =VLOOKUP($A116,[1]allTZs!$B$1:$Y$1402,17,FALSE) -> 3473.787813 | J116: =VLOOKUP($A116,[1]allTZs!$B$1:$Y$1402,23,FALSE) -> Area Structure Plan | K116: 1.10728155 | L116: 3472.680531
A117: 1252 | B117: Outside_levy_boundary | C117: 41.51472521 | D117: 19.96133309 | E117: 61.4760583 | F117: 0.6752990735 | G117: 0.3247009265 | H117: 1 | I117: =VLOOKUP($A117,[1]allTZs!$B$1:$Y$1402,17,FALSE) -> 3515.200184 | J117: =VLOOKUP($A117,[1]allTZs!$B$1:$Y$1402,23,FALSE) -> Area Structure Plan | K117: 2373.811427 | L117: 1141.388757
A118: 1301 | B118: Outside_levy_boundary | C118: 0 | D118: 250.8405602 | E118: 250.8405602 | F118: 0 | G118: 1 | H118: 1 | I118: =VLOOKUP($A118,[1]allTZs!$B$1:$Y$1402,17,FALSE) -> 16627.64704 | J118: =VLOOKUP($A118,[1]allTZs!$B$1:$Y$1402,23,FALSE) -> Unplanned | K118: 0 | L118: 16627.64704
A119: 1302 | B119: Outside_levy_boundary | C119: 0 | D119: 215.0694192 | E119: 215.0694192 | F119: 0 | G119: 1 | H119: 1 | I119: =VLOOKUP($A119,[1]allTZs!$B$1:$Y$1402,17,FALSE) -> 17749.93973 | J119: =VLOOKUP($A119,[1]allTZs!$B$1:$Y$1402,23,FALSE) -> Unplanned | K119: 0 | L119: 17749.93973
A120: 1303 | B120: Outside_levy_boundary | C120: 117.7558368 | D120: 0 | E120: 117.7558368 | F120: 1 | G120: 0 | H120: 1 | I120: =VLOOKUP($A120,[1]allTZs!$B$1:$Y$1402,17,FALSE) -> 6545.534 | J120: =VLOOKUP($A120,[1]allTZs!$B$1:$Y$1402,23,FALSE) -> Area Structure Plan | K120: 6545.534 | L120: 0
A121: 1304 | B121: Outside_levy_boundary | C121: 88.05214703 | D121: 2.622085644 | E121: 90.67423267 | F121: 0.9710823509 | G121: 0.02891764911 | H121: 1 | I121: =VLOOKUP($A121,[1]allTZs!$B$1:$Y$1402,17,FALSE) -> 4505.614964 | J121: =VLOOKUP($A121,[1]allTZs!$B$1:$Y$1402,23,FALSE) -> Area Structure Plan | K121: 4375.323171 | L121: 130.2917925
A122: 1305 | B122: Outside_levy_boundary | C122: 48.24312009 | D122: 0 | E122: 48.24312009 | F122: 1 | G122: 0 | H122: 1 | I122: =VLOOKUP($A122,[1]allTZs!$B$1:$Y$1402,17,FALSE) -> 2954 | J122: =VLOOKUP($A122,[1]allTZs!$B$1:$Y$1402,23,FALSE) -> Area Structure Plan | K122: 2954 | L122: 0
A123: 1306 | B123: Outside_levy_boundary | C123: 94.91872062 | D123: 0 | E123: 94.91872062 | F123: 1 | G123: 0 | H123: 1 | I123: =VLOOKUP($A123,[1]allTZs!$B$1:$Y$1402,17,FALSE) -> 4694 | J123: =VLOOKUP($A123,[1]allTZs!$B$1:$Y$1402,23,FALSE) -> Area Structure Plan | K123: 4694 | L123: 0
A124: 1307 | B124: Outside_levy_boundary | C124: 53.59593136 | D124: 0 | E124: 53.59593136 | F124: 1 | G124: 0 | H124: 1 | I124: =VLOOKUP($A124,[1]allTZs!$B$1:$Y$1402,17,FALSE) -> 2970 | J124: =VLOOKUP($A124,[1]allTZs!$B$1:$Y$1402,23,FALSE) -> Community Plan | K124: 2970 | L124: 0
A125: 1308 | B125: Outside_levy_boundary | C125: 102.1027777 | D125: 0 | E125: 102.1027777 | F125: 1 | G125: 0 | H125: 1 | I125: =VLOOKUP($A125,[1]allTZs!$B$1:$Y$1402,17,FALSE) -> 4806 | J125: =VLOOKUP($A125,[1]allTZs!$B$1:$Y$1402,23,FALSE) -> Buildout | K125: 4806 | L125: 0
A126: 1309 | B126: Outside_levy_boundary | C126: 92.68954414 | D126: 0 | E126: 92.68954414 | F126: 1 | G126: 0 | H126: 1 | I126: =VLOOKUP($A126,[1]allTZs!$B$1:$Y$1402,17,FALSE) -> 3992 | J126: =VLOOKUP($A126,[1]allTZs!$B$1:$Y$1402,23,FALSE) -> Community Plan | K126: 3992 | L126: 0
A127: 1310 | B127: Outside_levy_boundary | C127: 26.75991447 | D127: 0 | E127: 26.75991447 | F127: 1 | G127: 0 | H127: 1 | I127: =VLOOKUP($A127,[1]allTZs!$B$1:$Y$1402,17,FALSE) -> 1329 | J127: =VLOOKUP($A127,[1]allTZs!$B$1:$Y$1402,23,FALSE) -> Area Structure Plan | K127: 1329 | L127: 0
A128: 1311 | B128: Outside_levy_boundary | C128: 35.53685958 | D128: 0 | E128: 35.53685958 | F128: 1 | G128: 0 | H128: 1 | I128: =VLOOKUP($A128,[1]allTZs!$B$1:$Y$1402,17,FALSE) -> 1621 | J128: =VLOOKUP($A128,[1]allTZs!$B$1:$Y$1402,23,FALSE) -> Area Structure Plan | K128: 1621 | L128: 0
A129: 1312 | B129: Outside_levy_boundary | C129: 30.65485441 | D129: 14.74660174 | E129: 45.40145615 | F129: 0.6751954014 | G129: 0.3248045986 | H129: 1 | I129: =VLOOKUP($A129,[1]allTZs!$B$1:$Y$1402,17,FALSE) -> 2856.849 | J129: =VLOOKUP($A129,[1]allTZs!$B$1:$Y$1402,23,FALSE) -> Area Structure Plan | K129: 1928.931307 | L129: 927.9176928
A130: 1313 | B130: Outside_levy_boundary | C130: 43.59243552 | D130: 45.64493302 | E130: 89.23736855 | F130: 0.488499787 | G130: 0.511500213 | H130: 1 | I130: =VLOOKUP($A130,[1]allTZs!$B$1:$Y$1402,17,FALSE) -> 4414.05591 | J130: =VLOOKUP($A130,[1]allTZs!$B$1:$Y$1402,23,FALSE) -> Area Structure Plan | K130: 2156.265372 | L130: 2257.790538
A131: 1314 | B131: Outside_levy_boundary | C131: 0 | D131: 243.4352279 | E131: 243.4352279 | F131: 0 | G131: 1 | H131: 1 | I131: =VLOOKUP($A131,[1]allTZs!$B$1:$Y$1402,17,FALSE) -> 16250.01058 | J131: =VLOOKUP($A131,[1]allTZs!$B$1:$Y$1402,23,FALSE) -> Unplanned | K131: 0 | L131: 16250.01058
A132: 1315 | B132: Outside_levy_boundary | C132: 0 | D132: 248.8377818 | E132: 248.8377818 | F132: 0 | G132: 1 | H132: 1 | I132: =VLOOKUP($A132,[1]allTZs!$B$1:$Y$1402,17,FALSE) -> 16823.87208 | J132: =VLOOKUP($A132,[1]allTZs!$B$1:$Y$1402,23,FALSE) -> Unplanned | K132: 0 | L132: 16823.87208
A133: 1316 | B133: Outside_levy_boundary | C133: 94.85296035 | D133: 42.23886728 | E133: 137.0918276 | F133: 0.6918936161 | G133: 0.3081063839 | H133: 1 | I133: =VLOOKUP($A133,[1]allTZs!$B$1:$Y$1402,17,FALSE) -> 7282.081204 | J133: =VLOOKUP($A133,[1]allTZs!$B$1:$Y$1402,23,FALSE) -> Area Structure Plan | K133: =$I133*F133 -> 5038.425497 | L133: 2243.655707
A134: 1317 | B134: Outside_levy_boundary | C134: 14.16372131 | D134: 49.75982688 | E134: 63.92354819 | F134: 0.2215728274 | G134: 0.7784271726 | H134: 1 | I134: =VLOOKUP($A134,[1]allTZs!$B$1:$Y$1402,17,FALSE) -> 4532.060443 | J134: =VLOOKUP($A134,[1]allTZs!$B$1:$Y$1402,23,FALSE) -> Area Structure Plan | K134: 1004.181446 | L134: 3527.878996
A135: 1318 | B135: Outside_levy_boundary | C135: 66.3098979 | D135: 1.596834237 | E135: 67.90673213 | F135: 0.9764848906 | G135: 0.02351510943 | H135: 1 | I135: =VLOOKUP($A135,[1]allTZs!$B$1:$Y$1402,17,FALSE) -> 815 | J135: =VLOOKUP($A135,[1]allTZs!$B$1:$Y$1402,23,FALSE) -> Area Structure Plan | K135: 795.8351858 | L135: 19.16481419
A136: 1319 | B136: Outside_levy_boundary | C136: 0.7225203232 | D136: 61.49422859 | E136: 62.21674891 | F136: 0.01161295529 | G136: 0.9883870447 | H136: 1 | I136: =VLOOKUP($A136,[1]allTZs!$B$1:$Y$1402,17,FALSE) -> 3736.377724 | J136: =VLOOKUP($A136,[1]allTZs!$B$1:$Y$1402,23,FALSE) -> Area Structure Plan | K136: 43.39038745 | L136: 3692.987337
A137: 1320 | B137: Outside_levy_boundary | C137: 22.42292912 | D137: 0 | E137: 22.42292912 | F137: 1 | G137: 0 | H137: 1 | I137: =VLOOKUP($A137,[1]allTZs!$B$1:$Y$1402,17,FALSE) -> 39 | J137: =VLOOKUP($A137,[1]allTZs!$B$1:$Y$1402,23,FALSE) -> Area Structure Plan | K137: 39 | L137: 0
A138: 1321 | B138: Outside_levy_boundary | C138: 20.33006475 | D138: 0 | E138: 20.33006475 | F138: 1 | G138: 0 | H138: 1 | I138: =VLOOKUP($A138,[1]allTZs!$B$1:$Y$1402,17,FALSE) -> 0 | J138: =VLOOKUP($A138,[1]allTZs!$B$1:$Y$1402,23,FALSE) -> Area Structure Plan | K138: 0 | L138: 0
A139: 1322 | B139: Outside_levy_boundary | C139: 121.0327585 | D139: 0 | E139: 121.0327585 | F139: 1 | G139: 0 | H139: 1 | I139: =VLOOKUP($A139,[1]allTZs!$B$1:$Y$1402,17,FALSE) -> 6415.04 | J139: =VLOOKUP($A139,[1]allTZs!$B$1:$Y$1402,23,FALSE) -> Community Plan | K139: 6415.04 | L139: 0
A140: 1323 | B140: Outside_levy_boundary | C140: 21.04831857 | D140: 36.64697116 | E140: 57.69528973 | F140: 0.3648186649 | G140: 0.6351813351 | H140: 1 | I140: =VLOOKUP($A140,[1]allTZs!$B$1:$Y$1402,17,FALSE) -> 3760.92702 | J140: =VLOOKUP($A140,[1]allTZs!$B$1:$Y$1402,23,FALSE) -> Area Structure Plan | K140: 1372.056374 | L140: 2388.870646
A141: 1324 | B141: Outside_levy_boundary | C141: 107.9802442 | D141: 0.002236185764 | E141: 107.9824804 | F141: 0.9999792912 | G141: 2.070878309e-05 | H141: 1 | I141: =VLOOKUP($A141,[1]allTZs!$B$1:$Y$1402,17,FALSE) -> 4807.665591 | J141: =VLOOKUP($A141,[1]allTZs!$B$1:$Y$1402,23,FALSE) -> Community Plan | K141: 4807.56603 | L141: 0.09956090391
A142: 1325 | B142: Outside_levy_boundary | C142: 41.23924891 | D142: 7.630925068 | E142: 48.87017398 | F142: 0.8438531225 | G142: 0.1561468775 | H142: 1 | I142: =VLOOKUP($A142,[1]allTZs!$B$1:$Y$1402,17,FALSE) -> 2621.354984 | J142: =VLOOKUP($A142,[1]allTZs!$B$1:$Y$1402,23,FALSE) -> Area Structure Plan | K142: 2212.038588 | L142: 409.3163954
A143: 1326 | B143: Outside_levy_boundary | C143: 25.11490602 | D143: 107.62748 | E143: 132.742386 | F143: 0.189200351 | G143: 0.810799649 | H143: 1 | I143: =VLOOKUP($A143,[1]allTZs!$B$1:$Y$1402,17,FALSE) -> 8458.545386 | J143: =VLOOKUP($A143,[1]allTZs!$B$1:$Y$1402,23,FALSE) -> Area Structure Plan | K143: 1600.359756 | L143: 6858.18563
A144: 1327 | B144: Outside_levy_boundary | C144: 7.194974026 | D144: 206.7116214 | E144: 213.9065954 | F144: 0.03363605508 | G144: 0.9663639449 | H144: 1 | I144: =VLOOKUP($A144,[1]allTZs!$B$1:$Y$1402,17,FALSE) -> 13029.54082 | J144: =VLOOKUP($A144,[1]allTZs!$B$1:$Y$1402,23,FALSE) -> Area Structure Plan | K144: 438.2623528 | L144: 12591.27847
A145: 1328 | B145: Outside_levy_boundary | C145: 0 | D145: 77.76785954 | E145: 77.76785954 | F145: 0 | G145: 1 | H145: 1 | I145: =VLOOKUP($A145,[1]allTZs!$B$1:$Y$1402,17,FALSE) -> 4297.691448 | J145: =VLOOKUP($A145,[1]allTZs!$B$1:$Y$1402,23,FALSE) -> Area Structure Plan | K145: 0 | L145: 4297.691448
A146: 1329 | B146: Outside_levy_boundary | C146: 2.310510647 | D146: 127.8042481 | E146: 130.1147587 | F146: 0.01775748324 | G146: 0.9822425168 | H146: 1 | I146: =VLOOKUP($A146,[1]allTZs!$B$1:$Y$1402,17,FALSE) -> 6997.478466 | J146: =VLOOKUP($A146,[1]allTZs!$B$1:$Y$1402,23,FALSE) -> Area Structure Plan | K146: 124.2576065 | L146: 6873.220859
A147: 1330 | B147: Outside_levy_boundary | C147: 16.45316293 | D147: 119.2437924 | E147: 135.6969553 | F147: 0.1212493154 | G147: 0.8787506846 | H147: 1 | I147: =VLOOKUP($A147,[1]allTZs!$B$1:$Y$1402,17,FALSE) -> 7401.856957 | J147: =VLOOKUP($A147,[1]allTZs!$B$1:$Y$1402,23,FALSE) -> Area Structure Plan | K147: 897.4700886 | L147: 6504.386868
A148: 1331 | B148: Outside_levy_boundary | C148: 0 | D148: 275.918296 | E148: 275.918296 | F148: 0 | G148: 1 | H148: 1 | I148: =VLOOKUP($A148,[1]allTZs!$B$1:$Y$1402,17,FALSE) -> 17909.87035 | J148: =VLOOKUP($A148,[1]allTZs!$B$1:$Y$1402,23,FALSE) -> Unplanned | K148: 0 | L148: 17909.87035
A149: 1332 | B149: Outside_levy_boundary | C149: 0 | D149: 215.6967885 | E149: 215.6967885 | F149: 0 | G149: 1 | H149: 1 | I149: =VLOOKUP($A149,[1]allTZs!$B$1:$Y$1402,17,FALSE) -> 13824.9798 | J149: =VLOOKUP($A149,[1]allTZs!$B$1:$Y$1402,23,FALSE) -> Unplanned | K149: 0 | L149: 13824.9798
A150: 1333 | B150: Outside_levy_boundary | C150: 36.24083969 | D150: 0 | E150: 36.24083969 | F150: 1 | G150: 0 | H150: 1 | I150: =VLOOKUP($A150,[1]allTZs!$B$1:$Y$1402,17,FALSE) -> 2919.955297 | J150: =VLOOKUP($A150,[1]allTZs!$B$1:$Y$1402,23,FALSE) -> Area Structure Plan | K150: 2919.955297 | L150: 0
A151: 1334 | B151: Outside_levy_boundary | C151: 22.65129324 | D151: 27.68809599 | E151: 50.33938923 | F151: 0.4499715549 | G151: 0.5500284451 | H151: 1 | I151: =VLOOKUP($A151,[1]allTZs!$B$1:$Y$1402,17,FALSE) -> 3731.226858 | J151: =VLOOKUP($A151,[1]allTZs!$B$1:$Y$1402,23,FALSE) -> Area Structure Plan | K151: 1678.945951 | L151: 2052.280907
A152: 1335 | B152: Outside_levy_boundary | C152: 23.27486142 | D152: 10.52446926 | E152: 33.79933068 | F152: 0.6886190037 | G152: 0.3113809963 | H152: 1 | I152: =VLOOKUP($A152,[1]allTZs!$B$1:$Y$1402,17,FALSE) -> 0 | J152: =VLOOKUP($A152,[1]allTZs!$B$1:$Y$1402,23,FALSE) -> Area Structure Plan | K152: 0 | L152: 0
A153: 1336 | B153: Outside_levy_boundary | C153: 29.33997044 | D153: 0 | E153: 29.33997044 | F153: 1 | G153: 0 | H153: 1 | I153: =VLOOKUP($A153,[1]allTZs!$B$1:$Y$1402,17,FALSE) -> 1576.87 | J153: =VLOOKUP($A153,[1]allTZs!$B$1:$Y$1402,23,FALSE) -> Area Structure Plan | K153: 1576.87 | L153: 0
A154: 1337 | B154: Outside_levy_boundary | C154: 30.19217905 | D154: 0 | E154: 30.19217905 | F154: 1 | G154: 0 | H154: 1 | I154: =VLOOKUP($A154,[1]allTZs!$B$1:$Y$1402,17,FALSE) -> 1163 | J154: =VLOOKUP($A154,[1]allTZs!$B$1:$Y$1402,23,FALSE) -> Area Structure Plan | K154: 1163 | L154: 0
A155: 1338 | B155: Outside_levy_boundary | C155: 31.36630832 | D155: 0 | E155: 31.36630832 | F155: 1 | G155: 0 | H155: 1 | I155: =VLOOKUP($A155,[1]allTZs!$B$1:$Y$1402,17,FALSE) -> 1450.978 | J155: =VLOOKUP($A155,[1]allTZs!$B$1:$Y$1402,23,FALSE) -> Area Structure Plan | K155: 1450.978 | L155: 0
A156: 1339 | B156: Outside_levy_boundary | C156: 33.90283754 | D156: 0 | E156: 33.90283754 | F156: 1 | G156: 0 | H156: 1 | I156: =VLOOKUP($A156,[1]allTZs!$B$1:$Y$1402,17,FALSE) -> 2795 | J156: =VLOOKUP($A156,[1]allTZs!$B$1:$Y$1402,23,FALSE) -> Area Structure Plan | K156: 2795 | L156: 0
A157: 1421 | B157: Outside_levy_boundary | C157: 45.38056717 | D157: 0 | E157: 45.38056717 | F157: 1 | G157: 0 | H157: 1 | I157: =VLOOKUP($A157,[1]allTZs!$B$1:$Y$1402,17,FALSE) -> 2614 | J157: =VLOOKUP($A157,[1]allTZs!$B$1:$Y$1402,23,FALSE) -> Area Structure Plan | K157: 2614 | L157: 0
A158: 1422 | B158: Outside_levy_boundary | C158: 18.79216797 | D158: 0 | E158: 18.79216797 | F158: 1 | G158: 0 | H158: 1 | I158: =VLOOKUP($A158,[1]allTZs!$B$1:$Y$1402,17,FALSE) -> 1019 | J158: =VLOOKUP($A158,[1]allTZs!$B$1:$Y$1402,23,FALSE) -> Area Structure Plan | K158: 1019 | L158: 0
A159: 1423 | B159: Outside_levy_boundary | C159: 65.18139185 | D159: 0 | E159: 65.18139185 | F159: 1 | G159: 0 | H159: 1 | I159: =VLOOKUP($A159,[1]allTZs!$B$1:$Y$1402,17,FALSE) -> 2608 | J159: =VLOOKUP($A159,[1]allTZs!$B$1:$Y$1402,23,FALSE) -> Area Structure Plan | K159: 2608 | L159: 0
A160: 1424 | B160: Outside_levy_boundary | C160: 30.181271 | D160: 0 | E160: 30.181271 | F160: 1 | G160: 0 | H160: 1 | I160: =VLOOKUP($A160,[1]allTZs!$B$1:$Y$1402,17,FALSE) -> 1995 | J160: =VLOOKUP($A160,[1]allTZs!$B$1:$Y$1402,23,FALSE) -> Area Structure Plan | K160: 1995 | L160: 0
A161: 1425 | B161: Outside_levy_boundary | C161: 32.53565686 | D161: 0 | E161: 32.53565686 | F161: 1 | G161: 0 | H161: 1 | I161: =VLOOKUP($A161,[1]allTZs!$B$1:$Y$1402,17,FALSE) -> 2221 | J161: =VLOOKUP($A161,[1]allTZs!$B$1:$Y$1402,23,FALSE) -> Area Structure Plan | K161: 2221 | L161: 0
A162: 1426 | B162: Outside_levy_boundary | C162: 94.69512817 | D162: 0 | E162: 94.69512817 | F162: 1 | G162: 0 | H162: 1 | I162: =VLOOKUP($A162,[1]allTZs!$B$1:$Y$1402,17,FALSE) -> 4352.148 | J162: =VLOOKUP($A162,[1]allTZs!$B$1:$Y$1402,23,FALSE) -> Area Structure Plan | K162: 4352.148 | L162: 0
A163: 1427 | B163: Outside_levy_boundary | C163: 23.51205179 | D163: 0 | E163: 23.51205179 | F163: 1 | G163: 0 | H163: 1 | I163: =VLOOKUP($A163,[1]allTZs!$B$1:$Y$1402,17,FALSE) -> 1207 | J163: =VLOOKUP($A163,[1]allTZs!$B$1:$Y$1402,23,FALSE) -> Area Structure Plan | K163: 1207 | L163: 0
A164: 1428 | B164: Outside_levy_boundary | C164: 17.27745333 | D164: 0 | E164: 17.27745333 | F164: 1 | G164: 0 | H164: 1 | I164: =VLOOKUP($A164,[1]allTZs!$B$1:$Y$1402,17,FALSE) -> 410.242 | J164: =VLOOKUP($A164,[1]allTZs!$B$1:$Y$1402,23,FALSE) -> Buildout | K164: 410.242 | L164: 0
A165: 1429 | B165: Outside_levy_boundary | C165: 57.09126918 | D165: 0 | E165: 57.09126918 | F165: 1 | G165: 0 | H165: 1 | I165: =VLOOKUP($A165,[1]allTZs!$B$1:$Y$1402,17,FALSE) -> 3617 | J165: =VLOOKUP($A165,[1]allTZs!$B$1:$Y$1402,23,FALSE) -> Area Structure Plan | K165: 3617 | L165: 0
A166: 1430 | B166: Outside_levy_boundary | C166: 51.70077373 | D166: 0 | E166: 51.70077373 | F166: 1 | G166: 0 | H166: 1 | I166: =VLOOKUP($A166,[1]allTZs!$B$1:$Y$1402,17,FALSE) -> 3143 | J166: =VLOOKUP($A166,[1]allTZs!$B$1:$Y$1402,23,FALSE) -> Area Structure Plan | K166: 3143 | L166: 0
A167: 1431 | B167: Outside_levy_boundary | C167: 0.08991043105 | D167: 123.5682861 | E167: 123.6581965 | F167: 0.0007270883255 | G167: 0.9992729117 | H167: 1 | I167: =VLOOKUP($A167,[1]allTZs!$B$1:$Y$1402,17,FALSE) -> 4227.4944 | J167: =VLOOKUP($A167,[1]allTZs!$B$1:$Y$1402,23,FALSE) -> Area Structure Plan | K167: 3.073761824 | L167: 4224.420638
A168: 1432 | B168: Outside_levy_boundary | C168: 13.38184583 | D168: 179.9680487 | E168: 193.3498945 | F168: 0.0692105153 | G168: 0.9307894847 | H168: 1 | I168: =VLOOKUP($A168,[1]allTZs!$B$1:$Y$1402,17,FALSE) -> 12559.02027 | J168: =VLOOKUP($A168,[1]allTZs!$B$1:$Y$1402,23,FALSE) -> Area Structure Plan | K168: 869.2162647 | L168: 11689.80401
A169: 1433 | B169: Outside_levy_boundary | C169: 0 | D169: 219.5956971 | E169: 219.5956971 | F169: 0 | G169: 1 | H169: 1 | I169: =VLOOKUP($A169,[1]allTZs!$B$1:$Y$1402,17,FALSE) -> 15747.30951 | J169: =VLOOKUP($A169,[1]allTZs!$B$1:$Y$1402,23,FALSE) -> Unplanned | K169: 0 | L169: 15747.30951
A170: 1435 | B170: Outside_levy_boundary | C170: 0.1145275709 | D170: 7.03811382 | E170: 7.152641391 | F170: 0.01601192687 | G170: 0.9839880731 | H170: 1 | I170: =VLOOKUP($A170,[1]allTZs!$B$1:$Y$1402,17,FALSE) -> 0 | J170: =VLOOKUP($A170,[1]allTZs!$B$1:$Y$1402,23,FALSE) -> Buildout | K170: 0 | L170: 0
A171: 1436 | B171: Outside_levy_boundary | C171: 18.28758066 | D171: 0 | E171: 18.28758066 | F171: 1 | G171: 0 | H171: 1 | I171: =VLOOKUP($A171,[1]allTZs!$B$1:$Y$1402,17,FALSE) -> 0 | J171: =VLOOKUP($A171,[1]allTZs!$B$1:$Y$1402,23,FALSE) -> Area Structure Plan | K171: 0 | L171: 0
A172: 1440 | B172: Outside_levy_boundary | C172: 25.76694399 | D172: 0 | E172: 25.76694399 | F172: 1 | G172: 0 | H172: 1 | I172: =VLOOKUP($A172,[1]allTZs!$B$1:$Y$1402,17,FALSE) -> 1190 | J172: =VLOOKUP($A172,[1]allTZs!$B$1:$Y$1402,23,FALSE) -> Area Structure Plan | K172: 1190 | L172: 0
A173: 1442 | B173: Outside_levy_boundary | C173: 27.2620532 | D173: 0 | E173: 27.2620532 | F173: 1 | G173: 0 | H173: 1 | I173: =VLOOKUP($A173,[1]allTZs!$B$1:$Y$1402,17,FALSE) -> 1645 | J173: =VLOOKUP($A173,[1]allTZs!$B$1:$Y$1402,23,FALSE) -> Area Structure Plan | K173: 1645 | L173: 0
A174: 1443 | B174: Outside_levy_boundary | C174: 16.60905101 | D174: 0 | E174: 16.60905101 | F174: 1 | G174: 0 | H174: 1 | I174: =VLOOKUP($A174,[1]allTZs!$B$1:$Y$1402,17,FALSE) -> 0 | J174: =VLOOKUP($A174,[1]allTZs!$B$1:$Y$1402,23,FALSE) -> Area Structure Plan | K174: 0 | L174: 0
A175: 1444 | B175: Outside_levy_boundary | C175: 13.31020599 | D175: 0 | E175: 13.31020599 | F175: 1 | G175: 0 | H175: 1 | I175: =VLOOKUP($A175,[1]allTZs!$B$1:$Y$1402,17,FALSE) -> 1001 | J175: =VLOOKUP($A175,[1]allTZs!$B$1:$Y$1402,23,FALSE) -> Area Structure Plan | K175: 1001 | L175: 0
A176: 1529 | B176: Outside_levy_boundary | C176: 59.77584381 | D176: 0 | E176: 59.77584381 | F176: 1 | G176: 0 | H176: 1 | I176: =VLOOKUP($A176,[1]allTZs!$B$1:$Y$1402,17,FALSE) -> 135.3248266 | J176: =VLOOKUP($A176,[1]allTZs!$B$1:$Y$1402,23,FALSE) -> Area Structure Plan | K176: 135.3248266 | L176: 0
A177: 1530 | B177: Outside_levy_boundary | C177: 16.8641159 | D177: 36.92972682 | E177: 53.79384272 | F177: 0.3134952821 | G177: 0.6865047179 | H177: 1 | I177: =VLOOKUP($A177,[1]allTZs!$B$1:$Y$1402,17,FALSE) -> 0 | J177: =VLOOKUP($A177,[1]allTZs!$B$1:$Y$1402,23,FALSE) -> Area Structure Plan | K177: 0 | L177: 0
A178: 1531 | B178: Outside_levy_boundary | C178: 1.248858448 | D178: 9.430977735 | E178: 10.67983618 | F178: 0.1169361053 | G178: 0.8830638947 | H178: 1 | I178: =VLOOKUP($A178,[1]allTZs!$B$1:$Y$1402,17,FALSE) -> 0 | J178: =VLOOKUP($A178,[1]allTZs!$B$1:$Y$1402,23,FALSE) -> Area Structure Plan | K178: 0 | L178: 0
A179: 1532 | B179: Outside_levy_boundary | C179: 32.76686538 | D179: 16.29112151 | E179: 49.05798689 | F179: 0.6679211166 | G179: 0.3320788834 | H179: 1 | I179: =VLOOKUP($A179,[1]allTZs!$B$1:$Y$1402,17,FALSE) -> 172.0645985 | J179: =VLOOKUP($A179,[1]allTZs!$B$1:$Y$1402,23,FALSE) -> Area Structure Plan | K179: 114.9255788 | L179: 57.13901976
A180: 1533 | B180: Outside_levy_boundary | C180: 62.01800384 | D180: 2.683177071 | E180: 64.70118091 | F180: 0.9585297048 | G180: 0.04147029518 | H180: 1 | I180: =VLOOKUP($A180,[1]allTZs!$B$1:$Y$1402,17,FALSE) -> 0 | J180: =VLOOKUP($A180,[1]allTZs!$B$1:$Y$1402,23,FALSE) -> Area Structure Plan | K180: 0 | L180: 0
A181: 1534 | B181: Outside_levy_boundary | C181: 42.24560222 | D181: 16.32605906 | E181: 58.57166128 | F181: 0.7212635137 | G181: 0.2787364863 | H181: 1 | I181: =VLOOKUP($A181,[1]allTZs!$B$1:$Y$1402,17,FALSE) -> 0 | J181: =VLOOKUP($A181,[1]allTZs!$B$1:$Y$1402,23,FALSE) -> Area Structure Plan | K181: 0 | L181: 0
A182: 1536 | B182: Outside_levy_boundary | C182: 87.1342179 | D182: 0.0002047425806 | E182: 87.13442264 | F182: 0.9999976503 | G182: 2.349732452e-06 | H182: 1 | I182: =VLOOKUP($A182,[1]allTZs!$B$1:$Y$1402,17,FALSE) -> 0 | J182: =VLOOKUP($A182,[1]allTZs!$B$1:$Y$1402,23,FALSE) -> Area Structure Plan | K182: 0 | L182: 0
A183: 1537 | B183: Outside_levy_boundary | C183: 0.470917658 | D183: 0 | E183: 0.470917658 | F183: 1 | G183: 0 | H183: 1 | I183: =VLOOKUP($A183,[1]allTZs!$B$1:$Y$1402,17,FALSE) -> 0 | J183: =VLOOKUP($A183,[1]allTZs!$B$1:$Y$1402,23,FALSE) -> Area Structure Plan | K183: 0 | L183: 0
A184: 1538 | B184: Outside_levy_boundary | C184: 1.201115932 | D184: 19.54746479 | E184: 20.74858073 | F184: 0.05788906469 | G184: 0.9421109353 | H184: 1 | I184: =VLOOKUP($A184,[1]allTZs!$B$1:$Y$1402,17,FALSE) -> 0 | J184: =VLOOKUP($A184,[1]allTZs!$B$1:$Y$1402,23,FALSE) -> Buildout | K184: 0 | L184: 0
A185: 1539 | B185: Outside_levy_boundary | C185: 80.71857644 | D185: 3.593830418 | E185: 84.31240685 | F185: 0.957374833 | G185: 0.04262516695 | H185: 1 | I185: =VLOOKUP($A185,[1]allTZs!$B$1:$Y$1402,17,FALSE) -> 0 | J185: =VLOOKUP($A185,[1]allTZs!$B$1:$Y$1402,23,FALSE) -> Area Structure Plan | K185: 0 | L185: 0
A186: 1540 | B186: Outside_levy_boundary | C186: 73.45344976 | D186: 0 | E186: 73.45344976 | F186: 1 | G186: 0 | H186: 1 | I186: =VLOOKUP($A186,[1]allTZs!$B$1:$Y$1402,17,FALSE) -> 0 | J186: =VLOOKUP($A186,[1]allTZs!$B$1:$Y$1402,23,FALSE) -> Area Structure Plan | K186: 0 | L186: 0
A187: 1541 | B187: Outside_levy_boundary | C187: 12.61832859 | D187: 9.007932111 | E187: 21.6262607 | F187: 0.5834725089 | G187: 0.4165274911 | H187: 1 | I187: =VLOOKUP($A187,[1]allTZs!$B$1:$Y$1402,17,FALSE) -> 0 | J187: =VLOOKUP($A187,[1]allTZs!$B$1:$Y$1402,23,FALSE) -> Area Structure Plan | K187: 0 | L187: 0
A188: 1542 | B188: Outside_levy_boundary | C188: 0.2650520153 | D188: 0 | E188: 0.2650520153 | F188: 1 | G188: 0 | H188: 1 | I188: =VLOOKUP($A188,[1]allTZs!$B$1:$Y$1402,17,FALSE) -> 0 | J188: =VLOOKUP($A188,[1]allTZs!$B$1:$Y$1402,23,FALSE) -> Area Structure Plan | K188: 0 | L188: 0
A189: 1544 | B189: Outside_levy_boundary | C189: 0 | D189: 12.21409754 | E189: 12.21409754 | F189: 0 | G189: 1 | H189: 1 | I189: =VLOOKUP($A189,[1]allTZs!$B$1:$Y$1402,17,FALSE) -> 0 | J189: =VLOOKUP($A189,[1]allTZs!$B$1:$Y$1402,23,FALSE) -> Buildout | K189: 0 | L189: 0
A190: 1545 | B190: Outside_levy_boundary | C190: 0 | D190: 27.73570514 | E190: 27.73570514 | F190: 0 | G190: 1 | H190: 1 | I190: =VLOOKUP($A190,[1]allTZs!$B$1:$Y$1402,17,FALSE) -> 0 | J190: =VLOOKUP($A190,[1]allTZs!$B$1:$Y$1402,23,FALSE) -> Area Structure Plan | K190: 0 | L190: 0
A191: 1546 | B191: Outside_levy_boundary | C191: 0 | D191: 19.49896746 | E191: 19.49896746 | F191: 0 | G191: 1 | H191: 1 | I191: =VLOOKUP($A191,[1]allTZs!$B$1:$Y$1402,17,FALSE) -> 2 | J191: =VLOOKUP($A191,[1]allTZs!$B$1:$Y$1402,23,FALSE) -> Area Structure Plan | K191: 0 | L191: 2
A192: 1547 | B192: Outside_levy_boundary | C192: 0 | D192: 5.770845796 | E192: 5.770845796 | F192: 0 | G192: 1 | H192: 1 | I192: =VLOOKUP($A192,[1]allTZs!$B$1:$Y$1402,17,FALSE) -> 0 | J192: =VLOOKUP($A192,[1]allTZs!$B$1:$Y$1402,23,FALSE) -> Area Structure Plan | K192: 0 | L192: 0
A193: 1548 | B193: Outside_levy_boundary | C193: 0 | D193: 71.12043551 | E193: 71.12043551 | F193: 0 | G193: 1 | H193: 1 | I193: =VLOOKUP($A193,[1]allTZs!$B$1:$Y$1402,17,FALSE) -> 2973.5244 | J193: =VLOOKUP($A193,[1]allTZs!$B$1:$Y$1402,23,FALSE) -> Area Structure Plan | K193: 0 | L193: 2973.5244
A194: 1632 | B194: Outside_levy_boundary | C194: 8.263592462 | D194: 0.7441653494 | E194: 9.007757812 | F194: 0.9173861726 | G194: 0.08261382743 | H194: 1 | I194: =VLOOKUP($A194,[1]allTZs!$B$1:$Y$1402,17,FALSE) -> 178.1878939 | J194: =VLOOKUP($A194,[1]allTZs!$B$1:$Y$1402,23,FALSE) -> Buildout | K194: 163.4671099 | L194: 14.72078391
A195: 1633 | B195: Outside_levy_boundary | C195: 35.00598897 | D195: 0 | E195: 35.00598897 | F195: 1 | G195: 0 | H195: 1 | I195: =VLOOKUP($A195,[1]allTZs!$B$1:$Y$1402,17,FALSE) -> 0 | J195: =VLOOKUP($A195,[1]allTZs!$B$1:$Y$1402,23,FALSE) -> Area Structure Plan | K195: 0 | L195: 0
A196: 1634 | B196: Outside_levy_boundary | C196: 0.5936836922 | D196: 0 | E196: 0.5936836922 | F196: 1 | G196: 0 | H196: 1 | I196: =VLOOKUP($A196,[1]allTZs!$B$1:$Y$1402,17,FALSE) -> 0 | J196: =VLOOKUP($A196,[1]allTZs!$B$1:$Y$1402,23,FALSE) -> Area Structure Plan | K196: 0 | L196: 0
A197: 1635 | B197: Outside_levy_boundary | C197: 2.251544819 | D197: 17.58160985 | E197: 19.83315467 | F197: 0.1135242908 | G197: 0.8864757092 | H197: 1 | I197: =VLOOKUP($A197,[1]allTZs!$B$1:$Y$1402,17,FALSE) -> 0 | J197: =VLOOKUP($A197,[1]allTZs!$B$1:$Y$1402,23,FALSE) -> Area Structure Plan | K197: =$I197*F197 -> 0 | L197: 0
A198: 1636 | B198: Outside_levy_boundary | C198: 0 | D198: 0 | E198: 0 | F198: 0 | G198: 0 | H198: 0 | I198: =VLOOKUP($A198,[1]allTZs!$B$1:$Y$1402,17,FALSE) -> 0 | J198: =VLOOKUP($A198,[1]allTZs!$B$1:$Y$1402,23,FALSE) -> Area Structure Plan | K198: 0 | L198: 0
A199: 1637 | B199: Outside_levy_boundary | C199: 7.284797404 | D199: 38.32388267 | E199: 45.60868008 | F199: 0.1597239252 | G199: 0.8402760748 | H199: 1 | I199: =VLOOKUP($A199,[1]allTZs!$B$1:$Y$1402,17,FALSE) -> 0 | J199: =VLOOKUP($A199,[1]allTZs!$B$1:$Y$1402,23,FALSE) -> Area Structure Plan | K199: 0 | L199: 0
A200: 1638 | B200: Outside_levy_boundary | C200: 0 | D200: 38.49418393 | E200: 38.49418393 | F200: 0 | G200: 1 | H200: 1 | I200: =VLOOKUP($A200,[1]allTZs!$B$1:$Y$1402,17,FALSE) -> 0 | J200: =VLOOKUP($A200,[1]allTZs!$B$1:$Y$1402,23,FALSE) -> Area Structure Plan | K200: 0 | L200: 0
A201: 1639 | B201: Outside_levy_boundary | C201: 0 | D201: 25.33237765 | E201: 25.33237765 | F201: 0 | G201: 1 | H201: 1 | I201: =VLOOKUP($A201,[1]allTZs!$B$1:$Y$1402,17,FALSE) -> 0 | J201: =VLOOKUP($A201,[1]allTZs!$B$1:$Y$1402,23,FALSE) -> Area Structure Plan | K201: 0 | L201: 0
... 258 more rows

Sheet Tab 9 - Existing Capacity
A1: Police - Existing Facilities Capacity
A3: Total existing and funded police district office capacity in the Greenfield Area (people) | B3: =SUM(B6:B8) -> 372500
A5: Facility | B5: Capacity (population)
A6: Police District Office 5 | B6: =149000/2 -> 74500
A7: Police District Office 7 | B7: 149000
A8: Police District Office 9 | B8: 149000
